Workbook

Sheet 啟用巨集說明 (hidden)
A1: ▲本件excel檔內有巨集程式，開啟excel檔時，如出現以下畫面，請依如下步驟處理：
A13: 1.在excel中點選「工具」-「選項」-「安全性」-「巨集安全性」
A31: 2.在「安全性層級」頁面，點選「中」，再按「確定」
A49: 3.重新開啟本件excel檔，出現以下畫面，點選「啟用巨集」

Sheet 封面
A2: 中 華 民 國 111 年 度
A3: (自111年1月1日起至111年12月31日止)
A5: 各直轄市及縣(市)總預算彙編
A7: 行政院主計總處編

Sheet 目錄
A1: 111年度各直轄市及縣(市)總預算彙編目次
A3: 一、 | B3: 總說明- - - - - - - - - - - - - - - - - - - - - | D3: - - - - - - - - - 1
A4: 二、 | B4: 歲入歲出簡明比較分析表 - - - - - - | D4: - - - - - - - -12
A5: 三、 | B5: 歲入歲出性質及餘絀簡明比較分析表 - - - - - 14
A6: 四、 | B6: 歲入歲出性質及餘絀簡明分析表 - | D6: - - - - - - - - 16
A7: 五、 | B7: 收支簡明比較分析表 - - - - - - - - - | D7: - - - - - - - - 20
A8: 六、 | B8: 收支簡明分析表 - - - - - - - - - - - - - - | D8: - - - - - - - - 21
A9: 七、 | B9: 歲入來源別預算總表 - - - - - - - - - - - - | D9: - - - - - - - - 23
A10: 八、 | B10: 歲出政事別預算總表 - - - - - - - - - - - - | D10: - - - - - - - - 34
A11: 九、 | B11: 歲出機關別預算總表 - - - - - - - - - - - - | D11: - - - - - - - - 64
A12: 十、 | B12: 歲出一級用途別科目分析總表 - - - - - - - - - - - - | D12: - - - - - - - - 70
A13: 十一、 | B13: 資本支出分析總表 - - - - - - - - - - - - | D13: - - - - - - - - 74
A14: 十二、 | B14: 歲出人事費彙計表 - - - - - - - - - - - - | D14: - - - - - - - - 76
A15: 十三、 | B15: 附各鄉(鎮、市)及直轄市山地原住民區總預算彙編
B16: (一) | C16: 歲入歲出簡明比較分析表 - - - - - - | D16: - - - - - - - - 80
B17: (二) | C17: 歲入歲出性質及餘絀簡明比較分析表 - 82
B18: (三) | C18: 收支簡明比較分析表 - - - - - - - | D18: - - - - - - - - 84
B19: (四) | C19: 歲入來源別預算總表 - - - - - - - | D19: - - - - - - - - 85
B20: (五) | C20: 歲出政事別預算總表 - - - - - - - | D20: - - - - - - - - 94
B21: (六) | C21: 歲出一級用途別科目分析總表 - - - - - - | D21: - - - - - - - 118
B22: (七) | C22: 資本支出分析總表 - - - - - - - - | D22: - - - - - - - 122
B23: (八) | C23: 歲出人事費彙計表 - - - - - - - - - | D23: - - - - - - - 124

Sheet 簡明總
D1: 各直轄市及縣(市) | E1: 總預算彙編
D2: 歲 入 歲 出 簡 明 | E2: 比 較 分 析 表
D3: 中 華 民 國 | E3: =[1]簡明總!$E$3 -> 111 年 度 | H3: 單位：新臺幣千元
A4: 項 目 | B4: 本年度預算數 | D4: 上年度預 | E4: 算數 | F4: 前年度決算數 | H4: 本年度與上年度比較
B5: 金 額 | C5: 百分比 | D5: 金 額 | E5: 百分比 | F5: 金 額 | G5: 百分比 | H5: 金 額 | I5: 增加率
A6: 一、歲入合計 | B6: 1263542942 | C6: 100 | D6: 1216694941 | E6: 100 | F6: 1210534717 | G6: 100 | H6: 46848001 | I6: 3.850431149
A7: 1.稅課收入 | B7: 650415594 | C7: 51.48 | D7: 621957707 | E7: 51.12 | F7: 638360586 | G7: 52.73 | H7: 28457887 | I7: 4.575534105
A8: 2.工程受益費收入 | B8: 2 | C8: 0 | D8: 2 | E8: 0 | F8: 13503 | G8: 0 | H8: 0 | I8: 0
A9: 3.罰款及賠償收入 | B9: 18883262 | C9: 1.49 | D9: 18545628 | E9: 1.52 | F9: 24493208 | G9: 2.02 | H9: 337634 | I9: 1.820558463
A10: 4.規費收入 | B10: 37834897 | C10: 2.99 | D10: 36923902 | E10: 3.03 | F10: 38001727 | G10: 3.14 | H10: 910995 | I10: 2.467222993
A11: 5.信託管理收入 | B11: 182 | C11: 0 | D11: 182 | E11: 0 | F11: 185 | G11: 0 | H11: 0 | I11: 0
A12: 6.財產收入 | B12: 16075967 | C12: 1.27 | D12: 25830965 | E12: 2.12 | F12: 21094927 | G12: 1.74 | H12: -9754998 | I12: -37.76474475
A13: 7.營業盈餘及事業收入 | B13: 46661600 | C13: 3.69 | D13: 45419606 | E13: 3.73 | F13: 47462829 | G13: 3.92 | H13: 1241994 | I13: 2.734488714
A14: 8.補助及協助收入 | B14: 460261502 | C14: 36.44 | D14: 433906618 | E14: 35.67 | F14: 408078839 | G14: 33.72 | H14: 26354884 | I14: 6.073860805
A15: 9.捐獻及贈與收入 | B15: 6750328 | C15: 0.53 | D15: 7368243 | E15: 0.61 | F15: 5912849 | G15: 0.49 | H15: -617915 | I15: -8.386191932
A16: 10.自治稅捐收入 | B16: 0 | C16: 0 | D16: 0 | E16: 0 | F16: 0 | G16: 0 | H16: 0 | I16: 0
A17: 10.其他收入 | B17: 26659608 | C17: 2.11 | D17: 26742088 | E17: 2.2 | F17: 27116064 | G17: 2.24 | H17: -82480 | I17: -0.308427674
A19: 二、歲出合計 | B19: 1324656276 | C19: 100 | D19: 1286649073 | E19: 100 | F19: 1195225886 | G19: 100 | H19: 38007203 | I19: 2.953968086
A20: 1.一般政務支出 | B20: 226859887 | C20: 17.13 | D20: 219192441 | E20: 17.04 | F20: 213945832 | G20: 17.9 | H20: 7667446 | I20: 3.498043073
A21: 2.教育科學文化支出 | B21: 486299944 | C21: 36.7 | D21: 477159800 | E21: 37.09 | F21: 434143636 | G21: 36.31 | H21: 9140144 | I21: 1.915531023
A22: 3.經濟發展支出 | B22: 210302320 | C22: 15.88 | D22: 205700452 | E22: 15.99 | F22: 202208519 | G22: 16.92 | H22: 4601868 | I22: 2.23716961
A23: 4.社會福利支出 | B23: 233257164 | C23: 17.61 | D23: 215555789 | E23: 16.75 | F23: 200664683 | G23: 16.79 | H23: 17701375 | I23: 8.211969199
A24: 5.社區發展及環境保護支出 | B24: 72471322 | C24: 5.47 | D24: 73222829 | E24: 5.69 | F24: 73931075 | G24: 6.19 | H24: -751507 | I24: -1.026328824
A25: 6.退休撫卹支出 | B25: 60529202 | C25: 4.57 | D25: 61420694 | E25: 4.77 | F25: 53706895 | G25: 4.49 | H25: -891492 | I25: -1.451452177
A26: 7.債務支出 | B26: 7962358 | C26: 0.6 | D26: 8358688 | E26: 0.65 | F26: 5560644 | G26: 0.47 | H26: -396330 | I26: -4.7415336
A27: 8.補助及其他支出 | B27: 26974079 | C27: 2.04 | D27: 26038380 | E27: 2.02 | F27: 11064602 | G27: 0.93 | H27: 935699 | I27: 3.593537693
A29: 三、歲入歲出餘絀 | B29: -61113334 | D29: -69954132 | F29: 15308831 | H29: 8840798

Sheet 收支總
D1: 各直轄市及縣(市) | E1: 總預算彙編
D2: 歲 入 歲 出 性 質 及 餘 | E2: 絀 簡 明 比 較 分 析 表
D3: 中 華 民 國 | E3: =簡明總!E3 -> 111 年 度 | I3: 單位：新臺幣千元
A4: 項 目 | B4: 本 年 度 預 算 數 | D4: 上 年 度 預 算 | E4: 數 | F4: 前 年 度 決 算 數 | H4: 本年度與上年度比較
A5: 一、經常門 | B5: 金 額 | C5: 百分比 | D5: 金 額 | E5: 百分比 | F5: 金 額 | G5: 百分比 | H5: 金 額 | I5: 增加率
A6: (一)歲入 | B6: 1255678783 | C6: 100 | D6: 1200173354 | E6: 100 | F6: 1200500568 | G6: 100 | H6: 55505429 | I6: 4.62
A7: 1.直接稅收入 | B7: 392516769 | C7: 31.26 | D7: 368532682 | E7: 30.71 | F7: 385792816 | G7: 32.14 | H7: 23984087 | I7: 6.51
A8: 2.間接稅收入 | B8: 257898825 | C8: 20.54 | D8: 253425025 | E8: 21.12 | F8: 252567770 | G8: 21.04 | H8: 4473800 | I8: 1.77
A9: 3.賦稅外收入 | B9: 605263189 | C9: 48.2 | D9: 578215647 | E9: 48.17 | F9: 562139982 | G9: 46.82 | H9: 27047542 | I9: 4.68
A10: (二)歲出 | B10: 1047705371 | C10: 100 | D10: 1008375604 | E10: 100 | F10: 939495919 | G10: 100 | H10: 39329767 | I10: 3.9
A11: 1.一般經常支出 | B11: 1033773001 | C11: 98.67 | D11: 994653106 | E11: 98.64 | F11: 932828633 | G11: 99.29 | H11: 39119895 | I11: 3.93
A12: 2.債務利息及事務支出 | B12: 7962358 | C12: 0.76 | D12: 8358688 | E12: 0.83 | F12: 5560644 | G12: 0.59 | H12: -396330 | I12: -4.74
A13: 3.預備金 | B13: 5970012 | C13: 0.57 | D13: 5363810 | E13: 0.53 | F13: 1106642 | G13: 0.12 | H13: 606202 | I13: 11.3
A14: (三)經常門賸餘 | B14: 207973412 | D14: 191797750 | F14: 261004649 | H14: 16175662
A16: 二、資本門
A17: (一)歲入 | B17: 7864159 | C17: 100 | D17: 16521587 | E17: 100 | F17: 10034149 | G17: 100 | H17: -8657428 | I17: -52.4
A18: 1.減少資產 | B18: 7016159 | C18: 89.22 | D18: 15873587 | E18: 96.08 | F18: 9434540 | G18: 94.02 | H18: -8857428 | I18: -55.8
A19: 2.收回投資 | B19: 848000 | C19: 10.78 | D19: 648000 | E19: 3.92 | F19: 599609 | G19: 5.98 | H19: 200000 | I19: 30.86419753
A20: (二)歲出 | B20: 276950905 | C20: 100 | D20: 278273469 | E20: 100 | F20: 255729967 | G20: 100 | H20: -1322564 | I20: -0.48
A21: 1.增置或擴充改良資產 | B21: 241631898 | C21: 87.25 | D21: 238309930 | E21: 85.64 | F21: 231673352 | G21: 90.59 | H21: 3321968 | I21: 1.39
A22: 2.增加投資 | B22: 22550925 | C22: 8.14 | D22: 27378461 | E22: 9.84 | F22: 19582757 | G22: 7.66 | H22: -4827536 | I22: -17.63
A23: 3.預備金 | B23: 12768082 | C23: 4.61 | D23: 12585078 | E23: 4.52 | F23: 4473858 | G23: 1.75 | H23: 183004 | I23: 1.45
A24: (三)資本門差短 | B24: -269086746 | D24: -261751882 | F24: -245695818 | H24: -7334864
A25: 三、歲入歲出餘絀 | B25: -61113334 | D25: -69954132 | F25: 15308831 | H25: 8840798

Sheet 收支細
E1: 各直轄市及縣 | F1: (市)總預算 | O1: 各直轄市及縣 | P1: (市)總預算
E2: =收支總!D2 -> 歲 入 歲 出 性 質 及 餘 | F2: 絀 簡 明 分 析 表 | O2: =收支總!D2 -> 歲 入 歲 出 性 質 及 餘 | P2: =F2 -> 絀 簡 明 分 析 表 | T2: （續一）
E3: 中 華 民 國 | F3: =簡明總!E3 -> 111 年 度 | J3: 單位：新臺幣千元 | O3: 中 華 民 國 | P3: =F3 -> 111 年 度 | T3: 單位：新臺幣千元
A4: 市縣別 | C4: 經常門 | K4: 市縣別 | M4: 資本 | P4: 門 | T4: 歲入歲出餘絀
B5: (一)歲入 | C5: 1.直接稅收入 | D5: 2.間接稅收入 | E5: 3.賦稅外收入 | F5: (二)歲出 | G5: 1.一般經常支出 | H5: 2.債務利息及事務支出 | I5: 3.預備金 | J5: (三)經常門賸餘 | L5: (一)歲入 | M5: 1.減少資產 | N5: 2.收回投資 | O5: (二)歲出 | P5: 1.增置或擴充改良資產 | Q5: 2.增加投資 | R5: 預備金 | S5: (三)資本門差短
A6: 總 計 | B6: 1255678783 | C6: 392516769 | D6: 257898825 | E6: 605263189 | F6: 1047705371 | G6: 1033773001 | H6: 7962358 | I6: 5970012 | J6: 207973412 | K6: 總 計 | L6: 7864159 | M6: 7016159 | N6: 848000 | O6: 276950905 | P6: 241631898 | Q6: 22550925 | R6: 12768082 | S6: -269086746 | T6: -61113334
A7: 直轄市合計 | B7: 850433245 | C7: 323493079 | D7: 186772220 | E7: 340167946 | F7: 717502055 | G7: 707547306 | H7: 5645218 | I7: 4309531 | J7: 132931190 | K7: 直轄市合計 | L7: 5804368 | M7: 5156368 | N7: 648000 | O7: 186331660 | P7: 156260016 | Q7: 21760477 | R7: 8311167 | S7: -180527292 | T7: -47596102
A8: 新北市 | B8: 171053298 | C8: 70535398 | D8: 33462598 | E8: 67055302 | F8: 149818218 | G8: 147667870 | H8: 1036000 | I8: 1114348 | J8: 21235080 | K8: 新北市 | L8: 1429543 | M8: 1429543 | N8: 0 | O8: 36664623 | P8: 25977835 | Q8: 9186788 | R8: 1500000 | S8: -35235080 | T8: -14000000
A9: 臺北市 | B9: 168580314 | C9: 68958000 | D9: 59715052 | E9: 39907262 | F9: 138543567 | G9: 136548548 | H9: 597287 | I9: 1397732 | J9: 30036747 | K9: 臺北市 | L9: 2298340 | M9: 1650340 | N9: 648000 | O9: 33039899 | P9: 28739201 | Q9: 3030698 | R9: 1270000 | S9: -30741559 | T9: -704812
A10: 桃園市 | B10: 127578045 | C10: 44890720 | D10: 23136102 | E10: 59551223 | F10: 102355497 | G10: 101560942 | H10: 394555 | I10: 400000 | J10: 25222548 | K10: 桃園市 | L10: 82955 | M10: 82955 | N10: 0 | O10: 38695503 | P10: 29256303 | Q10: 8020200 | R10: 1419000 | S10: -38612548 | T10: -13390000
A11: 臺中市 | B11: 141283078 | C11: 50743312 | D11: 29602728 | E11: 60937038 | F11: 122215094 | G11: 120802886 | H11: 870000 | I11: 542208 | J11: 19067984 | K11: 臺中市 | L11: 318029 | M11: 318029 | N11: 0 | O11: 28985818 | P11: 26086789 | Q11: 1329029 | R11: 1570000 | S11: -28667789 | T11: -9599805
A12: 臺南市 | B12: 97958278 | C12: 29947449 | D12: 19782790 | E12: 48228039 | F12: 78804596 | G12: 77737736 | H12: 516000 | I12: 550860 | J12: 19153682 | K12: 臺南市 | L12: 100000 | M12: 100000 | N12: 0 | O12: 23261218 | P12: 22338218 | Q12: 1000 | R12: 922000 | S12: -23161218 | T12: -4007536
A13: 高雄市 | B13: 143980232 | C13: 58418200 | D13: 21072950 | E13: 64489082 | F13: 125765083 | G13: 123229324 | H13: 2231376 | I13: 304383 | J13: 18215149 | K13: 高雄市 | L13: 1575501 | M13: 1575501 | N13: 0 | O13: 25684599 | P13: 23861670 | Q13: 192762 | R13: 1630167 | S13: -24109098 | T13: -5893949
A14: 縣市合計 | B14: 405245538 | C14: 69023690 | D14: 71126605 | E14: 265095243 | F14: 330203316 | G14: 326225695 | H14: 2317140 | I14: 1660481 | J14: 75042222 | K14: 縣市合計 | L14: 2059791 | M14: 1859791 | N14: 200000 | O14: 90619245 | P14: 85371882 | Q14: 790448 | R14: 4456915 | S14: -88559454 | T14: -13517232
A15: 宜蘭縣 | B15: 26117949 | C15: 4511007 | D15: 3991173 | E15: 17615769 | F15: 21935564 | G15: 21709154 | H15: 146410 | I15: 80000 | J15: 4182385 | K15: 宜蘭縣 | L15: 160 | M15: 160 | N15: 0 | O15: 4718076 | P15: 4451532 | Q15: 0 | R15: 266544 | S15: -4717916 | T15: -535531
A16: 新竹縣 | B16: 30760276 | C16: 7175561 | D16: 5173862 | E16: 18410853 | F16: 24209559 | G16: 23597460 | H16: 200000 | I16: 412099 | J16: 6550717 | K16: 新竹縣 | L16: 600011 | M16: 600011 | N16: 0 | O16: 8150728 | P16: 7827078 | Q16: 0 | R16: 323650 | S16: -7550717 | T16: -1000000
A17: 苗栗縣 | B17: 21804172 | C17: 4885220 | D17: 5159685 | E17: 11759267 | F17: 18731681 | G17: 18181681 | H17: 500000 | I17: 50000 | J17: 3072491 | K17: 苗栗縣 | L17: 0 | M17: 0 | N17: 0 | O17: 2835092 | P17: 2619342 | Q17: 0 | R17: 215750 | S17: -2835092 | T17: 237399
A18: 彰化縣 | B18: 53492768 | C18: 8373953 | D18: 10460859 | E18: 34657956 | F18: 44784684 | G18: 44219788 | H18: 367896 | I18: 197000 | J18: 8708084 | K18: 彰化縣 | L18: 210000 | M18: 10000 | N18: 200000 | O18: 11819709 | P18: 10808625 | Q18: 511084 | R18: 500000 | S18: -11609709 | T18: -2901625
A19: 南投縣 | B19: 29202000 | C19: 3994537 | D19: 5372941 | E19: 19834522 | F19: 23601224 | G19: 23276867 | H19: 94357 | I19: 230000 | J19: 5600776 | K19: 南投縣 | L19: 2000 | M19: 2000 | N19: 0 | O19: 5303776 | P19: 5014726 | Q19: 0 | R19: 289050 | S19: -5301776 | T19: 299000
A20: 雲林縣 | B20: 36663633 | C20: 5784360 | D20: 6725827 | E20: 24153446 | F20: 28653927 | G20: 28463131 | H20: 176837 | I20: 13959 | J20: 8009706 | K20: 雲林縣 | L20: 0 | M20: 0 | N20: 0 | O20: 8653865 | P20: 8130787 | Q20: 70000 | R20: 453078 | S20: -8653865 | T20: -644159
A21: 嘉義縣 | B21: 28318197 | C21: 3813049 | D21: 4944704 | E21: 19560444 | F21: 21827290 | G21: 21570851 | H21: 250000 | I21: 6439 | J21: 6490907 | K21: 嘉義縣 | L21: 35000 | M21: 35000 | N21: 0 | O21: 6525907 | P21: 6146667 | Q21: 15640 | R21: 363600 | S21: -6490907 | T21: 0
A22: 屏東縣 | B22: 45985080 | C22: 6250984 | D22: 7827163 | E22: 31906933 | F22: 36354877 | G22: 36129877 | H22: 150000 | I22: 75000 | J22: 9630203 | K22: 屏東縣 | L22: 1131920 | M22: 1131920 | N22: 0 | O22: 10762123 | P22: 10288117 | Q22: 0 | R22: 474006 | S22: -9630203 | T22: 0
A23: 臺東縣 | B23: 19373313 | C23: 2095723 | D23: 2597923 | E23: 14679667 | F23: 17212192 | G23: 17072192 | H23: 100000 | I23: 40000 | J23: 2161121 | K23: 臺東縣 | L23: 20001 | M23: 20001 | N23: 0 | O23: 3633819 | P23: 3363819 | Q23: 0 | R23: 270000 | S23: -3613818 | T23: -1452697
A24: 花蓮縣 | B24: 25616878 | C24: 3164684 | D24: 4053855 | E24: 18398339 | F24: 20486655 | G24: 20282255 | H24: 127200 | I24: 77200 | J24: 5130223 | K24: 花蓮縣 | L24: 10200 | M24: 10200 | N24: 0 | O24: 5770061 | P24: 5517061 | Q24: 0 | R24: 253000 | S24: -5759861 | T24: -629638
A25: 澎湖縣 | B25: 11711955 | C25: 1397385 | D25: 1576709 | E25: 8737861 | F25: 9163199 | G25: 9083459 | H25: 16740 | I25: 63000 | J25: 2548756 | K25: 澎湖縣 | L25: 10000 | M25: 10000 | N25: 0 | O25: 3537963 | P25: 3367599 | Q25: 43057 | R25: 127307 | S25: -3527963 | T25: -979207
A26: 基隆市 | B26: 21164870 | C26: 4409718 | D26: 3454987 | E26: 13300165 | F26: 17256439 | G26: 17152939 | H26: 60000 | I26: 43500 | J26: 3908431 | K26: 基隆市 | L26: 5228 | M26: 5228 | N26: 0 | O26: 3898160 | P26: 3581993 | Q26: 100667 | R26: 215500 | S26: -3892932 | T26: 15499
A27: 新竹市 | B27: 23978799 | C27: 8740207 | D27: 4931079 | E27: 10307513 | F27: 20302126 | G27: 20028256 | H27: 120000 | I27: 153870 | J27: 3676673 | K27: 新竹市 | L27: 25000 | M27: 25000 | N27: 0 | O27: 5313177 | P27: 4893177 | Q27: 0 | R27: 420000 | S27: -5288177 | T27: -1611504
A28: 嘉義市 | B28: 15272953 | C28: 3175519 | D28: 2477851 | E28: 9619583 | F28: 13340236 | G28: 13246136 | H28: 7100 | I28: 87000 | J28: 1932717 | K28: 嘉義市 | L28: 10000 | M28: 10000 | N28: 0 | O28: 3282056 | P28: 3172056 | Q28: 0 | R28: 110000 | S28: -3272056 | T28: -1339339
A29: 金門縣 | B29: 11176865 | C29: 1022468 | D29: 2011357 | E29: 8143040 | F29: 9586272 | G29: 9466160 | H29: 0 | I29: 120112 | J29: 1590593 | K29: 金門縣 | L29: 271 | M29: 271 | N29: 0 | O29: 4348489 | P29: 4180489 | Q29: 50000 | R29: 118000 | S29: -4348218 | T29: -2757625
A30: 連江縣 | B30: 4605830 | C30: 229315 | D30: 366630 | E30: 4009885 | F30: 2757391 | G30: 2745489 | H30: 600 | I30: 11302 | J30: 1848439 | K30: 連江縣 | L30: 0 | M30: 0 | N30: 0 | O30: 2066244 | P30: 2008814 | Q30: 0 | R30: 57430 | S30: -2066244 | T30: -217805

Sheet 融資總
A1: 各直轄市及縣(市)總預算彙編
A2: 收 支 簡 明 比 較 分 析 表
B3: =[1]融資總!$B$3:$C$3 -> 中 華 民 國 111 年 度 | E3: 單位：新臺幣千元
A4: 項 目 | B4: 本年度 預算數 | C4: 上年度 預算數 | D4: 前年度 決算數 | E4: 本年度與上 年度比較
A5: 一、收入合計 | B5: 1713695527 | C5: 1699667567 | D5: 1558335729 | E5: 14027960
A6: (一)歲入 | B6: 1263542942 | C6: 1216694941 | D6: 1210534717 | E6: 46848001
A7: (二)債務之舉借 | B7: 439158987 | C7: 462464890 | D7: 344600552 | E7: -23305903
A8: (三)預計移用以前年度歲計 | B8: 10993598 | C8: 20507736 | D8: 3200460 | E8: -9514138
A9: 賸餘調節因應數
A10: 二、支出合計 | B10: 1713688128 | C10: 1699661656 | D10: 1537355134 | E10: 14026472
A11: (一)歲出 | B11: 1324656276 | C11: 1286649073 | D11: 1195225886 | E11: 38007203
A12: (二)債務之償還 | B12: 389031852 | C12: 413012583 | D12: 342129248 | E12: -23980731
A13: 三、收支賸餘 | B13: 7399 | C13: 5911 | D13: 20980595 | E13: 1488
A15: =簡明總!A30 -> 0 | F15: 勾稽 條件
A16: 歲入 | B16: =B6-簡明總!B6 -> 0 | C16: =C6-簡明總!D6 -> 0 | D16: =D6-簡明總!F6 -> 0 | F16: =SUM(B16:D17) -> 0
A17: 歲出 | B17: =B11-簡明總!B19 -> 0 | C17: =C11-簡明總!D19 -> 0 | D17: =D11-簡明總!F19 -> 0

Sheet 融資細
C1: =融資總!A1 -> 各直轄市及縣(市)總預算彙編 | H1: =C1 -> 各直轄市及縣(市)總預算彙編
C2: 收 支 簡 明 分 析 表 | I2: =C2 -> 收 支 簡 明 分 析 表 | K2: (續一)
D3: =融資總!B3 -> 中 華 民 國 111 年 度 | F3: =K3 -> 單位：新臺幣千元 | I3: =D3 -> 中 華 民 國 111 年 度 | K3: 單位：新臺幣千元
B5: 科 目 | C5: 一、收入合計 | D5: (一)歲入 | E5: (二)債務之舉借 | F5: (三)預計移用以前年度歲計賸餘調節因應數 | G5: 科 目 | H5: 二、支出合計 | I5: (一)歲出 | J5: (二)債務之償還 | K5: 三、收支賸餘
A6: 1 | B6: 總 計 | C6: 1713695527 | D6: 1263542942 | E6: 439158987 | F6: 10993598 | G6: 總 計 | H6: 1713688128 | I6: 1324656276 | J6: 389031852 | K6: 7399
B7: 直轄市合計 | C7: 1202747071 | D7: 856237613 | E7: 338291290 | F7: 8218168 | G7: 直轄市合計 | H7: 1202747071 | I7: 903833715 | J7: 298913356 | K7: 0
A8: 新北市 | B8: 新北市 | C8: 298482841 | D8: 172482841 | E8: 126000000 | F8: 0 | G8: 新北市 | H8: 298482841 | I8: 186482841 | J8: 112000000 | K8: 0
A9: 臺北市 | B9: 臺北市 | C9: 179096822 | D9: 170878654 | E9: 0 | F9: 8218168 | G9: 臺北市 | H9: 179096822 | I9: 171583466 | J9: 7513356 | K9: 0
A10: 桃園市 | B10: 桃園市 | C10: 191051000 | D10: 127661000 | E10: 63390000 | F10: 0 | G10: 桃園市 | H10: 191051000 | I10: 141051000 | J10: 50000000 | K10: 0
A11: 臺中市 | B11: 臺中市 | C11: 254200912 | D11: 141601107 | E11: 112599805 | F11: 0 | G11: 臺中市 | H11: 254200912 | I11: 151200912 | J11: 103000000 | K11: 0
A12: 臺南市 | B12: 臺南市 | C12: 124465814 | D12: 98058278 | E12: 26407536 | F12: 0 | G12: 臺南市 | H12: 124465814 | I12: 102065814 | J12: 22400000 | K12: 0
A13: 高雄市 | B13: 高雄市 | C13: 155449682 | D13: 145555733 | E13: 9893949 | F13: 0 | G13: 高雄市 | H13: 155449682 | I13: 151449682 | J13: 4000000 | K13: 0
B14: 縣市合計 | C14: 510948456 | D14: 407305329 | E14: 100867697 | F14: 2775430 | G14: 縣市合計 | H14: 510941057 | I14: 420822561 | J14: 90118496 | K14: 7399
A15: 宜蘭縣 | B15: 宜蘭縣 | C15: 38642185 | D15: 26118109 | E15: 12524076 | F15: 0 | G15: 宜蘭縣 | H15: 38642185 | I15: 26653640 | J15: 11988545 | K15: 0
A16: 新竹縣 | B16: 新竹縣 | C16: 41490287 | D16: 31360287 | E16: 10130000 | F16: 0 | G16: 新竹縣 | H16: 41490287 | I16: 32360287 | J16: 9130000 | K16: 0
A17: 苗栗縣 | B17: 苗栗縣 | C17: 30474172 | D17: 21804172 | E17: 8670000 | F17: 0 | G17: 苗栗縣 | H17: 30466773 | I17: 21566773 | J17: 8900000 | K17: 7399
A18: 彰化縣 | B18: 彰化縣 | C18: 66737727 | D18: 53702768 | E18: 13034959 | F18: 0 | G18: 彰化縣 | H18: 66737727 | I18: 56604393 | J18: 10133334 | K18: 0
A19: 南投縣 | B19: 南投縣 | C19: 32904813 | D19: 29204000 | E19: 3700813 | F19: 0 | G19: 南投縣 | H19: 32904813 | I19: 28905000 | J19: 3999813 | K19: 0
A20: 雲林縣 | B20: 雲林縣 | C20: 42419574 | D20: 36663633 | E20: 5755941 | F20: 0 | G20: 雲林縣 | H20: 42419574 | I20: 37307792 | J20: 5111782 | K20: 0
A21: 嘉義縣 | B21: 嘉義縣 | C21: 35353197 | D21: 28353197 | E21: 7000000 | F21: 0 | G21: 嘉義縣 | H21: 35353197 | I21: 28353197 | J21: 7000000 | K21: 0
A22: 屏東縣 | B22: 屏東縣 | C22: 53817000 | D22: 47117000 | E22: 6700000 | F22: 0 | G22: 屏東縣 | H22: 53817000 | I22: 47117000 | J22: 6700000 | K22: 0
A23: 臺東縣 | B23: 臺東縣 | C23: 24993820 | D23: 19393314 | E23: 5600506 | F23: 0 | G23: 臺東縣 | H23: 24993820 | I23: 20846011 | J23: 4147809 | K23: 0
A24: 花蓮縣 | B24: 花蓮縣 | C24: 32694596 | D24: 25627078 | E24: 7067518 | F24: 0 | G24: 花蓮縣 | H24: 32694596 | I24: 26256716 | J24: 6437880 | K24: 0
A25: 澎湖縣 | B25: 澎湖縣 | C25: 13701162 | D25: 11721955 | E25: 1979207 | F25: 0 | G25: 澎湖縣 | H25: 13701162 | I25: 12701162 | J25: 1000000 | K25: 0
A26: 基隆市 | B26: 基隆市 | C26: 25598599 | D26: 21170098 | E26: 4428501 | F26: 0 | G26: 基隆市 | H26: 25598599 | I26: 21154599 | J26: 4444000 | K26: 0
A27: 新竹市 | B27: 新竹市 | C27: 36725303 | D27: 24003799 | E27: 12721504 | F27: 0 | G27: 新竹市 | H27: 36725303 | I27: 25615303 | J27: 11110000 | K27: 0
A28: 嘉義市 | B28: 嘉義市 | C28: 16637625 | D28: 15282953 | E28: 1354672 | F28: 0 | G28: 嘉義市 | H28: 16637625 | I28: 16622292 | J28: 15333 | K28: 0
A29: 金門縣 | B29: 金門縣 | C29: 13934761 | D29: 11177136 | E29: 0 | F29: 2757625 | G29: 金門縣 | H29: 13934761 | I29: 13934761 | J29: 0 | K29: 0
A30: 連江縣 | B30: 連江縣 | C30: 4823635 | D30: 4605830 | E30: 200000 | F30: 17805 | G30: 連江縣 | H30: 4823635 | I30: 4823635 | J30: 0 | K30: 0

Sheet 來源別
B1: 各直轄市及縣(市)總預算 | I1: 各直轄市及縣 | J1: (市)總預算 | R1: 各直轄市及縣 | S1: (市)總預算 | Z1: 各直轄市及縣 | AA1: (市)總預算 | AJ1: 各直轄市及縣 | AK1: (市)總預算 | AR1: 各直轄市及縣 | AS1: (市)總預算
B2: 歲入來源別預算總表 | I2: 歲入來源別 | J2: 預算總表 | M2: (續一) | R2: 歲入來源別 | S2: 預算總表 | V2: (續二) | Z2: 歲入來源別 | AA2: 預算總表 | AE2: (續三) | AJ2: 歲入來源別 | AK2: 預算總表 | AN2: (續四) | AR2: 歲入來源別 | AS2: 預算總表 | AX2: (續五)
B3: 經資門併計 | C3: =融資總!B3 -> 中 華 民 國 111 年 度 | E3: 單位：新臺幣千元 | F3: 經資門併計 | I3: 中華民國 | J3: =簡明總!#REF! ->  | M3: 單位：新臺幣千元 | N3: 經資門併計 | R3: 中華民國 | S3: =J3 ->  | V3: 單位：新臺幣千元 | W3: 經資門併計 | Z3: 中華民國 | AA3: =S3 ->  | AE3: 單位：新臺幣千元 | AF3: 經資門併計 | AJ3: 中華民國 | AK3: =AA3 ->  | AN3: 單位：新臺幣千元 | AO3: 經資門併計 | AR3: 中華民國 | AS3: =AK3 ->  | AX3: 單位：新臺幣千元
B5: 科 目 | C5: 合 計 | D5: 稅課收入 | E5: 遺產及贈與稅 | F5: 科 目 | G5: 菸酒稅 | H5: 印花稅 | I5: 使用牌照稅 | J5: 土地稅 | K5: 房屋稅 | L5: 契稅 | M5: 娛樂稅 | N5: 科 目 | O5: 統籌分配稅 | P5: 特別稅課 | Q5: 臨時稅課 | R5: 附加稅課 | S5: 工程受益 費收入 | T5: 罰款及賠償收入 | U5: 罰金罰鍰及怠金 | V5: 沒入及沒收財物 | W5: 科 目 | X5: 賠償收入 | Y5: 規費收入 | Z5: 行政規費收入 | AA5: 使用規費收入 | AB5: 信託管理收入 | AC5: 財產收入 | AD5: 財產孳息 | AE5: 財產售價 | AF5: 科 目 | AG5: 財產作價 | AH5: 投資收回 | AI5: 廢舊物資售價 | AJ5: 營業盈餘及 事業收入 | AK5: 營業基金盈餘繳庫 | AL5: 非營業特種基金 賸餘繳庫 | AM5: 投資收益 | AN5: 補助及協助收入 | AO5: 科 目 | AP5: 上級政府 補助收入 | AQ5: 地方政府 協助收入 | AR5: 捐獻及 贈與收入 | AS5: 捐獻收入 | AT5: 贈與收入 | AU5: 自治稅捐收入 | AV5: 其他收入 | AW5: 學雜費收入 | AX5: 雜項收入
B6: 款 | D6: 1 | F6: 款 | N6: 款 | S6: 2 | T6: 3 | W6: 款 | Y6: 4 | AB6: 5 | AC6: 6 | AF6: 款 | AJ6: 7 | AN6: 8 | AO6: 款 | AR6: 9 | AU6: 11 | AV6: 10
A7: 縣市 | B7: 項 | E7: 1 | F7: 項 | G7: 2 | H7: 3 | I7: 4 | J7: 5 | K7: 6 | L7: 7 | M7: 8 | N7: 項 | O7: 9 | P7: 10 | Q7: 11 | R7: 12 | U7: 1 | V7: 2 | W7: 項 | X7: 3 | Z7: 1 | AA7: 2 | AD7: 1 | AE7: 2 | AF7: 項 | AG7: 3 | AH7: 4 | AI7: 5 | AK7: 1 | AL7: 2 | AM7: 3 | AO7: 項 | AP7: 1 | AQ7: 2 | AS7: 1 | AT7: 2 | AW7: 1 | AX7: 2
A8: 1 | B8: 總 計 | C8: 1263542942 | D8: 650415594 | E8: 14198167 | F8: 總 計 | G8: 8506495 | H8: 12694424 | I8: 66123422 | J8: 186543878 | K8: 74044474 | L8: 13400042 | M8: 1281332 | N8: 總 計 | O8: 272791842 | P8: 831518 | Q8: 0 | R8: 0 | S8: 2 | T8: 18883262 | U8: 18352030 | V8: 48666 | W8: 總 計 | X8: 482566 | Y8: 37834897 | Z8: 10386262 | AA8: 27448635 | AB8: 182 | AC8: 16075967 | AD8: 7763346 | AE8: 5515566 | AF8: 總 計 | AG8: 1500593 | AH8: 848000 | AI8: 448462 | AJ8: 46661600 | AK8: 501465 | AL8: 41351539 | AM8: 4808596 | AN8: 460261502 | AO8: 總 計 | AP8: 460161953 | AQ8: 99549 | AR8: 6750328 | AS8: 6750326 | AT8: 2 | AU8: 0 | AV8: 26659608 | AW8: 47941 | AX8: 26611667
B9: 直轄市合計 | C9: 856237613 | D9: 510265299 | E9: 13591414 | F9: 直轄市合計 | G9: 5352114 | H9: 10616438 | I9: 45751800 | J9: 162467017 | K9: 65414271 | L9: 12639825 | M9: 1196332 | N9: 直轄市合計 | O9: 193125428 | P9: 110660 | Q9: 0 | R9: 0 | S9: 0 | T9: 14644210 | U9: 14216027 | V9: 42829 | W9: 直轄市合計 | X9: 385354 | Y9: 33307078 | Z9: 7864780 | AA9: 25442298 | AB9: 0 | AC9: 12086095 | AD9: 5982316 | AE9: 3655775 | AF9: 直轄市合計 | AG9: 1500593 | AH9: 648000 | AI9: 299411 | AJ9: 42896832 | AK9: 443064 | AL9: 37646938 | AM9: 4806830 | AN9: 217356677 | AO9: 直轄市合計 | AP9: 217356677 | AQ9: 0 | AR9: 3663746 | AS9: 3663746 | AT9: 0 | AU9: 0 | AV9: 22017676 | AW9: 200 | AX9: 22017476
A10: 新北市 | B10: 新北市 | C10: 172482841 | D10: 103997996 | E10: 2353414 | F10: 新北市 | G10: 1318404 | H10: 1354000 | I10: 9170000 | J10: 36609702 | K10: 13500000 | L10: 3336000 | M10: 300000 | N10: 新北市 | O10: 36056476 | P10: 0 | Q10: 0 | R10: 0 | S10: 0 | T10: 3695021 | U10: 3529536 | V10: 14960 | W10: 新北市 | X10: 150525 | Y10: 6983839 | Z10: 1895156 | AA10: 5088683 | AB10: 0 | AC10: 2277830 | AD10: 818438 | AE10: 178123 | AF10: 新北市 | AG10: 1251420 | AH10: 0 | AI10: 29849 | AJ10: 6059867 | AK10: 0 | AL10: 6000000 | AM10: 59867 | AN10: 43720124 | AO10: 新北市 | AP10: 43720124 | AQ10: 0 | AR10: 1002251 | AS10: 1002251 | AT10: 0 | AU10: 0 | AV10: 4745913 | AW10: 0 | AX10: 4745913
A11: 臺北市 | B11: 臺北市 | C11: 170878654 | D11: 128673052 | E11: 6458000 | F11: 臺北市 | G11: 851173 | H11: 5100000 | I11: 7400000 | J11: 44800000 | K11: 15900000 | L11: 1800000 | M11: 210000 | N11: 臺北市 | O11: 46153879 | P11: 0 | Q11: 0 | R11: 0 | S11: 0 | T11: 3683002 | U11: 3547394 | V11: 17116 | W11: 臺北市 | X11: 118492 | Y11: 8226482 | Z11: 1713179 | AA11: 6513303 | AB11: 0 | AC11: 5559445 | AD11: 3173946 | AE11: 1650340 | AF11: 臺北市 | AG11: 0 | AH11: 648000 | AI11: 87159 | AJ11: 10935072 | AK11: 440132 | AL11: 5884107 | AM11: 4610833 | AN11: 11983033 | AO11: 臺北市 | AP11: 11983033 | AQ11: 0 | AR11: 126755 | AS11: 126755 | AT11: 0 | AU11: 0 | AV11: 1691813 | AW11: 200 | AX11: 1691613
A12: 桃園市 | B12: 桃園市 | C12: 127661000 | D12: 68026822 | E12: 1087000 | F12: 桃園市 | G12: 742059 | H12: 1050000 | I12: 6880000 | J12: 22800000 | K12: 9310000 | L12: 1900000 | M12: 236000 | N12: 桃園市 | O12: 23963103 | P12: 58660 | Q12: 0 | R12: 0 | S12: 0 | T12: 2284020 | U12: 2223522 | V12: 2146 | W12: 桃園市 | X12: 58352 | Y12: 3778486 | Z12: 1122534 | AA12: 2655952 | AB12: 0 | AC12: 382935 | AD12: 283407 | AE12: 81811 | AF12: 桃園市 | AG12: 1144 | AH12: 0 | AI12: 16573 | AJ12: 10010000 | AK12: 0 | AL12: 10010000 | AM12: 0 | AN12: 37747643 | AO12: 桃園市 | AP12: 37747643 | AQ12: 0 | AR12: 764820 | AS12: 764820 | AT12: 0 | AU12: 0 | AV12: 4666274 | AW12: 0 | AX12: 4666274
A13: 臺中市 | B13: 臺中市 | C13: 141601107 | D13: 80346040 | E13: 1523000 | F13: 臺中市 | G13: 922595 | H13: 1450000 | I13: 9400000 | J13: 24600000 | K13: 9850000 | L13: 2550000 | M13: 150000 | N13: 臺中市 | O13: 29900445 | P13: 0 | Q13: 0 | R13: 0 | S13: 0 | T13: 2046522 | U13: 2031983 | V13: 557 | W13: 臺中市 | X13: 13982 | Y13: 4979726 | Z13: 1382127 | AA13: 3597599 | AB13: 0 | AC13: 890090 | AD13: 528637 | AE13: 70000 | AF13: 臺中市 | AG13: 248029 | AH13: 0 | AI13: 43424 | AJ13: 10353384 | AK13: 0 | AL13: 10353384 | AM13: 0 | AN13: 37272115 | AO13: 臺中市 | AP13: 37272115 | AQ13: 0 | AR13: 361758 | AS13: 361758 | AT13: 0 | AU13: 0 | AV13: 5351472 | AW13: 0 | AX13: 5351472
A14: 臺南市 | B14: 臺南市 | C14: 98058278 | D14: 49730239 | E14: 870000 | F14: 臺南市 | G14: 613229 | H14: 556438 | I14: 5481800 | J14: 12997315 | K14: 6034271 | L14: 1043825 | M14: 107332 | N14: 臺南市 | O14: 22026029 | P14: 0 | Q14: 0 | R14: 0 | S14: 0 | T14: 848038 | U14: 827917 | V14: 10 | W14: 臺南市 | X14: 20111 | Y14: 3539492 | Z14: 672589 | AA14: 2866903 | AB14: 0 | AC14: 488717 | AD14: 292478 | AE14: 100000 | AF14: 臺南市 | AG14: 0 | AH14: 0 | AI14: 96239 | AJ14: 481261 | AK14: 2932 | AL14: 478309 | AM14: 20 | AN14: 41365871 | AO14: 臺南市 | AP14: 41365871 | AQ14: 0 | AR14: 183686 | AS14: 183686 | AT14: 0 | AU14: 0 | AV14: 1420974 | AW14: 0 | AX14: 1420974
A15: 高雄市 | B15: 高雄市 | C15: 145555733 | D15: 79491150 | E15: 1300000 | F15: 高雄市 | G15: 904654 | H15: 1106000 | I15: 7420000 | J15: 20660000 | K15: 10820000 | L15: 2010000 | M15: 193000 | N15: 高雄市 | O15: 35025496 | P15: 52000 | Q15: 0 | R15: 0 | S15: 0 | T15: 2087607 | U15: 2055675 | V15: 8040 | W15: 高雄市 | X15: 23892 | Y15: 5799053 | Z15: 1079195 | AA15: 4719858 | AB15: 0 | AC15: 2487078 | AD15: 885410 | AE15: 1575501 | AF15: 高雄市 | AG15: 0 | AH15: 0 | AI15: 26167 | AJ15: 5057248 | AK15: 0 | AL15: 4921138 | AM15: 136110 | AN15: 45267891 | AO15: 高雄市 | AP15: 45267891 | AQ15: 0 | AR15: 1224476 | AS15: 1224476 | AT15: 0 | AU15: 0 | AV15: 4141230 | AW15: 0 | AX15: 4141230
B16: 縣市合計 | C16: 407305329 | D16: 140150295 | E16: 606753 | F16: 縣市合計 | G16: 3154381 | H16: 2077986 | I16: 20371622 | J16: 24076861 | K16: 8630203 | L16: 760217 | M16: 85000 | N16: 縣市合計 | O16: 79666414 | P16: 720858 | Q16: 0 | R16: 0 | S16: 2 | T16: 4239052 | U16: 4136003 | V16: 5837 | W16: 縣市合計 | X16: 97212 | Y16: 4527819 | Z16: 2521482 | AA16: 2006337 | AB16: 182 | AC16: 3989872 | AD16: 1781030 | AE16: 1859791 | AF16: 縣市合計 | AG16: 0 | AH16: 200000 | AI16: 149051 | AJ16: 3764768 | AK16: 58401 | AL16: 3704601 | AM16: 1766 | AN16: 242904825 | AO16: 縣市合計 | AP16: 242805276 | AQ16: 99549 | AR16: 3086582 | AS16: 3086580 | AT16: 2 | AU16: 0 | AV16: 4641932 | AW16: 47741 | AX16: 4594191
A17: 宜蘭縣 | B17: 宜蘭縣 | C17: 26118109 | D17: 8502180 | E17: 0 | F17: 宜蘭縣 | G17: 148191 | H17: 142786 | I17: 1228852 | J17: 2013960 | K17: 609805 | L17: 0 | M17: 0 | N17: 宜蘭縣 | O17: 4301896 | P17: 56690 | Q17: 0 | R17: 0 | S17: 0 | T17: 338720 | U17: 330928 | V17: 170 | W17: 宜蘭縣 | X17: 7622 | Y17: 360770 | Z17: 173826 | AA17: 186944 | AB17: 0 | AC17: 52100 | AD17: 50890 | AE17: 160 | AF17: 宜蘭縣 | AG17: 0 | AH17: 0 | AI17: 1050 | AJ17: 164470 | AK17: 0 | AL17: 164470 | AM17: 0 | AN17: 15882299 | AO17: 宜蘭縣 | AP17: 15879171 | AQ17: 3128 | AR17: 5000 | AS17: 5000 | AT17: 0 | AU17: 0 | AV17: 812570 | AW17: 0 | AX17: 812570
A18: 新竹縣 | B18: 新竹縣 | C18: 31360287 | D18: 12349423 | E18: 0 | F18: 新竹縣 | G18: 186683 | H18: 370000 | I18: 1900000 | J18: 4197950 | K18: 853922 | L18: 0 | M18: 0 | N18: 新竹縣 | O18: 4840868 | P18: 0 | Q18: 0 | R18: 0 | S18: 0 | T18: 586408 | U18: 583851 | V18: 11 | W18: 新竹縣 | X18: 2546 | Y18: 417208 | Z18: 344849 | AA18: 72359 | AB18: 1 | AC18: 729958 | AD18: 104119 | AE18: 600011 | AF18: 新竹縣 | AG18: 0 | AH18: 0 | AI18: 25828 | AJ18: 1281340 | AK18: 40959 | AL18: 1240381 | AM18: 0 | AN18: 15601909 | AO18: 新竹縣 | AP18: 15545915 | AQ18: 55994 | AR18: 2342 | AS18: 2341 | AT18: 1 | AU18: 0 | AV18: 391698 | AW18: 0 | AX18: 391698
A19: 苗栗縣 | B19: 苗栗縣 | C19: 21804172 | D19: 10044905 | E19: 0 | F19: 苗栗縣 | G19: 177465 | H19: 129400 | I19: 1700000 | J19: 1826000 | K19: 595560 | L19: 0 | M19: 0 | N19: 苗栗縣 | O19: 5615820 | P19: 660 | Q19: 0 | R19: 0 | S19: 0 | T19: 299166 | U19: 295073 | V19: 0 | W19: 苗栗縣 | X19: 4093 | Y19: 246827 | Z19: 183990 | AA19: 62837 | AB19: 0 | AC19: 34672 | AD19: 30872 | AE19: 0 | AF19: 苗栗縣 | AG19: 0 | AH19: 0 | AI19: 3800 | AJ19: 100005 | AK19: 5 | AL19: 100000 | AM19: 0 | AN19: 10843844 | AO19: 苗栗縣 | AP19: 10843844 | AQ19: 0 | AR19: 0 | AS19: 0 | AT19: 0 | AU19: 0 | AV19: 234753 | AW19: 0 | AX19: 234753
A20: 彰化縣 | B20: 彰化縣 | C20: 53702768 | D20: 18834812 | E20: 0 | F20: 彰化縣 | G20: 414290 | H20: 260000 | I20: 3855000 | J20: 2635000 | K20: 1102967 | L20: 0 | M20: 0 | N20: 彰化縣 | O20: 10567555 | P20: 0 | Q20: 0 | R20: 0 | S20: 0 | T20: 528632 | U20: 522572 | V20: 240 | W20: 彰化縣 | X20: 5820 | Y20: 435191 | Z20: 367911 | AA20: 67280 | AB20: 0 | AC20: 405439 | AD20: 131864 | AE20: 10000 | AF20: 彰化縣 | AG20: 0 | AH20: 200000 | AI20: 63575 | AJ20: 324245 | AK20: 6383 | AL20: 317862 | AM20: 0 | AN20: 32892422 | AO20: 彰化縣 | AP20: 32892422 | AQ20: 0 | AR20: 151392 | AS20: 151392 | AT20: 0 | AU20: 0 | AV20: 130635 | AW20: 6702 | AX20: 123933
A21: 南投縣 | B21: 南投縣 | C21: 29204000 | D21: 9367478 | E21: 0 | F21: 南投縣 | G21: 160537 | H21: 78340 | I21: 1538844 | J21: 925000 | K21: 322116 | L21: 0 | M21: 0 | N21: 南投縣 | O21: 6262641 | P21: 80000 | Q21: 0 | R21: 0 | S21: 0 | T21: 239123 | U21: 237090 | V21: 1 | W21: 南投縣 | X21: 2032 | Y21: 190423 | Z21: 131573 | AA21: 58850 | AB21: 0 | AC21: 65300 | AD21: 49286 | AE21: 2000 | AF21: 南投縣 | AG21: 0 | AH21: 0 | AI21: 14014 | AJ21: 230295 | AK21: 0 | AL21: 230295 | AM21: 0 | AN21: 19006851 | AO21: 南投縣 | AP21: 19006851 | AQ21: 0 | AR21: 1 | AS21: 1 | AT21: 0 | AU21: 0 | AV21: 104529 | AW21: 41039 | AX21: 63490
A22: 雲林縣 | B22: 雲林縣 | C22: 36663633 | D22: 12510187 | E22: 0 | F22: 雲林縣 | G22: 221385 | H22: 165640 | I22: 2080600 | J22: 1790730 | K22: 704980 | L22: 0 | M22: 0 | N22: 雲林縣 | O22: 7496352 | P22: 50500 | Q22: 0 | R22: 0 | S22: 0 | T22: 327541 | U22: 312004 | V22: 0 | W22: 雲林縣 | X22: 15537 | Y22: 224179 | Z22: 175237 | AA22: 48942 | AB22: 0 | AC22: 16985 | AD22: 16985 | AE22: 0 | AF22: 雲林縣 | AG22: 0 | AH22: 0 | AI22: 0 | AJ22: 1207000 | AK22: 7000 | AL22: 1200000 | AM22: 0 | AN22: 21375947 | AO22: 雲林縣 | AP22: 21375947 | AQ22: 0 | AR22: 148850 | AS22: 148850 | AT22: 0 | AU22: 0 | AV22: 852944 | AW22: 0 | AX22: 852944
A23: 嘉義縣 | B23: 嘉義縣 | C23: 28353197 | D23: 8757753 | E23: 0 | F23: 嘉義縣 | G23: 163365 | H23: 70000 | I23: 1403000 | J23: 872800 | K23: 360000 | L23: 0 | M23: 0 | N23: 嘉義縣 | O23: 5881580 | P23: 7008 | Q23: 0 | R23: 0 | S23: 0 | T23: 182875 | U23: 172983 | V23: 3 | W23: 嘉義縣 | X23: 9889 | Y23: 313416 | Z23: 109004 | AA23: 204412 | AB23: 180 | AC23: 80283 | AD23: 41031 | AE23: 35000 | AF23: 嘉義縣 | AG23: 0 | AH23: 0 | AI23: 4252 | AJ23: 159505 | AK23: 0 | AL23: 159505 | AM23: 0 | AN23: 18780133 | AO23: 嘉義縣 | AP23: 18780133 | AQ23: 0 | AR23: 500 | AS23: 500 | AT23: 0 | AU23: 0 | AV23: 78552 | AW23: 0 | AX23: 78552
A24: 屏東縣 | B24: 屏東縣 | C24: 47117000 | D24: 14078147 | E24: 0 | F24: 屏東縣 | G24: 265796 | H24: 147000 | I24: 2150000 | J24: 1850000 | K24: 510000 | L24: 0 | M24: 0 | N24: 屏東縣 | O24: 8869351 | P24: 286000 | Q24: 0 | R24: 0 | S24: 0 | T24: 703810 | U24: 685001 | V24: 2702 | W24: 屏東縣 | X24: 16107 | Y24: 566052 | Z24: 345699 | AA24: 220353 | AB24: 0 | AC24: 1233801 | AD24: 77495 | AE24: 1131920 | AF24: 屏東縣 | AG24: 0 | AH24: 0 | AI24: 24386 | AJ24: 30000 | AK24: 0 | AL24: 30000 | AM24: 0 | AN24: 30210212 | AO24: 屏東縣 | AP24: 30210212 | AQ24: 0 | AR24: 14633 | AS24: 14633 | AT24: 0 | AU24: 0 | AV24: 280345 | AW24: 0 | AX24: 280345
A25: 臺東縣 | B25: 臺東縣 | C25: 19393314 | D25: 4693646 | E25: 0 | F25: 臺東縣 | G25: 70405 | H25: 40675 | I25: 491757 | J25: 442793 | K25: 101430 | L25: 0 | M25: 0 | N25: 臺東縣 | O25: 3536586 | P25: 10000 | Q25: 0 | R25: 0 | S25: 0 | T25: 147000 | U25: 145990 | V25: 0 | W25: 臺東縣 | X25: 1010 | Y25: 173464 | Z25: 121135 | AA25: 52329 | AB25: 0 | AC25: 62332 | AD25: 40201 | AE25: 20001 | AF25: 臺東縣 | AG25: 0 | AH25: 0 | AI25: 2130 | AJ25: 40791 | AK25: 3000 | AL25: 37791 | AM25: 0 | AN25: 14197318 | AO25: 臺東縣 | AP25: 14157398 | AQ25: 39920 | AR25: 7017 | AS25: 7017 | AT25: 0 | AU25: 0 | AV25: 71746 | AW25: 0 | AX25: 71746
A26: 花蓮縣 | B26: 花蓮縣 | C26: 25627078 | D26: 7218539 | E26: 0 | F26: 花蓮縣 | G26: 106092 | H26: 81500 | I26: 884280 | J26: 815725 | K26: 198069 | L26: 0 | M26: 0 | N26: 花蓮縣 | O26: 4902873 | P26: 230000 | Q26: 0 | R26: 0 | S26: 0 | T26: 245648 | U26: 231577 | V26: 2201 | W26: 花蓮縣 | X26: 11870 | Y26: 149741 | Z26: 102593 | AA26: 47148 | AB26: 0 | AC26: 67829 | AD26: 56909 | AE26: 10200 | AF26: 花蓮縣 | AG26: 0 | AH26: 0 | AI26: 720 | AJ26: 6567 | AK26: 0 | AL26: 6567 | AM26: 0 | AN26: 17719312 | AO26: 花蓮縣 | AP26: 17719312 | AQ26: 0 | AR26: 48000 | AS26: 48000 | AT26: 0 | AU26: 0 | AV26: 171442 | AW26: 0 | AX26: 171442
A27: 澎湖縣 | B27: 澎湖縣 | C27: 11721955 | D27: 2974094 | E27: 0 | F27: 澎湖縣 | G27: 34654 | H27: 13000 | I27: 71000 | J27: 213000 | K27: 44800 | L27: 0 | M27: 0 | N27: 澎湖縣 | O27: 2597640 | P27: 0 | Q27: 0 | R27: 0 | S27: 0 | T27: 20643 | U27: 19712 | V27: 1 | W27: 澎湖縣 | X27: 930 | Y27: 221027 | Z27: 87108 | AA27: 133919 | AB27: 0 | AC27: 30537 | AD27: 19434 | AE27: 10000 | AF27: 澎湖縣 | AG27: 0 | AH27: 0 | AI27: 1103 | AJ27: 5500 | AK27: 0 | AL27: 5500 | AM27: 0 | AN27: 8437122 | AO27: 澎湖縣 | AP27: 8436615 | AQ27: 507 | AR27: 13736 | AS27: 13736 | AT27: 0 | AU27: 0 | AV27: 19296 | AW27: 0 | AX27: 19296
A28: 基隆市 | B28: 基隆市 | C28: 21170098 | D28: 7864705 | E28: 115000 | F28: 基隆市 | G28: 120223 | H28: 72945 | I28: 789289 | J28: 1449985 | K28: 784804 | L28: 147773 | M28: 26000 | N28: 基隆市 | O28: 4358686 | P28: 0 | Q28: 0 | R28: 0 | S28: 0 | T28: 313981 | U28: 308951 | V28: 0 | W28: 基隆市 | X28: 5030 | Y28: 347482 | Z28: 106674 | AA28: 240808 | AB28: 0 | AC28: 224564 | AD28: 215514 | AE28: 5228 | AF28: 基隆市 | AG28: 0 | AH28: 0 | AI28: 3822 | AJ28: 15230 | AK28: 0 | AL28: 15230 | AM28: 0 | AN28: 11845836 | AO28: 基隆市 | AP28: 11845836 | AQ28: 0 | AR28: 59660 | AS28: 59660 | AT28: 0 | AU28: 0 | AV28: 498640 | AW28: 0 | AX28: 498640
A29: 新竹市 | B29: 新竹市 | C29: 24003799 | D29: 13671286 | E29: 377243 | F29: 新竹市 | G29: 147643 | H29: 403700 | I29: 1392000 | J29: 3754598 | K29: 1775000 | L29: 522444 | M29: 31000 | N29: 新竹市 | O29: 5267658 | P29: 0 | Q29: 0 | R29: 0 | S29: 1 | T29: 250416 | U29: 246497 | V29: 1 | W29: 新竹市 | X29: 3918 | Y29: 424467 | Z29: 163070 | AA29: 261397 | AB29: 0 | AC29: 819252 | AD29: 791550 | AE29: 25000 | AF29: 新竹市 | AG29: 0 | AH29: 0 | AI29: 2702 | AJ29: 87000 | AK29: 0 | AL29: 87000 | AM29: 0 | AN29: 8006418 | AO29: 新竹市 | AP29: 8006418 | AQ29: 0 | AR29: 400 | AS29: 400 | AT29: 0 | AU29: 0 | AV29: 744559 | AW29: 0 | AX29: 744559
A30: 嘉義市 | B30: 嘉義市 | C30: 15282953 | D30: 5653370 | E30: 114510 | F30: 嘉義市 | G30: 87002 | H30: 80000 | I30: 720000 | J30: 1119520 | K30: 630000 | L30: 90000 | M30: 28000 | N30: 嘉義市 | O30: 2784338 | P30: 0 | Q30: 0 | R30: 0 | S30: 1 | T30: 19851 | U30: 19630 | V30: 7 | W30: 嘉義市 | X30: 214 | Y30: 204209 | Z30: 76502 | AA30: 127707 | AB30: 1 | AC30: 50231 | AD30: 39713 | AE30: 10000 | AF30: 嘉義市 | AG30: 0 | AH30: 0 | AI30: 518 | AJ30: 101817 | AK30: 51 | AL30: 100000 | AM30: 1766 | AN30: 9084063 | AO30: 嘉義市 | AP30: 9084063 | AQ30: 0 | AR30: 51 | AS30: 50 | AT30: 1 | AU30: 0 | AV30: 169359 | AW30: 0 | AX30: 169359
A31: 金門縣 | B31: 金門縣 | C31: 11177136 | D31: 3033825 | E31: 0 | F31: 金門縣 | G31: 777242 | H31: 19000 | I31: 158000 | J31: 162500 | K31: 33750 | L31: 0 | M31: 0 | N31: 金門縣 | O31: 1883333 | P31: 0 | Q31: 0 | R31: 0 | S31: 0 | T31: 30148 | U31: 22104 | V31: 500 | W31: 金門縣 | X31: 7544 | Y31: 214649 | Z31: 24326 | AA31: 190323 | AB31: 0 | AC31: 103785 | AD31: 102363 | AE31: 271 | AF31: 金門縣 | AG31: 0 | AH31: 0 | AI31: 1151 | AJ31: 0 | AK31: 0 | AL31: 0 | AM31: 0 | AN31: 5273087 | AO31: 金門縣 | AP31: 5273087 | AQ31: 0 | AR31: 2450000 | AS31: 2450000 | AT31: 0 | AU31: 0 | AV31: 71642 | AW31: 0 | AX31: 71642
A32: 連江縣 | B32: 連江縣 | C32: 4605830 | D32: 595945 | E32: 0 | F32: 連江縣 | G32: 73408 | H32: 4000 | I32: 9000 | J32: 7300 | K32: 3000 | L32: 0 | M32: 0 | N32: 連江縣 | O32: 499237 | P32: 0 | Q32: 0 | R32: 0 | S32: 0 | T32: 5090 | U32: 2040 | V32: 0 | W32: 連江縣 | X32: 3050 | Y32: 38714 | Z32: 7985 | AA32: 30729 | AB32: 0 | AC32: 12804 | AD32: 12804 | AE32: 0 | AF32: 連江縣 | AG32: 0 | AH32: 0 | AI32: 0 | AJ32: 11003 | AK32: 1003 | AL32: 10000 | AM32: 0 | AN32: 3748052 | AO32: 連江縣 | AP32: 3748052 | AQ32: 0 | AR32: 185000 | AS32: 185000 | AT32: 0 | AU32: 0 | AV32: 9222 | AW32: 0 | AX32: 9222

Sheet 政事別-經資
D1: 各直轄市及縣 | E1: (市)總預算 | M1: 各直轄市及縣 | N1: (市)總預算 | U1: 各直轄市及縣 | V1: (市)總預算 | AC1: 各直轄市及縣 | AD1: (市)總預算 | AK1: 各直轄市及縣 | AL1: (市)總預算
D2: 歲出政事別 | E2: 預算總表 | M2: 歲出政事別 | N2: 預算總表 | Q2: (續一) | U2: 歲出政事別 | V2: 預算總表 | Y2: (續二) | AC2: 歲出政事別 | AD2: 預算總表 | AG2: (續三) | AK2: 歲出政事別 | AL2: 預算總表 | AO2: (續四)
D3: 中華民國 | E3: =簡明總!#REF! ->  | H3: 單位：新臺幣千元 | M3: 中華民國 | N3: =E3 ->  | Q3: 單位：新臺幣千元 | U3: 中華民國 | V3: =N3 ->  | Y3: 單位：新臺幣千元 | AC3: 中華民國 | AD3: =V3 ->  | AG3: 單位：新臺幣千元 | AK3: 中華民國 | AL3: =AD3 ->  | AO3: 單位：新臺幣千元
A4: 科 目 | C4: 一般政務支出 | D4: 行政支出 | E4: 立法支出 | F4: 民政支出 | G4: 警政支出 | H4: 財務支出 | I4: 科 目 | J4: 教育科學 文化支出 | K4: 教育支出 | L4: 科學支出 | M4: 文化支出 | N4: 經濟發展支出 | O4: 農業支出 | P4: 工業支出 | Q4: 交通支出 | R4: 科 目 | S4: 其他經濟 服務支出 | T4: 社會福利支出 | U4: 社會保險支出 | V4: 社會救助支出 | W4: 福利服務支出 | X4: 國民就業支出 | Y4: 醫療保健支出 | Z4: 科 目 | AA4: 社區發展及環 境保護支出 | AB4: 環境保護支出 | AC4: 社區發展支出 | AD4: 退休撫 卹支出 | AE4: 退休撫卹 給付支出 | AF4: 債務支出 | AG4: 債務付息支出 | AH4: 科 目 | AI4: 還本付息 事務支出 | AJ4: 補助及其他支出 | AK4: 專案補助支出 | AL4: 平衡預算 補助支出 | AM4: 協助支出 | AN4: 其他支出 | AO4: 第二預備金
A5: 款 | B5: 合 計 | C5: 1 | I5: 款 | J5: 2 | N5: 3 | R5: 款 | T5: 4 | Z5: 款 | AA5: 5 | AD5: 6 | AF5: 7 | AH5: 款 | AJ5: 8
A6: 項 | D6: 1 | E6: 2 | F6: 3 | G6: 4 | H6: 5 | I6: 項 | K6: 1 | L6: 2 | M6: 3 | O6: 1 | P6: 2 | Q6: 3 | R6: 項 | S6: 4 | U6: 1 | V6: 2 | W6: 3 | X6: 4 | Y6: 5 | Z6: 項 | AB6: 1 | AC6: 2 | AE6: 1 | AG6: 1 | AH6: 項 | AI6: 2 | AK6: 1 | AL6: 2 | AM6: 3 | AN6: 4 | AO6: 5
A7: (經資門併計) | I7: (經資門併計) | R7: (經資門併計) | Z7: (經資門併計) | AH7: (經資門併計)
A8: 總 計 | B8: 1324656276 | C8: 226859887 | D8: 15031996 | E8: 7931275 | F8: 96106440 | G8: 95578102 | H8: 12212074 | I8: 總 計 | J8: 486299944 | K8: 446027370 | L8: 36750 | M8: 40235824 | N8: 210302320 | O8: 55922546 | P8: 18822324 | Q8: 112154053 | R8: 總 計 | S8: 23403397 | T8: 233257164 | U8: 11198053 | V8: 21687697 | W8: 146221322 | X8: 1612937 | Y8: 52537155 | Z8: 總 計 | AA8: 72471322 | AB8: 61328566 | AC8: 11142756 | AD8: 60529202 | AE8: 60529202 | AF8: 7962358 | AG8: 7939780 | AH8: 總 計 | AI8: 22578 | AJ8: 26974079 | AK8: 303712 | AL8: 219707 | AM8: 0 | AN8: 21974660 | AO8: 4476000
A9: 直轄市合計 | B9: 903833715 | C9: 153590804 | D9: 8105627 | E9: 4494355 | F9: 68953397 | G9: 63983293 | H9: 8054132 | I9: 直轄市合計 | J9: 335152376 | K9: 303123664 | L9: 0 | M9: 32028712 | N9: 146700676 | O9: 36401691 | P9: 12753963 | Q9: 87196707 | R9: 直轄市合計 | S9: 10348315 | T9: 161942885 | U9: 8845419 | V9: 18447094 | W9: 102243435 | X9: 892827 | Y9: 31514110 | Z9: 直轄市合計 | AA9: 60289336 | AB9: 51083219 | AC9: 9206117 | AD9: 23357209 | AE9: 23357209 | AF9: 5645218 | AG9: 5622640 | AH9: 直轄市合計 | AI9: 22578 | AJ9: 17155211 | AK9: 0 | AL9: 0 | AM9: 0 | AN9: 14315211 | AO9: 2840000
A10: 新北市 | B10: 186482841 | C10: 35219536 | D10: 1752918 | E10: 698667 | F10: 18139442 | G10: 12079369 | H10: 2549140 | I10: 新北市 | J10: 64727732 | K10: 61197834 | L10: 0 | M10: 3529898 | N10: 28271990 | O10: 5323680 | P10: 777705 | Q10: 20758752 | R10: 新北市 | S10: 1411853 | T10: 35049348 | U10: 1467157 | V10: 1498277 | W10: 24721878 | X10: 123427 | Y10: 7238609 | Z10: 新北市 | AA10: 13999760 | AB10: 13128371 | AC10: 871389 | AD10: 4040780 | AE10: 4040780 | AF10: 1036000 | AG10: 1036000 | AH10: 新北市 | AI10: 0 | AJ10: 4137695 | AK10: 0 | AL10: 0 | AM10: 0 | AN10: 3737695 | AO10: 400000
A11: 臺北市 | B11: 171583466 | C11: 29101885 | D11: 2159335 | E11: 858946 | F11: 9955868 | G11: 14090012 | H11: 2037724 | I11: 臺北市 | J11: 63530256 | K11: 54772174 | L11: 0 | M11: 8758082 | N11: 28360179 | O11: 7700834 | P11: 2056111 | Q11: 16830823 | R11: 臺北市 | S11: 1772411 | T11: 27338235 | U11: 668657 | V11: 9221035 | W11: 11889182 | X11: 550702 | Y11: 5008659 | Z11: 臺北市 | AA11: 13960768 | AB11: 9634288 | AC11: 4326480 | AD11: 5258356 | AE11: 5258356 | AF11: 597287 | AG11: 589287 | AH11: 臺北市 | AI11: 8000 | AJ11: 3436500 | AK11: 0 | AL11: 0 | AM11: 0 | AN11: 2696500 | AO11: 740000
A12: 桃園市 | B12: 141051000 | C12: 21905475 | D12: 1048100 | E12: 675773 | F12: 10308031 | G12: 9100235 | H12: 773336 | I12: 桃園市 | J12: 55293196 | K12: 47306027 | L12: 0 | M12: 7987169 | N12: 29095449 | O12: 6802394 | P12: 5954126 | Q12: 14852504 | R12: 桃園市 | S12: 1486425 | T12: 22934719 | U12: 1279655 | V12: 3622706 | W12: 15686683 | X12: 0 | Y12: 2345675 | Z12: 桃園市 | AA12: 7802543 | AB12: 6316099 | AC12: 1486444 | AD12: 1451441 | AE12: 1451441 | AF12: 394555 | AG12: 394555 | AH12: 桃園市 | AI12: 0 | AJ12: 2173622 | AK12: 0 | AL12: 0 | AM12: 0 | AN12: 1773622 | AO12: 400000
A13: 臺中市 | B13: 151200912 | C13: 24808789 | D13: 1441222 | E13: 798040 | F13: 10866968 | G13: 10646884 | H13: 1055675 | I13: 臺中市 | J13: 58704942 | K13: 54052093 | L13: 0 | M13: 4652849 | N13: 22753093 | O13: 2701681 | P13: 3214239 | Q13: 15505931 | R13: 臺中市 | S13: 1331242 | T13: 28837522 | U13: 951246 | V13: 2130855 | W13: 18671302 | X13: 20442 | Y13: 7063677 | Z13: 臺中市 | AA13: 9348873 | AB13: 8092552 | AC13: 1256321 | AD13: 3096693 | AE13: 3096693 | AF13: 870000 | AG13: 870000 | AH13: 臺中市 | AI13: 0 | AJ13: 2781000 | AK13: 0 | AL13: 0 | AM13: 0 | AN13: 2281000 | AO13: 500000
A14: 臺南市 | B14: 102065814 | C14: 17680597 | D14: 775352 | E14: 683452 | F14: 8380103 | G14: 7190196 | H14: 651494 | I14: 臺南市 | J14: 37537779 | K14: 33981930 | L14: 0 | M14: 3555849 | N14: 18891225 | O14: 8866462 | P14: 691681 | Q14: 7798052 | R14: 臺南市 | S14: 1535030 | T14: 18233350 | U14: 729295 | V14: 681185 | W14: 15309410 | X14: 97169 | Y14: 1416291 | Z14: 臺南市 | AA14: 3984754 | AB14: 3255223 | AC14: 729531 | AD14: 3546109 | AE14: 3546109 | AF14: 516000 | AG14: 516000 | AH14: 臺南市 | AI14: 0 | AJ14: 1676000 | AK14: 0 | AL14: 0 | AM14: 0 | AN14: 1276000 | AO14: 400000
A15: 高雄市 | B15: 151449682 | C15: 24874522 | D15: 928700 | E15: 779477 | F15: 11302985 | G15: 10876597 | H15: 986763 | I15: 高雄市 | J15: 55358471 | K15: 51813606 | L15: 0 | M15: 3544865 | N15: 19328740 | O15: 5006640 | P15: 60101 | Q15: 11450645 | R15: 高雄市 | S15: 2811354 | T15: 29549711 | U15: 3749409 | V15: 1293036 | W15: 15964980 | X15: 101087 | Y15: 8441199 | Z15: 高雄市 | AA15: 11192638 | AB15: 10656686 | AC15: 535952 | AD15: 5963830 | AE15: 5963830 | AF15: 2231376 | AG15: 2216798 | AH15: 高雄市 | AI15: 14578 | AJ15: 2950394 | AK15: 0 | AL15: 0 | AM15: 0 | AN15: 2550394 | AO15: 400000
A16: 縣市合計 | B16: 420822561 | C16: 73269083 | D16: 6926369 | E16: 3436920 | F16: 27153043 | G16: 31594809 | H16: 4157942 | I16: 縣市合計 | J16: 151147568 | K16: 142903706 | L16: 36750 | M16: 8207112 | N16: 63601644 | O16: 19520855 | P16: 6068361 | Q16: 24957346 | R16: 縣市合計 | S16: 13055082 | T16: 71314279 | U16: 2352634 | V16: 3240603 | W16: 43977887 | X16: 720110 | Y16: 21023045 | Z16: 縣市合計 | AA16: 12181986 | AB16: 10245347 | AC16: 1936639 | AD16: 37171993 | AE16: 37171993 | AF16: 2317140 | AG16: 2317140 | AH16: 縣市合計 | AI16: 0 | AJ16: 9818868 | AK16: 303712 | AL16: 219707 | AM16: 0 | AN16: 7659449 | AO16: 1636000
A17: 宜蘭縣 | B17: 26653640 | C17: 4302364 | D17: 368153 | E17: 192709 | F17: 1534150 | G17: 1989386 | H17: 217966 | I17: 宜蘭縣 | J17: 10865055 | K17: 10245694 | L17: 0 | M17: 619361 | N17: 3280803 | O17: 1092811 | P17: 188833 | Q17: 680582 | R17: 宜蘭縣 | S17: 1318577 | T17: 3941895 | U17: 123415 | V17: 159553 | W17: 1996722 | X17: 80086 | Y17: 1582119 | Z17: 宜蘭縣 | AA17: 1467484 | AB17: 464560 | AC17: 1002924 | AD17: 1991372 | AE17: 1991372 | AF17: 146410 | AG17: 146410 | AH17: 宜蘭縣 | AI17: 0 | AJ17: 658257 | AK17: 9750 | AL17: 0 | AM17: 0 | AN17: 568507 | AO17: 80000
A18: 新竹縣 | B18: 32360287 | C18: 4783299 | D18: 424492 | E18: 220270 | F18: 2049815 | G18: 1851170 | H18: 237552 | I18: 新竹縣 | J18: 13892448 | K18: 13405572 | L18: 0 | M18: 486876 | N18: 3777021 | O18: 475189 | P18: 75124 | Q18: 2000780 | R18: 新竹縣 | S18: 1225928 | T18: 5334778 | U18: 101856 | V18: 115372 | W18: 4368919 | X18: 40562 | Y18: 708069 | Z18: 新竹縣 | AA18: 1124065 | AB18: 1124065 | AC18: 0 | AD18: 2468556 | AE18: 2468556 | AF18: 200000 | AG18: 200000 | AH18: 新竹縣 | AI18: 0 | AJ18: 780120 | AK18: 0 | AL18: 0 | AM18: 0 | AN18: 380120 | AO18: 400000
A19: 苗栗縣 | B19: 21566773 | C19: 4865472 | D19: 365302 | E19: 220376 | F19: 1899075 | G19: 2119606 | H19: 261113 | I19: 苗栗縣 | J19: 7862216 | K19: 7597597 | L19: 0 | M19: 264619 | N19: 1356436 | O19: 524458 | P19: 17181 | Q19: 615592 | R19: 苗栗縣 | S19: 199205 | T19: 2996196 | U19: 123783 | V19: 213845 | W19: 1456292 | X19: 59459 | Y19: 1142817 | Z19: 苗栗縣 | AA19: 1128667 | AB19: 940471 | AC19: 188196 | AD19: 2439786 | AE19: 2439786 | AF19: 500000 | AG19: 500000 | AH19: 苗栗縣 | AI19: 0 | AJ19: 418000 | AK19: 0 | AL19: 42750 | AM19: 0 | AN19: 325250 | AO19: 50000
A20: 彰化縣 | B20: 56604393 | C20: 8122989 | D20: 436396 | E20: 296924 | F20: 2294849 | G20: 4454840 | H20: 639980 | I20: 彰化縣 | J20: 21904508 | K20: 21504257 | L20: 0 | M20: 400251 | N20: 8386644 | O20: 2634204 | P20: 164289 | Q20: 3720047 | R20: 彰化縣 | S20: 1868104 | T20: 10676934 | U20: 364960 | V20: 335952 | W20: 5807400 | X20: 131872 | Y20: 4036750 | Z20: 彰化縣 | AA20: 626916 | AB20: 329825 | AC20: 297091 | AD20: 5466553 | AE20: 5466553 | AF20: 367896 | AG20: 367896 | AH20: 彰化縣 | AI20: 0 | AJ20: 1051953 | AK20: 23325 | AL20: 0 | AM20: 0 | AN20: 928628 | AO20: 100000
A21: 南投縣 | B21: 28905000 | C21: 5424925 | D21: 659174 | E21: 259024 | F21: 1741529 | G21: 2504822 | H21: 260376 | I21: 南投縣 | J21: 10317304 | K21: 10156793 | L21: 0 | M21: 160511 | N21: 4190094 | O21: 471991 | P21: 1492301 | Q21: 2026722 | R21: 南投縣 | S21: 199080 | T21: 4905653 | U21: 133836 | V21: 125461 | W21: 3743086 | X21: 16763 | Y21: 886507 | Z21: 南投縣 | AA21: 473194 | AB21: 366645 | AC21: 106549 | AD21: 2726031 | AE21: 2726031 | AF21: 94357 | AG21: 94357 | AH21: 南投縣 | AI21: 0 | AJ21: 773442 | AK21: 36000 | AL21: 0 | AM21: 0 | AN21: 507442 | AO21: 230000
A22: 雲林縣 | B22: 37307792 | C22: 4898857 | D22: 396274 | E22: 244976 | F22: 1507193 | G22: 2469925 | H22: 280489 | I22: 雲林縣 | J22: 14997272 | K22: 14101565 | L22: 0 | M22: 895707 | N22: 6069727 | O22: 2874792 | P22: 152522 | Q22: 1592581 | R22: 雲林縣 | S22: 1449832 | T22: 6799340 | U22: 227800 | V22: 520923 | W22: 3923729 | X22: 0 | Y22: 2126888 | Z22: 雲林縣 | AA22: 436796 | AB22: 374764 | AC22: 62032 | AD22: 3108385 | AE22: 3108385 | AF22: 176837 | AG22: 176837 | AH22: 雲林縣 | AI22: 0 | AJ22: 820578 | AK22: 72000 | AL22: 0 | AM22: 0 | AN22: 668578 | AO22: 80000
A23: 嘉義縣 | B23: 28353197 | C23: 4961278 | D23: 545149 | E23: 240256 | F23: 1621222 | G23: 2280077 | H23: 274574 | I23: 嘉義縣 | J23: 8948167 | K23: 8769122 | L23: 0 | M23: 179045 | N23: 5187325 | O23: 3233612 | P23: 66094 | Q23: 1393861 | R23: 嘉義縣 | S23: 493758 | T23: 5583431 | U23: 148629 | V23: 127871 | W23: 4161641 | X23: 75239 | Y23: 1070051 | Z23: 嘉義縣 | AA23: 191327 | AB23: 191327 | AC23: 0 | AD23: 2301682 | AE23: 2301682 | AF23: 250000 | AG23: 250000 | AH23: 嘉義縣 | AI23: 0 | AJ23: 929987 | AK23: 22137 | AL23: 89250 | AM23: 0 | AN23: 738600 | AO23: 80000
A24: 屏東縣 | B24: 47117000 | C24: 8643562 | D24: 650734 | E24: 330213 | F24: 3922767 | G24: 3240380 | H24: 499468 | I24: 屏東縣 | J24: 16439017 | K24: 15271744 | L24: 0 | M24: 1167273 | N24: 6996570 | O24: 3551955 | P24: 829025 | Q24: 1731353 | R24: 屏東縣 | S24: 884237 | T24: 8170612 | U24: 259693 | V24: 395213 | W24: 3999191 | X24: 143180 | Y24: 3373335 | Z24: 屏東縣 | AA24: 773596 | AB24: 676591 | AC24: 97005 | AD24: 5112571 | AE24: 5112571 | AF24: 150000 | AG24: 150000 | AH24: 屏東縣 | AI24: 0 | AJ24: 831072 | AK24: 78000 | AL24: 0 | AM24: 0 | AN24: 693072 | AO24: 60000
A25: 臺東縣 | B25: 20846011 | C25: 4780684 | D25: 560730 | E25: 203681 | F25: 2255042 | G25: 1564078 | H25: 197153 | I25: 臺東縣 | J25: 6396474 | K25: 6027780 | L25: 0 | M25: 368694 | N25: 2483948 | O25: 762731 | P25: 168921 | Q25: 643384 | R25: 臺東縣 | S25: 908912 | T25: 3352235 | U25: 85999 | V25: 295051 | W25: 1502372 | X25: 25823 | Y25: 1442990 | Z25: 臺東縣 | AA25: 533484 | AB25: 513224 | AC25: 20260 | AD25: 2275294 | AE25: 2275294 | AF25: 100000 | AG25: 100000 | AH25: 臺東縣 | AI25: 0 | AJ25: 923892 | AK25: 1000 | AL25: 0 | AM25: 0 | AN25: 862892 | AO25: 60000
A26: 花蓮縣 | B26: 26256716 | C26: 5375873 | D26: 390067 | E26: 226088 | F26: 2473296 | G26: 1999585 | H26: 286837 | I26: 花蓮縣 | J26: 8786412 | K26: 8351827 | L26: 0 | M26: 434585 | N26: 4254328 | O26: 896106 | P26: 868525 | Q26: 1755024 | R26: 花蓮縣 | S26: 734673 | T26: 4355711 | U26: 104874 | V26: 243667 | W26: 3239890 | X26: 12892 | Y26: 754388 | Z26: 花蓮縣 | AA26: 519259 | AB26: 502829 | AC26: 16430 | AD26: 2318933 | AE26: 2318933 | AF26: 127200 | AG26: 127200 | AH26: 花蓮縣 | AI26: 0 | AJ26: 519000 | AK26: 0 | AL26: 0 | AM26: 0 | AN26: 459000 | AO26: 60000
A27: 澎湖縣 | B27: 12701162 | C27: 2515965 | D27: 231189 | E27: 157221 | F27: 631046 | G27: 1365410 | H27: 131099 | I27: 澎湖縣 | J27: 3169577 | K27: 2742621 | L27: 36750 | M27: 390206 | N27: 3150594 | O27: 680105 | P27: 627411 | Q27: 1331383 | R27: 澎湖縣 | S27: 511695 | T27: 2074134 | U27: 45324 | V27: 100738 | W27: 1282808 | X27: 22001 | Y27: 623263 | Z27: 澎湖縣 | AA27: 601058 | AB27: 596434 | AC27: 4624 | AD27: 849655 | AE27: 849655 | AF27: 16740 | AG27: 16740 | AH27: 澎湖縣 | AI27: 0 | AJ27: 323439 | AK27: 58500 | AL27: 0 | AM27: 0 | AN27: 217939 | AO27: 47000
A28: 基隆市 | B28: 21154599 | C28: 4326866 | D28: 416089 | E28: 209812 | F28: 1641767 | G28: 1779347 | H28: 279851 | I28: 基隆市 | J28: 7050919 | K28: 6734346 | L28: 0 | M28: 316573 | N28: 2817232 | O28: 241056 | P28: 620778 | Q28: 1329852 | R28: 基隆市 | S28: 625546 | T28: 3904294 | U28: 454543 | V28: 302596 | W28: 2687909 | X28: 14641 | Y28: 444605 | Z28: 基隆市 | AA28: 940663 | AB28: 887415 | AC28: 53248 | AD28: 1658275 | AE28: 1658275 | AF28: 60000 | AG28: 60000 | AH28: 基隆市 | AI28: 0 | AJ28: 396350 | AK28: 0 | AL28: 0 | AM28: 0 | AN28: 369350 | AO28: 27000
A29: 新竹市 | B29: 25615303 | C29: 3850898 | D29: 338198 | E29: 206625 | F29: 1393361 | G29: 1648777 | H29: 263937 | I29: 新竹市 | J29: 9976072 | K29: 8715865 | L29: 0 | M29: 1260207 | N29: 2506739 | O29: 359294 | P29: 413343 | Q29: 1139487 | R29: 新竹市 | S29: 594615 | T29: 4662221 | U29: 75500 | V29: 149800 | W29: 3323525 | X29: 58682 | Y29: 1054714 | Z29: 新竹市 | AA29: 1462588 | AB29: 1399772 | AC29: 62816 | AD29: 2326672 | AE29: 2326672 | AF29: 120000 | AG29: 120000 | AH29: 新竹市 | AI29: 0 | AJ29: 710113 | AK29: 0 | AL29: 0 | AM29: 0 | AN29: 415113 | AO29: 295000
A30: 嘉義市 | B30: 16622292 | C30: 3426818 | D30: 360998 | E30: 173787 | F30: 1223545 | G30: 1430486 | H30: 238002 | I30: 嘉義市 | J30: 5685673 | K30: 5283402 | L30: 0 | M30: 402271 | N30: 2335017 | O30: 59816 | P30: 72381 | Q30: 1714094 | R30: 嘉義市 | S30: 488726 | T30: 2467957 | U30: 66608 | V30: 95677 | W30: 1441535 | X30: 38910 | Y30: 825227 | Z30: 嘉義市 | AA30: 981747 | AB30: 972159 | AC30: 9588 | AD30: 1393980 | AE30: 1393980 | AF30: 7100 | AG30: 7100 | AH30: 嘉義市 | AI30: 0 | AJ30: 324000 | AK30: 0 | AL30: 0 | AM30: 0 | AN30: 309000 | AO30: 15000
A31: 金門縣 | B31: 13934761 | C31: 2241371 | D31: 519692 | E31: 189197 | F31: 757846 | G31: 714771 | H31: 59865 | I31: 金門縣 | J31: 3552784 | K31: 3054934 | L31: 0 | M31: 497850 | N31: 4674854 | O31: 1268499 | P31: 292723 | Q31: 2195898 | R31: 金門縣 | S31: 917734 | T31: 1667713 | U31: 33985 | V31: 49213 | W31: 912014 | X31: 0 | Y31: 672501 | Z31: 金門縣 | AA31: 828831 | AB31: 812955 | AC31: 15876 | AD31: 682501 | AE31: 682501 | AF31: 0 | AG31: 0 | AH31: 金門縣 | AI31: 0 | AJ31: 286707 | AK31: 0 | AL31: 87707 | AM31: 0 | AN31: 162000 | AO31: 37000
A32: 連江縣 | B32: 4823635 | C32: 747862 | D32: 263732 | E32: 65761 | F32: 206540 | G32: 182149 | H32: 29680 | I32: 連江縣 | J32: 1303670 | K32: 940587 | L32: 0 | M32: 363083 | N32: 2134312 | O32: 394236 | P32: 18910 | Q32: 1086706 | R32: 連江縣 | S32: 634460 | T32: 421175 | U32: 1829 | V32: 9671 | W32: 130854 | X32: 0 | Y32: 278821 | Z32: 連江縣 | AA32: 92311 | AB32: 92311 | AC32: 0 | AD32: 51747 | AE32: 51747 | AF32: 600 | AG32: 600 | AH32: 連江縣 | AI32: 0 | AJ32: 71958 | AK32: 3000 | AL32: 0 | AM32: 0 | AN32: 53958 | AO32: 15000
A33: (經常門) | I33: (經常門) | R33: (經常門) | Z33: (經常門) | AH33: (經常門)
A34: 總 計 | B34: 1047705371 | C34: 204274968 | D34: 13385342 | E34: 7697286 | F34: 82529017 | G34: 90397448 | H34: 10265875 | I34: 總 計 | J34: 422067894 | K34: 399862580 | L34: 36750 | M34: 22168564 | N34: 64247943 | O34: 16016811 | P34: 8571238 | Q34: 27351596 | R34: 總 計 | S34: 12308298 | T34: 224108598 | U34: 11198053 | V34: 21687524 | W34: 139575461 | X34: 1416534 | Y34: 50231026 | Z34: 總 計 | AA34: 50418326 | AB34: 44389289 | AC34: 6029037 | AD34: 60529202 | AE34: 60529202 | AF34: 7962358 | AG34: 7939780 | AH34: 總 計 | AI34: 22578 | AJ34: 14096082 | AK34: 300712 | AL34: 171792 | AM34: 0 | AN34: 10224245 | AO34: 3399333
A35: 直轄市合計 | B35: 717502055 | C35: 137744667 | D35: 7281955 | E35: 4392823 | F35: 59042922 | G35: 60418851 | H35: 6608116 | I35: 直轄市合計 | J35: 295105422 | K35: 277574934 | L35: 0 | M35: 17530488 | N35: 48165220 | O35: 9451214 | P35: 6471477 | Q35: 24272626 | R35: 直轄市合計 | S35: 7969903 | T35: 155480397 | U35: 8845419 | V35: 18447056 | W35: 96905993 | X35: 718943 | Y35: 30562986 | Z35: 直轄市合計 | AA35: 43218878 | AB35: 37672832 | AC35: 5546046 | AD35: 23357209 | AE35: 23357209 | AF35: 5645218 | AG35: 5622640 | AH35: 直轄市合計 | AI35: 22578 | AJ35: 8785044 | AK35: 0 | AL35: 0 | AM35: 0 | AN35: 6631711 | AO35: 2153333
A36: 新北市 | B36: 149818218 | C36: 29615588 | D36: 1541354 | E36: 682969 | F36: 14609589 | G36: 11520274 | H36: 1261402 | I36: 新北市 | J36: 60595806 | K36: 58177444 | L36: 0 | M36: 2418362 | N36: 7593494 | O36: 1766711 | P36: 734101 | Q36: 4310047 | R36: 新北市 | S36: 782635 | T36: 34138475 | U36: 1467157 | V36: 1498277 | W36: 24054613 | X36: 122864 | Y36: 6995564 | Z36: 新北市 | AA36: 10219380 | AB36: 9476165 | AC36: 743215 | AD36: 4040780 | AE36: 4040780 | AF36: 1036000 | AG36: 1036000 | AH36: 新北市 | AI36: 0 | AJ36: 2578695 | AK36: 0 | AL36: 0 | AM36: 0 | AN36: 2178695 | AO36: 400000
A37: 臺北市 | B37: 138543567 | C37: 26809436 | D37: 1905052 | E37: 835394 | F37: 8968342 | G37: 13149761 | H37: 1950887 | I37: 臺北市 | J37: 55724117 | K37: 49853044 | L37: 0 | M37: 5871073 | N37: 13867473 | O37: 2344140 | P37: 1840006 | Q37: 8011491 | R37: 臺北市 | S37: 1671836 | T37: 24482784 | U37: 668657 | V37: 9221035 | W37: 9451788 | X37: 379805 | Y37: 4761499 | Z37: 臺北市 | AA37: 9637614 | AB37: 7985326 | AC37: 1652288 | AD37: 5258356 | AE37: 5258356 | AF37: 597287 | AG37: 589287 | AH37: 臺北市 | AI37: 8000 | AJ37: 2166500 | AK37: 0 | AL37: 0 | AM37: 0 | AN37: 1646500 | AO37: 520000
A38: 桃園市 | B38: 102355497 | C38: 19391658 | D38: 979854 | E38: 658710 | F38: 8987427 | G38: 8001753 | H38: 763914 | I38: 桃園市 | J38: 44272048 | K38: 41189934 | L38: 0 | M38: 3082114 | N38: 6893154 | O38: 1675882 | P38: 1530007 | Q38: 2527604 | R38: 桃園市 | S38: 1159661 | T38: 22087582 | U38: 1279655 | V38: 3622706 | W38: 14907628 | X38: 0 | Y38: 2277593 | Z38: 桃園市 | AA38: 7110437 | AB38: 5740385 | AC38: 1370052 | AD38: 1451441 | AE38: 1451441 | AF38: 394555 | AG38: 394555 | AH38: 桃園市 | AI38: 0 | AJ38: 754622 | AK38: 0 | AL38: 0 | AM38: 0 | AN38: 354622 | AO38: 400000
A39: 臺中市 | B39: 122215094 | C39: 22995326 | D39: 1342471 | E39: 792840 | F39: 9465527 | G39: 10360369 | H39: 1034119 | I39: 臺中市 | J39: 51923558 | K39: 50007065 | L39: 0 | M39: 1916493 | N39: 7821220 | O39: 1143611 | P39: 1808250 | Q39: 3912752 | R39: 臺中市 | S39: 956607 | T39: 28010738 | U39: 951246 | V39: 2130855 | W39: 17954569 | X39: 20442 | Y39: 6953626 | Z39: 臺中市 | AA39: 6286559 | AB39: 5553454 | AC39: 733105 | AD39: 3096693 | AE39: 3096693 | AF39: 870000 | AG39: 870000 | AH39: 臺中市 | AI39: 0 | AJ39: 1211000 | AK39: 0 | AL39: 0 | AM39: 0 | AN39: 911000 | AO39: 300000
A40: 臺南市 | B40: 78804596 | C40: 16089875 | D40: 690749 | E40: 664068 | F40: 7257437 | G40: 6838496 | H40: 639125 | I40: 臺南市 | J40: 31444763 | K40: 29689411 | L40: 0 | M40: 1755352 | N40: 4981899 | O40: 1759717 | P40: 526999 | Q40: 1651734 | R40: 臺南市 | S40: 1043449 | T40: 17959140 | U40: 729295 | V40: 681185 | W40: 15086681 | X40: 95458 | Y40: 1366521 | Z40: 臺南市 | AA40: 3512810 | AB40: 2910696 | AC40: 602114 | AD40: 3546109 | AE40: 3546109 | AF40: 516000 | AG40: 516000 | AH40: 臺南市 | AI40: 0 | AJ40: 754000 | AK40: 0 | AL40: 0 | AM40: 0 | AN40: 354000 | AO40: 400000
A41: 高雄市 | B41: 125765083 | C41: 22842784 | D41: 822475 | E41: 758842 | F41: 9754600 | G41: 10548198 | H41: 958669 | I41: 高雄市 | J41: 51145130 | K41: 48658036 | L41: 0 | M41: 2487094 | N41: 7007980 | O41: 761153 | P41: 32114 | Q41: 3858998 | R41: 高雄市 | S41: 2355715 | T41: 28801678 | U41: 3749409 | V41: 1292998 | W41: 15450714 | X41: 100374 | Y41: 8208183 | Z41: 高雄市 | AA41: 6452078 | AB41: 6006806 | AC41: 445272 | AD41: 5963830 | AE41: 5963830 | AF41: 2231376 | AG41: 2216798 | AH41: 高雄市 | AI41: 14578 | AJ41: 1320227 | AK41: 0 | AL41: 0 | AM41: 0 | AN41: 1186894 | AO41: 133333
A42: 縣市合計 | B42: 330203316 | C42: 66530301 | D42: 6103387 | E42: 3304463 | F42: 23486095 | G42: 29978597 | H42: 3657759 | I42: 縣市合計 | J42: 126962472 | K42: 122287646 | L42: 36750 | M42: 4638076 | N42: 16082723 | O42: 6565597 | P42: 2099761 | Q42: 3078970 | R42: 縣市合計 | S42: 4338395 | T42: 68628201 | U42: 2352634 | V42: 3240468 | W42: 42669468 | X42: 697591 | Y42: 19668040 | Z42: 縣市合計 | AA42: 7199448 | AB42: 6716457 | AC42: 482991 | AD42: 37171993 | AE42: 37171993 | AF42: 2317140 | AG42: 2317140 | AH42: 縣市合計 | AI42: 0 | AJ42: 5311038 | AK42: 300712 | AL42: 171792 | AM42: 0 | AN42: 3592534 | AO42: 1246000
A43: 宜蘭縣 | B43: 21935564 | C43: 3960760 | D43: 318060 | E43: 191609 | F43: 1288565 | G43: 1947547 | H43: 214979 | I43: 宜蘭縣 | J43: 9863367 | K43: 9362962 | L43: 0 | M43: 500405 | N43: 1212095 | O43: 655002 | P43: 185961 | Q43: 142701 | R43: 宜蘭縣 | S43: 228431 | T43: 3800494 | U43: 123415 | V43: 159553 | W43: 1916320 | X43: 69936 | Y43: 1531270 | Z43: 宜蘭縣 | AA43: 569353 | AB43: 449580 | AC43: 119773 | AD43: 1991372 | AE43: 1991372 | AF43: 146410 | AG43: 146410 | AH43: 宜蘭縣 | AI43: 0 | AJ43: 391713 | AK43: 9750 | AL43: 0 | AM43: 0 | AN43: 301963 | AO43: 80000
A44: 新竹縣 | B44: 24209559 | C44: 4160215 | D44: 359342 | E44: 212069 | F44: 1683854 | G44: 1673328 | H44: 231622 | I44: 新竹縣 | J44: 10568332 | K44: 10319271 | L44: 0 | M44: 249061 | N44: 624634 | O44: 259401 | P44: 60324 | Q44: 143214 | R44: 新竹縣 | S44: 161695 | T44: 5160312 | U44: 101856 | V44: 115372 | W44: 4224495 | X44: 40562 | Y44: 678027 | Z44: 新竹縣 | AA44: 571040 | AB44: 571040 | AC44: 0 | AD44: 2468556 | AE44: 2468556 | AF44: 200000 | AG44: 200000 | AH44: 新竹縣 | AI44: 0 | AJ44: 456470 | AK44: 0 | AL44: 0 | AM44: 0 | AN44: 56470 | AO44: 400000
A45: 苗栗縣 | B45: 18731681 | C45: 4550324 | D45: 339929 | E45: 213766 | F45: 1754575 | G45: 1985493 | H45: 256561 | I45: 苗栗縣 | J45: 7571402 | K45: 7355149 | L45: 0 | M45: 216253 | N45: 378807 | O45: 220341 | P45: 16461 | Q45: 63276 | R45: 苗栗縣 | S45: 78729 | T45: 2943400 | U45: 123783 | V45: 213845 | W45: 1445867 | X45: 59283 | Y45: 1100622 | Z45: 苗栗縣 | AA45: 145712 | AB45: 137516 | AC45: 8196 | AD45: 2439786 | AE45: 2439786 | AF45: 500000 | AG45: 500000 | AH45: 苗栗縣 | AI45: 0 | AJ45: 202250 | AK45: 0 | AL45: 42750 | AM45: 0 | AN45: 109500 | AO45: 50000
A46: 彰化縣 | B46: 44784684 | C46: 7577787 | D46: 413969 | E46: 292390 | F46: 2190764 | G46: 4260297 | H46: 420367 | I46: 彰化縣 | J46: 18943685 | K46: 18631904 | L46: 0 | M46: 311781 | N46: 1399619 | O46: 645043 | P46: 164289 | Q46: 180644 | R46: 彰化縣 | S46: 409643 | T46: 10177631 | U46: 364960 | V46: 335952 | W46: 5762232 | X46: 131872 | Y46: 3582615 | Z46: 彰化縣 | AA46: 299560 | AB46: 249686 | AC46: 49874 | AD46: 5466553 | AE46: 5466553 | AF46: 367896 | AG46: 367896 | AH46: 彰化縣 | AI46: 0 | AJ46: 551953 | AK46: 23325 | AL46: 0 | AM46: 0 | AN46: 428628 | AO46: 100000
A47: 南投縣 | B47: 23601224 | C47: 4816833 | D47: 371241 | E47: 253974 | F47: 1563604 | G47: 2371974 | H47: 256040 | I47: 南投縣 | J47: 9573404 | K47: 9460574 | L47: 0 | M47: 112830 | N47: 657147 | O47: 269806 | P47: 188117 | Q47: 11464 | R47: 南投縣 | S47: 187760 | T47: 4882840 | U47: 133836 | V47: 125461 | W47: 3743086 | X47: 16763 | Y47: 863694 | Z47: 南投縣 | AA47: 366220 | AB47: 336221 | AC47: 29999 | AD47: 2726031 | AE47: 2726031 | AF47: 94357 | AG47: 94357 | AH47: 南投縣 | AI47: 0 | AJ47: 484392 | AK47: 36000 | AL47: 0 | AM47: 0 | AN47: 218392 | AO47: 230000
A48: 雲林縣 | B48: 28653927 | C48: 4742483 | D48: 381158 | E48: 243006 | F48: 1438946 | G48: 2402659 | H48: 276714 | I48: 雲林縣 | J48: 12206384 | K48: 11786528 | L48: 0 | M48: 419856 | N48: 1140293 | O48: 765354 | P48: 143995 | Q48: 98596 | R48: 雲林縣 | S48: 132348 | T48: 6611092 | U48: 227800 | V48: 520923 | W48: 3841480 | X48: 0 | Y48: 2020889 | Z48: 雲林縣 | AA48: 300953 | AB48: 295304 | AC48: 5649 | AD48: 3108385 | AE48: 3108385 | AF48: 176837 | AG48: 176837 | AH48: 雲林縣 | AI48: 0 | AJ48: 367500 | AK48: 72000 | AL48: 0 | AM48: 0 | AN48: 295500 | AO48: 0
A49: 嘉義縣 | B49: 21827290 | C49: 4525312 | D49: 440699 | E49: 214356 | F49: 1458102 | G49: 2151681 | H49: 260474 | I49: 嘉義縣 | J49: 7827470 | K49: 7694310 | L49: 0 | M49: 133160 | N49: 918272 | O49: 479102 | P49: 42551 | Q49: 157185 | R49: 嘉義縣 | S49: 239434 | T49: 5326313 | U49: 148629 | V49: 127871 | W49: 3944330 | X49: 74941 | Y49: 1030542 | Z49: 嘉義縣 | AA49: 111854 | AB49: 111854 | AC49: 0 | AD49: 2301682 | AE49: 2301682 | AF49: 250000 | AG49: 250000 | AH49: 嘉義縣 | AI49: 0 | AJ49: 566387 | AK49: 22137 | AL49: 89250 | AM49: 0 | AN49: 455000 | AO49: 0
A50: 屏東縣 | B50: 36354877 | C50: 7469461 | D50: 586269 | E50: 304618 | F50: 3204465 | G50: 3038344 | H50: 335765 | I50: 屏東縣 | J50: 13560880 | K50: 13101780 | L50: 0 | M50: 459100 | N50: 1407677 | O50: 643202 | P50: 131955 | Q50: 318144 | R50: 屏東縣 | S50: 314376 | T50: 7730394 | U50: 259693 | V50: 395213 | W50: 3829875 | X50: 131495 | Y50: 3114118 | Z50: 屏東縣 | AA50: 566828 | AB50: 469823 | AC50: 97005 | AD50: 5112571 | AE50: 5112571 | AF50: 150000 | AG50: 150000 | AH50: 屏東縣 | AI50: 0 | AJ50: 357066 | AK50: 78000 | AL50: 0 | AM50: 0 | AN50: 219066 | AO50: 60000
A51: 臺東縣 | B51: 17212192 | C51: 4186989 | D51: 549830 | E51: 194681 | F51: 1763841 | G51: 1506183 | H51: 172454 | I51: 臺東縣 | J51: 5362525 | K51: 5125594 | L51: 0 | M51: 236931 | N51: 1171578 | O51: 453979 | P51: 168921 | Q51: 164841 | R51: 臺東縣 | S51: 383837 | T51: 3163775 | U51: 85999 | V51: 295051 | W51: 1425618 | X51: 25823 | Y51: 1331284 | Z51: 臺東縣 | AA51: 298139 | AB51: 277879 | AC51: 20260 | AD51: 2275294 | AE51: 2275294 | AF51: 100000 | AG51: 100000 | AH51: 臺東縣 | AI51: 0 | AJ51: 653892 | AK51: 1000 | AL51: 0 | AM51: 0 | AN51: 652892 | AO51: 0
A52: 花蓮縣 | B52: 20486655 | C52: 4714110 | D52: 381219 | E52: 214898 | F52: 1928445 | G52: 1907507 | H52: 282041 | I52: 花蓮縣 | J52: 7351194 | K52: 7037602 | L52: 0 | M52: 313592 | N52: 1093276 | O52: 409721 | P52: 320149 | Q52: 84521 | R52: 花蓮縣 | S52: 278885 | T52: 4213635 | U52: 104874 | V52: 243532 | W52: 3150452 | X52: 12882 | Y52: 701895 | Z52: 花蓮縣 | AA52: 402307 | AB52: 386937 | AC52: 15370 | AD52: 2318933 | AE52: 2318933 | AF52: 127200 | AG52: 127200 | AH52: 花蓮縣 | AI52: 0 | AJ52: 266000 | AK52: 0 | AL52: 0 | AM52: 0 | AN52: 206000 | AO52: 60000
A53: 澎湖縣 | B53: 9163199 | C53: 2404420 | D53: 223019 | E53: 153721 | F53: 573339 | G53: 1324910 | H53: 129431 | I53: 澎湖縣 | J53: 2485053 | K53: 2254247 | L53: 36750 | M53: 194056 | N53: 949640 | O53: 345937 | P53: 92008 | Q53: 0 | R53: 澎湖縣 | S53: 511695 | T53: 1881156 | U53: 45324 | V53: 100738 | W53: 1147609 | X53: 22001 | Y53: 565484 | Z53: 澎湖縣 | AA53: 380403 | AB53: 375779 | AC53: 4624 | AD53: 849655 | AE53: 849655 | AF53: 16740 | AG53: 16740 | AH53: 澎湖縣 | AI53: 0 | AJ53: 196132 | AK53: 58500 | AL53: 0 | AM53: 0 | AN53: 90632 | AO53: 47000
A54: 基隆市 | B54: 17256439 | C54: 4055209 | D54: 368902 | E54: 202707 | F54: 1465034 | G54: 1744121 | H54: 274445 | I54: 基隆市 | J54: 5708752 | K54: 5486653 | L54: 0 | M54: 222099 | N54: 887704 | O54: 173738 | P54: 86698 | Q54: 452053 | R54: 基隆市 | S54: 175215 | T54: 3837193 | U54: 454543 | V54: 302596 | W54: 2644403 | X54: 14641 | Y54: 421010 | Z54: 基隆市 | AA54: 868456 | AB54: 815508 | AC54: 52948 | AD54: 1658275 | AE54: 1658275 | AF54: 60000 | AG54: 60000 | AH54: 基隆市 | AI54: 0 | AJ54: 180850 | AK54: 0 | AL54: 0 | AM54: 0 | AN54: 153850 | AO54: 27000
A55: 新竹市 | B55: 20302126 | C55: 3482214 | D55: 324033 | E55: 200348 | F55: 1229596 | G55: 1472853 | H55: 255384 | I55: 新竹市 | J55: 7381759 | K55: 6798988 | L55: 0 | M55: 582771 | N55: 969228 | O55: 190182 | P55: 177618 | Q55: 306407 | R55: 新竹市 | S55: 295021 | T55: 4597469 | U55: 75500 | V55: 149800 | W55: 3284247 | X55: 58482 | Y55: 1029440 | Z55: 新竹市 | AA55: 1134671 | AB55: 1075842 | AC55: 58829 | AD55: 2326672 | AE55: 2326672 | AF55: 120000 | AG55: 120000 | AH55: 新竹市 | AI55: 0 | AJ55: 290113 | AK55: 0 | AL55: 0 | AM55: 0 | AN55: 155113 | AO55: 135000
A56: 嘉義市 | B56: 13340236 | C56: 3039634 | D56: 310008 | E56: 171687 | F56: 1033532 | G56: 1321437 | H56: 202970 | I56: 嘉義市 | J56: 5046453 | K56: 4766104 | L56: 0 | M56: 280349 | N56: 491911 | O56: 59816 | P56: 72381 | Q56: 110915 | R56: 嘉義市 | S56: 248799 | T56: 2414477 | U56: 66608 | V56: 95677 | W56: 1425215 | X56: 38910 | Y56: 788067 | Z56: 嘉義市 | AA56: 732681 | AB56: 723093 | AC56: 9588 | AD56: 1393980 | AE56: 1393980 | AF56: 7100 | AG56: 7100 | AH56: 嘉義市 | AI56: 0 | AJ56: 214000 | AK56: 0 | AL56: 0 | AM56: 0 | AN56: 199000 | AO56: 15000
A57: 金門縣 | B57: 9586272 | C57: 2164617 | D57: 502440 | E57: 177055 | F57: 733466 | G57: 691866 | H57: 59790 | I57: 金門縣 | J57: 2710921 | K57: 2423964 | L57: 0 | M57: 286957 | N57: 2047743 | O57: 813621 | P57: 229423 | Q57: 355127 | R57: 金門縣 | S57: 649572 | T57: 1488927 | U57: 33985 | V57: 49213 | W57: 754185 | X57: 0 | Y57: 651544 | Z57: 金門縣 | AA57: 370771 | AB57: 359895 | AC57: 10876 | AD57: 682501 | AE57: 682501 | AF57: 0 | AG57: 0 | AH57: 金門縣 | AI57: 0 | AJ57: 120792 | AK57: 0 | AL57: 39792 | AM57: 0 | AN57: 44000 | AO57: 37000
A58: 連江縣 | B58: 2757391 | C58: 679933 | D58: 233269 | E58: 63578 | F58: 175967 | G58: 178397 | H58: 28722 | I58: 連江縣 | J58: 800891 | K58: 682016 | L58: 0 | M58: 118875 | N58: 733099 | O58: 181352 | P58: 18910 | Q58: 489882 | R58: 連江縣 | S58: 42955 | T58: 399093 | U58: 1829 | V58: 9671 | W58: 130054 | X58: 0 | Y58: 257539 | Z58: 連江縣 | AA58: 80500 | AB58: 80500 | AC58: 0 | AD58: 51747 | AE58: 51747 | AF58: 600 | AG58: 600 | AH58: 連江縣 | AI58: 0 | AJ58: 11528 | AK58: 0 | AL58: 0 | AM58: 0 | AN58: 6528 | AO58: 5000
A59: (資本門) | I59: (資本門) | R59: (資本門) | Z59: (資本門) | AH59: (資本門)
A60: 總 計 | B60: 276950905 | C60: 22584919 | D60: 1646654 | E60: 233989 | F60: 13577423 | G60: 5180654 | H60: 1946199 | I60: 總 計 | J60: 64232050 | K60: 46164790 | L60: 0 | M60: 18067260 | N60: 146054377 | O60: 39905735 | P60: 10251086 | Q60: 84802457 | R60: 總 計 | S60: 11095099 | T60: 9148566 | U60: 0 | V60: 173 | W60: 6645861 | X60: 196403 | Y60: 2306129 | Z60: 總 計 | AA60: 22052996 | AB60: 16939277 | AC60: 5113719 | AD60: 0 | AE60: 0 | AF60: 0 | AG60: 0 | AH60: 總 計 | AI60: 0 | AJ60: 12877997 | AK60: 3000 | AL60: 47915 | AM60: 0 | AN60: 11750415 | AO60: 1076667
A61: 直轄市合計 | B61: 186331660 | C61: 15846137 | D61: 823672 | E61: 101532 | F61: 9910475 | G61: 3564442 | H61: 1446016 | I61: 直轄市合計 | J61: 40046954 | K61: 25548730 | L61: 0 | M61: 14498224 | N61: 98535456 | O61: 26950477 | P61: 6282486 | Q61: 62924081 | R61: 直轄市合計 | S61: 2378412 | T61: 6462488 | U61: 0 | V61: 38 | W61: 5337442 | X61: 173884 | Y61: 951124 | Z61: 直轄市合計 | AA61: 17070458 | AB61: 13410387 | AC61: 3660071 | AD61: 0 | AE61: 0 | AF61: 0 | AG61: 0 | AH61: 直轄市合計 | AI61: 0 | AJ61: 8370167 | AK61: 0 | AL61: 0 | AM61: 0 | AN61: 7683500 | AO61: 686667
A62: 新北市 | B62: 36664623 | C62: 5603948 | D62: 211564 | E62: 15698 | F62: 3529853 | G62: 559095 | H62: 1287738 | I62: 新北市 | J62: 4131926 | K62: 3020390 | L62: 0 | M62: 1111536 | N62: 20678496 | O62: 3556969 | P62: 43604 | Q62: 16448705 | R62: 新北市 | S62: 629218 | T62: 910873 | U62: 0 | V62: 0 | W62: 667265 | X62: 563 | Y62: 243045 | Z62: 新北市 | AA62: 3780380 | AB62: 3652206 | AC62: 128174 | AD62: 0 | AE62: 0 | AF62: 0 | AG62: 0 | AH62: 新北市 | AI62: 0 | AJ62: 1559000 | AK62: 0 | AL62: 0 | AM62: 0 | AN62: 1559000 | AO62: 0
A63: 臺北市 | B63: 33039899 | C63: 2292449 | D63: 254283 | E63: 23552 | F63: 987526 | G63: 940251 | H63: 86837 | I63: 臺北市 | J63: 7806139 | K63: 4919130 | L63: 0 | M63: 2887009 | N63: 14492706 | O63: 5356694 | P63: 216105 | Q63: 8819332 | R63: 臺北市 | S63: 100575 | T63: 2855451 | U63: 0 | V63: 0 | W63: 2437394 | X63: 170897 | Y63: 247160 | Z63: 臺北市 | AA63: 4323154 | AB63: 1648962 | AC63: 2674192 | AD63: 0 | AE63: 0 | AF63: 0 | AG63: 0 | AH63: 臺北市 | AI63: 0 | AJ63: 1270000 | AK63: 0 | AL63: 0 | AM63: 0 | AN63: 1050000 | AO63: 220000
A64: 桃園市 | B64: 38695503 | C64: 2513817 | D64: 68246 | E64: 17063 | F64: 1320604 | G64: 1098482 | H64: 9422 | I64: 桃園市 | J64: 11021148 | K64: 6116093 | L64: 0 | M64: 4905055 | N64: 22202295 | O64: 5126512 | P64: 4424119 | Q64: 12324900 | R64: 桃園市 | S64: 326764 | T64: 847137 | U64: 0 | V64: 0 | W64: 779055 | X64: 0 | Y64: 68082 | Z64: 桃園市 | AA64: 692106 | AB64: 575714 | AC64: 116392 | AD64: 0 | AE64: 0 | AF64: 0 | AG64: 0 | AH64: 桃園市 | AI64: 0 | AJ64: 1419000 | AK64: 0 | AL64: 0 | AM64: 0 | AN64: 1419000 | AO64: 0
A65: 臺中市 | B65: 28985818 | C65: 1813463 | D65: 98751 | E65: 5200 | F65: 1401441 | G65: 286515 | H65: 21556 | I65: 臺中市 | J65: 6781384 | K65: 4045028 | L65: 0 | M65: 2736356 | N65: 14931873 | O65: 1558070 | P65: 1405989 | Q65: 11593179 | R65: 臺中市 | S65: 374635 | T65: 826784 | U65: 0 | V65: 0 | W65: 716733 | X65: 0 | Y65: 110051 | Z65: 臺中市 | AA65: 3062314 | AB65: 2539098 | AC65: 523216 | AD65: 0 | AE65: 0 | AF65: 0 | AG65: 0 | AH65: 臺中市 | AI65: 0 | AJ65: 1570000 | AK65: 0 | AL65: 0 | AM65: 0 | AN65: 1370000 | AO65: 200000
A66: 臺南市 | B66: 23261218 | C66: 1590722 | D66: 84603 | E66: 19384 | F66: 1122666 | G66: 351700 | H66: 12369 | I66: 臺南市 | J66: 6093016 | K66: 4292519 | L66: 0 | M66: 1800497 | N66: 13909326 | O66: 7106745 | P66: 164682 | Q66: 6146318 | R66: 臺南市 | S66: 491581 | T66: 274210 | U66: 0 | V66: 0 | W66: 222729 | X66: 1711 | Y66: 49770 | Z66: 臺南市 | AA66: 471944 | AB66: 344527 | AC66: 127417 | AD66: 0 | AE66: 0 | AF66: 0 | AG66: 0 | AH66: 臺南市 | AI66: 0 | AJ66: 922000 | AK66: 0 | AL66: 0 | AM66: 0 | AN66: 922000 | AO66: 0
A67: 高雄市 | B67: 25684599 | C67: 2031738 | D67: 106225 | E67: 20635 | F67: 1548385 | G67: 328399 | H67: 28094 | I67: 高雄市 | J67: 4213341 | K67: 3155570 | L67: 0 | M67: 1057771 | N67: 12320760 | O67: 4245487 | P67: 27987 | Q67: 7591647 | R67: 高雄市 | S67: 455639 | T67: 748033 | U67: 0 | V67: 38 | W67: 514266 | X67: 713 | Y67: 233016 | Z67: 高雄市 | AA67: 4740560 | AB67: 4649880 | AC67: 90680 | AD67: 0 | AE67: 0 | AF67: 0 | AG67: 0 | AH67: 高雄市 | AI67: 0 | AJ67: 1630167 | AK67: 0 | AL67: 0 | AM67: 0 | AN67: 1363500 | AO67: 266667
A68: 縣市合計 | B68: 90619245 | C68: 6738782 | D68: 822982 | E68: 132457 | F68: 3666948 | G68: 1616212 | H68: 500183 | I68: 縣市合計 | J68: 24185096 | K68: 20616060 | L68: 0 | M68: 3569036 | N68: 47518921 | O68: 12955258 | P68: 3968600 | Q68: 21878376 | R68: 縣市合計 | S68: 8716687 | T68: 2686078 | U68: 0 | V68: 135 | W68: 1308419 | X68: 22519 | Y68: 1355005 | Z68: 縣市合計 | AA68: 4982538 | AB68: 3528890 | AC68: 1453648 | AD68: 0 | AE68: 0 | AF68: 0 | AG68: 0 | AH68: 縣市合計 | AI68: 0 | AJ68: 4507830 | AK68: 3000 | AL68: 47915 | AM68: 0 | AN68: 4066915 | AO68: 390000
A69: 宜蘭縣 | B69: 4718076 | C69: 341604 | D69: 50093 | E69: 1100 | F69: 245585 | G69: 41839 | H69: 2987 | I69: 宜蘭縣 | J69: 1001688 | K69: 882732 | L69: 0 | M69: 118956 | N69: 2068708 | O69: 437809 | P69: 2872 | Q69: 537881 | R69: 宜蘭縣 | S69: 1090146 | T69: 141401 | U69: 0 | V69: 0 | W69: 80402 | X69: 10150 | Y69: 50849 | Z69: 宜蘭縣 | AA69: 898131 | AB69: 14980 | AC69: 883151 | AD69: 0 | AE69: 0 | AF69: 0 | AG69: 0 | AH69: 宜蘭縣 | AI69: 0 | AJ69: 266544 | AK69: 0 | AL69: 0 | AM69: 0 | AN69: 266544 | AO69: 0
A70: 新竹縣 | B70: 8150728 | C70: 623084 | D70: 65150 | E70: 8201 | F70: 365961 | G70: 177842 | H70: 5930 | I70: 新竹縣 | J70: 3324116 | K70: 3086301 | L70: 0 | M70: 237815 | N70: 3152387 | O70: 215788 | P70: 14800 | Q70: 1857566 | R70: 新竹縣 | S70: 1064233 | T70: 174466 | U70: 0 | V70: 0 | W70: 144424 | X70: 0 | Y70: 30042 | Z70: 新竹縣 | AA70: 553025 | AB70: 553025 | AC70: 0 | AD70: 0 | AE70: 0 | AF70: 0 | AG70: 0 | AH70: 新竹縣 | AI70: 0 | AJ70: 323650 | AK70: 0 | AL70: 0 | AM70: 0 | AN70: 323650 | AO70: 0
A71: 苗栗縣 | B71: 2835092 | C71: 315148 | D71: 25373 | E71: 6610 | F71: 144500 | G71: 134113 | H71: 4552 | I71: 苗栗縣 | J71: 290814 | K71: 242448 | L71: 0 | M71: 48366 | N71: 977629 | O71: 304117 | P71: 720 | Q71: 552316 | R71: 苗栗縣 | S71: 120476 | T71: 52796 | U71: 0 | V71: 0 | W71: 10425 | X71: 176 | Y71: 42195 | Z71: 苗栗縣 | AA71: 982955 | AB71: 802955 | AC71: 180000 | AD71: 0 | AE71: 0 | AF71: 0 | AG71: 0 | AH71: 苗栗縣 | AI71: 0 | AJ71: 215750 | AK71: 0 | AL71: 0 | AM71: 0 | AN71: 215750 | AO71: 0
A72: 彰化縣 | B72: 11819709 | C72: 545202 | D72: 22427 | E72: 4534 | F72: 104085 | G72: 194543 | H72: 219613 | I72: 彰化縣 | J72: 2960823 | K72: 2872353 | L72: 0 | M72: 88470 | N72: 6987025 | O72: 1989161 | P72: 0 | Q72: 3539403 | R72: 彰化縣 | S72: 1458461 | T72: 499303 | U72: 0 | V72: 0 | W72: 45168 | X72: 0 | Y72: 454135 | Z72: 彰化縣 | AA72: 327356 | AB72: 80139 | AC72: 247217 | AD72: 0 | AE72: 0 | AF72: 0 | AG72: 0 | AH72: 彰化縣 | AI72: 0 | AJ72: 500000 | AK72: 0 | AL72: 0 | AM72: 0 | AN72: 500000 | AO72: 0
A73: 南投縣 | B73: 5303776 | C73: 608092 | D73: 287933 | E73: 5050 | F73: 177925 | G73: 132848 | H73: 4336 | I73: 南投縣 | J73: 743900 | K73: 696219 | L73: 0 | M73: 47681 | N73: 3532947 | O73: 202185 | P73: 1304184 | Q73: 2015258 | R73: 南投縣 | S73: 11320 | T73: 22813 | U73: 0 | V73: 0 | W73: 0 | X73: 0 | Y73: 22813 | Z73: 南投縣 | AA73: 106974 | AB73: 30424 | AC73: 76550 | AD73: 0 | AE73: 0 | AF73: 0 | AG73: 0 | AH73: 南投縣 | AI73: 0 | AJ73: 289050 | AK73: 0 | AL73: 0 | AM73: 0 | AN73: 289050 | AO73: 0
A74: 雲林縣 | B74: 8653865 | C74: 156374 | D74: 15116 | E74: 1970 | F74: 68247 | G74: 67266 | H74: 3775 | I74: 雲林縣 | J74: 2790888 | K74: 2315037 | L74: 0 | M74: 475851 | N74: 4929434 | O74: 2109438 | P74: 8527 | Q74: 1493985 | R74: 雲林縣 | S74: 1317484 | T74: 188248 | U74: 0 | V74: 0 | W74: 82249 | X74: 0 | Y74: 105999 | Z74: 雲林縣 | AA74: 135843 | AB74: 79460 | AC74: 56383 | AD74: 0 | AE74: 0 | AF74: 0 | AG74: 0 | AH74: 雲林縣 | AI74: 0 | AJ74: 453078 | AK74: 0 | AL74: 0 | AM74: 0 | AN74: 373078 | AO74: 80000
A75: 嘉義縣 | B75: 6525907 | C75: 435966 | D75: 104450 | E75: 25900 | F75: 163120 | G75: 128396 | H75: 14100 | I75: 嘉義縣 | J75: 1120697 | K75: 1074812 | L75: 0 | M75: 45885 | N75: 4269053 | O75: 2754510 | P75: 23543 | Q75: 1236676 | R75: 嘉義縣 | S75: 254324 | T75: 257118 | U75: 0 | V75: 0 | W75: 217311 | X75: 298 | Y75: 39509 | Z75: 嘉義縣 | AA75: 79473 | AB75: 79473 | AC75: 0 | AD75: 0 | AE75: 0 | AF75: 0 | AG75: 0 | AH75: 嘉義縣 | AI75: 0 | AJ75: 363600 | AK75: 0 | AL75: 0 | AM75: 0 | AN75: 283600 | AO75: 80000
A76: 屏東縣 | B76: 10762123 | C76: 1174101 | D76: 64465 | E76: 25595 | F76: 718302 | G76: 202036 | H76: 163703 | I76: 屏東縣 | J76: 2878137 | K76: 2169964 | L76: 0 | M76: 708173 | N76: 5588893 | O76: 2908753 | P76: 697070 | Q76: 1413209 | R76: 屏東縣 | S76: 569861 | T76: 440218 | U76: 0 | V76: 0 | W76: 169316 | X76: 11685 | Y76: 259217 | Z76: 屏東縣 | AA76: 206768 | AB76: 206768 | AC76: 0 | AD76: 0 | AE76: 0 | AF76: 0 | AG76: 0 | AH76: 屏東縣 | AI76: 0 | AJ76: 474006 | AK76: 0 | AL76: 0 | AM76: 0 | AN76: 474006 | AO76: 0
A77: 臺東縣 | B77: 3633819 | C77: 593695 | D77: 10900 | E77: 9000 | F77: 491201 | G77: 57895 | H77: 24699 | I77: 臺東縣 | J77: 1033949 | K77: 902186 | L77: 0 | M77: 131763 | N77: 1312370 | O77: 308752 | P77: 0 | Q77: 478543 | R77: 臺東縣 | S77: 525075 | T77: 188460 | U77: 0 | V77: 0 | W77: 76754 | X77: 0 | Y77: 111706 | Z77: 臺東縣 | AA77: 235345 | AB77: 235345 | AC77: 0 | AD77: 0 | AE77: 0 | AF77: 0 | AG77: 0 | AH77: 臺東縣 | AI77: 0 | AJ77: 270000 | AK77: 0 | AL77: 0 | AM77: 0 | AN77: 210000 | AO77: 60000
A78: 花蓮縣 | B78: 5770061 | C78: 661763 | D78: 8848 | E78: 11190 | F78: 544851 | G78: 92078 | H78: 4796 | I78: 花蓮縣 | J78: 1435218 | K78: 1314225 | L78: 0 | M78: 120993 | N78: 3161052 | O78: 486385 | P78: 548376 | Q78: 1670503 | R78: 花蓮縣 | S78: 455788 | T78: 142076 | U78: 0 | V78: 135 | W78: 89438 | X78: 10 | Y78: 52493 | Z78: 花蓮縣 | AA78: 116952 | AB78: 115892 | AC78: 1060 | AD78: 0 | AE78: 0 | AF78: 0 | AG78: 0 | AH78: 花蓮縣 | AI78: 0 | AJ78: 253000 | AK78: 0 | AL78: 0 | AM78: 0 | AN78: 253000 | AO78: 0
A79: 澎湖縣 | B79: 3537963 | C79: 111545 | D79: 8170 | E79: 3500 | F79: 57707 | G79: 40500 | H79: 1668 | I79: 澎湖縣 | J79: 684524 | K79: 488374 | L79: 0 | M79: 196150 | N79: 2200954 | O79: 334168 | P79: 535403 | Q79: 1331383 | R79: 澎湖縣 | S79: 0 | T79: 192978 | U79: 0 | V79: 0 | W79: 135199 | X79: 0 | Y79: 57779 | Z79: 澎湖縣 | AA79: 220655 | AB79: 220655 | AC79: 0 | AD79: 0 | AE79: 0 | AF79: 0 | AG79: 0 | AH79: 澎湖縣 | AI79: 0 | AJ79: 127307 | AK79: 0 | AL79: 0 | AM79: 0 | AN79: 127307 | AO79: 0
A80: 基隆市 | B80: 3898160 | C80: 271657 | D80: 47187 | E80: 7105 | F80: 176733 | G80: 35226 | H80: 5406 | I80: 基隆市 | J80: 1342167 | K80: 1247693 | L80: 0 | M80: 94474 | N80: 1929528 | O80: 67318 | P80: 534080 | Q80: 877799 | R80: 基隆市 | S80: 450331 | T80: 67101 | U80: 0 | V80: 0 | W80: 43506 | X80: 0 | Y80: 23595 | Z80: 基隆市 | AA80: 72207 | AB80: 71907 | AC80: 300 | AD80: 0 | AE80: 0 | AF80: 0 | AG80: 0 | AH80: 基隆市 | AI80: 0 | AJ80: 215500 | AK80: 0 | AL80: 0 | AM80: 0 | AN80: 215500 | AO80: 0
A81: 新竹市 | B81: 5313177 | C81: 368684 | D81: 14165 | E81: 6277 | F81: 163765 | G81: 175924 | H81: 8553 | I81: 新竹市 | J81: 2594313 | K81: 1916877 | L81: 0 | M81: 677436 | N81: 1537511 | O81: 169112 | P81: 235725 | Q81: 833080 | R81: 新竹市 | S81: 299594 | T81: 64752 | U81: 0 | V81: 0 | W81: 39278 | X81: 200 | Y81: 25274 | Z81: 新竹市 | AA81: 327917 | AB81: 323930 | AC81: 3987 | AD81: 0 | AE81: 0 | AF81: 0 | AG81: 0 | AH81: 新竹市 | AI81: 0 | AJ81: 420000 | AK81: 0 | AL81: 0 | AM81: 0 | AN81: 260000 | AO81: 160000
A82: 嘉義市 | B82: 3282056 | C82: 387184 | D82: 50990 | E82: 2100 | F82: 190013 | G82: 109049 | H82: 35032 | I82: 嘉義市 | J82: 639220 | K82: 517298 | L82: 0 | M82: 121922 | N82: 1843106 | O82: 0 | P82: 0 | Q82: 1603179 | R82: 嘉義市 | S82: 239927 | T82: 53480 | U82: 0 | V82: 0 | W82: 16320 | X82: 0 | Y82: 37160 | Z82: 嘉義市 | AA82: 249066 | AB82: 249066 | AC82: 0 | AD82: 0 | AE82: 0 | AF82: 0 | AG82: 0 | AH82: 嘉義市 | AI82: 0 | AJ82: 110000 | AK82: 0 | AL82: 0 | AM82: 0 | AN82: 110000 | AO82: 0
A83: 金門縣 | B83: 4348489 | C83: 76754 | D83: 17252 | E83: 12142 | F83: 24380 | G83: 22905 | H83: 75 | I83: 金門縣 | J83: 841863 | K83: 630970 | L83: 0 | M83: 210893 | N83: 2627111 | O83: 454878 | P83: 63300 | Q83: 1840771 | R83: 金門縣 | S83: 268162 | T83: 178786 | U83: 0 | V83: 0 | W83: 157829 | X83: 0 | Y83: 20957 | Z83: 金門縣 | AA83: 458060 | AB83: 453060 | AC83: 5000 | AD83: 0 | AE83: 0 | AF83: 0 | AG83: 0 | AH83: 金門縣 | AI83: 0 | AJ83: 165915 | AK83: 0 | AL83: 47915 | AM83: 0 | AN83: 118000 | AO83: 0
A84: 連江縣 | B84: 2066244 | C84: 67929 | D84: 30463 | E84: 2183 | F84: 30573 | G84: 3752 | H84: 958 | I84: 連江縣 | J84: 502779 | K84: 258571 | L84: 0 | M84: 244208 | N84: 1401213 | O84: 212884 | P84: 0 | Q84: 596824 | R84: 連江縣 | S84: 591505 | T84: 22082 | U84: 0 | V84: 0 | W84: 800 | X84: 0 | Y84: 21282 | Z84: 連江縣 | AA84: 11811 | AB84: 11811 | AC84: 0 | AD84: 0 | AE84: 0 | AF84: 0 | AG84: 0 | AH84: 連江縣 | AI84: 0 | AJ84: 60430 | AK84: 3000 | AL84: 0 | AM84: 0 | AN84: 47430 | AO84: 10000

Sheet 政事別-經
D1: 各直轄市及縣 | E1: (市)總預算 | M1: 各直轄市及縣 | N1: (市)總預算 | U1: 各直轄市及縣 | V1: (市)總預算 | AC1: 各直轄市及縣 | AD1: (市)總預算 | AK1: 各直轄市及縣 | AL1: (市)總預算
D2: 歲出政事別 | E2: 預算總表 | H2: (續五) | M2: 歲出政事別 | N2: 預算總表 | Q2: (續六) | U2: 歲出政事別 | V2: 預算總表 | Y2: (續七) | AC2: 歲出政事別 | AD2: 預算總表 | AG2: (續八) | AK2: 歲出政事別 | AL2: 預算總表 | AO2: (續九)
D3: 中華民國 | E3: =簡明總!#REF! ->  | H3: 單位：新臺幣千元 | M3: 中華民國 | N3: =E3 ->  | Q3: 單位：新臺幣千元 | U3: 中華民國 | V3: =N3 ->  | Y3: 單位：新臺幣千元 | AC3: 中華民國 | AD3: =V3 ->  | AG3: 單位：新臺幣千元 | AK3: 中華民國 | AL3: =AD3 ->  | AO3: 單位：新臺幣千元
A4: 科 目 | C4: 一般政務支出 | D4: 行政支出 | E4: 立法支出 | F4: 民政支出 | G4: 警政支出 | H4: 財務支出 | I4: 科 目 | J4: 教育科學 文化支出 | K4: 教育支出 | L4: 科學支出 | M4: 文化支出 | N4: 經濟發展支出 | O4: 農業支出 | P4: 工業支出 | Q4: 交通支出 | R4: 科 目 | S4: 其他經濟 服務支出 | T4: 社會福利支出 | U4: 社會保險支出 | V4: 社會救助支出 | W4: 福利服務支出 | X4: 國民就業支出 | Y4: 醫療保健支出 | Z4: 科 目 | AA4: 社區發展及環 境保護支出 | AB4: 環境保護支出 | AC4: 社區發展支出 | AD4: 退休撫 卹支出 | AE4: 退休撫卹 給付支出 | AF4: 債務支出 | AG4: 債務付息支出 | AH4: 科 目 | AI4: 還本付息 事務支出 | AJ4: 補助及其他支出 | AK4: 專案補助支出 | AL4: 平衡預算 補助支出 | AM4: 協助支出 | AN4: 其他支出 | AO4: 第二預備金
A5: 款 | B5: 合 計 | C5: 1 | I5: 款 | J5: 2 | N5: 3 | R5: 款 | T5: 4 | Z5: 款 | AA5: 5 | AD5: 6 | AF5: 7 | AH5: 款 | AJ5: 8
A6: 項 | D6: 1 | E6: 2 | F6: 3 | G6: 4 | H6: 5 | I6: 項 | K6: 1 | L6: 2 | M6: 3 | O6: 1 | P6: 2 | Q6: 3 | R6: 項 | S6: 4 | U6: 1 | V6: 2 | W6: 3 | X6: 4 | Y6: 5 | Z6: 項 | AB6: 1 | AC6: 2 | AE6: 1 | AG6: 1 | AH6: 項 | AI6: 2 | AK6: 1 | AL6: 2 | AM6: 3 | AN6: 4 | AO6: 5
A7: (經資門併計) | I7: (經資門併計) | R7: (經資門併計) | Z7: (經資門併計) | AH7: (經資門併計)
A8: 總 計 | B8: 1324656276 | C8: 226859887 | D8: 15031996 | E8: 7931275 | F8: 96106440 | G8: 95578102 | H8: 12212074 | I8: 總 計 | J8: 486299944 | K8: 446027370 | L8: 36750 | M8: 40235824 | N8: 210302320 | O8: 55922546 | P8: 18822324 | Q8: 112154053 | R8: 總 計 | S8: 23403397 | T8: 233257164 | U8: 11198053 | V8: 21687697 | W8: 146221322 | X8: 1612937 | Y8: 52537155 | Z8: 總 計 | AA8: 72471322 | AB8: 61328566 | AC8: 11142756 | AD8: 60529202 | AE8: 60529202 | AF8: 7962358 | AG8: 7939780 | AH8: 總 計 | AI8: 22578 | AJ8: 26974079 | AK8: 303712 | AL8: 219707 | AM8: 0 | AN8: 21974660 | AO8: 4476000
A9: 直轄市合計 | B9: 903833715 | C9: 153590804 | D9: 8105627 | E9: 4494355 | F9: 68953397 | G9: 63983293 | H9: 8054132 | I9: 直轄市合計 | J9: 335152376 | K9: 303123664 | L9: 0 | M9: 32028712 | N9: 146700676 | O9: 36401691 | P9: 12753963 | Q9: 87196707 | R9: 直轄市合計 | S9: 10348315 | T9: 161942885 | U9: 8845419 | V9: 18447094 | W9: 102243435 | X9: 892827 | Y9: 31514110 | Z9: 直轄市合計 | AA9: 60289336 | AB9: 51083219 | AC9: 9206117 | AD9: 23357209 | AE9: 23357209 | AF9: 5645218 | AG9: 5622640 | AH9: 直轄市合計 | AI9: 22578 | AJ9: 17155211 | AK9: 0 | AL9: 0 | AM9: 0 | AN9: 14315211 | AO9: 2840000
A10: 新北市 | B10: 186482841 | C10: 35219536 | D10: 1752918 | E10: 698667 | F10: 18139442 | G10: 12079369 | H10: 2549140 | I10: 新北市 | J10: 64727732 | K10: 61197834 | L10: 0 | M10: 3529898 | N10: 28271990 | O10: 5323680 | P10: 777705 | Q10: 20758752 | R10: 新北市 | S10: 1411853 | T10: 35049348 | U10: 1467157 | V10: 1498277 | W10: 24721878 | X10: 123427 | Y10: 7238609 | Z10: 新北市 | AA10: 13999760 | AB10: 13128371 | AC10: 871389 | AD10: 4040780 | AE10: 4040780 | AF10: 1036000 | AG10: 1036000 | AH10: 新北市 | AI10: 0 | AJ10: 4137695 | AK10: 0 | AL10: 0 | AM10: 0 | AN10: 3737695 | AO10: 400000
A11: 臺北市 | B11: 171583466 | C11: 29101885 | D11: 2159335 | E11: 858946 | F11: 9955868 | G11: 14090012 | H11: 2037724 | I11: 臺北市 | J11: 63530256 | K11: 54772174 | L11: 0 | M11: 8758082 | N11: 28360179 | O11: 7700834 | P11: 2056111 | Q11: 16830823 | R11: 臺北市 | S11: 1772411 | T11: 27338235 | U11: 668657 | V11: 9221035 | W11: 11889182 | X11: 550702 | Y11: 5008659 | Z11: 臺北市 | AA11: 13960768 | AB11: 9634288 | AC11: 4326480 | AD11: 5258356 | AE11: 5258356 | AF11: 597287 | AG11: 589287 | AH11: 臺北市 | AI11: 8000 | AJ11: 3436500 | AK11: 0 | AL11: 0 | AM11: 0 | AN11: 2696500 | AO11: 740000
A12: 桃園市 | B12: 141051000 | C12: 21905475 | D12: 1048100 | E12: 675773 | F12: 10308031 | G12: 9100235 | H12: 773336 | I12: 桃園市 | J12: 55293196 | K12: 47306027 | L12: 0 | M12: 7987169 | N12: 29095449 | O12: 6802394 | P12: 5954126 | Q12: 14852504 | R12: 桃園市 | S12: 1486425 | T12: 22934719 | U12: 1279655 | V12: 3622706 | W12: 15686683 | X12: 0 | Y12: 2345675 | Z12: 桃園市 | AA12: 7802543 | AB12: 6316099 | AC12: 1486444 | AD12: 1451441 | AE12: 1451441 | AF12: 394555 | AG12: 394555 | AH12: 桃園市 | AI12: 0 | AJ12: 2173622 | AK12: 0 | AL12: 0 | AM12: 0 | AN12: 1773622 | AO12: 400000
A13: 臺中市 | B13: 151200912 | C13: 24808789 | D13: 1441222 | E13: 798040 | F13: 10866968 | G13: 10646884 | H13: 1055675 | I13: 臺中市 | J13: 58704942 | K13: 54052093 | L13: 0 | M13: 4652849 | N13: 22753093 | O13: 2701681 | P13: 3214239 | Q13: 15505931 | R13: 臺中市 | S13: 1331242 | T13: 28837522 | U13: 951246 | V13: 2130855 | W13: 18671302 | X13: 20442 | Y13: 7063677 | Z13: 臺中市 | AA13: 9348873 | AB13: 8092552 | AC13: 1256321 | AD13: 3096693 | AE13: 3096693 | AF13: 870000 | AG13: 870000 | AH13: 臺中市 | AI13: 0 | AJ13: 2781000 | AK13: 0 | AL13: 0 | AM13: 0 | AN13: 2281000 | AO13: 500000
A14: 臺南市 | B14: 102065814 | C14: 17680597 | D14: 775352 | E14: 683452 | F14: 8380103 | G14: 7190196 | H14: 651494 | I14: 臺南市 | J14: 37537779 | K14: 33981930 | L14: 0 | M14: 3555849 | N14: 18891225 | O14: 8866462 | P14: 691681 | Q14: 7798052 | R14: 臺南市 | S14: 1535030 | T14: 18233350 | U14: 729295 | V14: 681185 | W14: 15309410 | X14: 97169 | Y14: 1416291 | Z14: 臺南市 | AA14: 3984754 | AB14: 3255223 | AC14: 729531 | AD14: 3546109 | AE14: 3546109 | AF14: 516000 | AG14: 516000 | AH14: 臺南市 | AI14: 0 | AJ14: 1676000 | AK14: 0 | AL14: 0 | AM14: 0 | AN14: 1276000 | AO14: 400000
A15: 高雄市 | B15: 151449682 | C15: 24874522 | D15: 928700 | E15: 779477 | F15: 11302985 | G15: 10876597 | H15: 986763 | I15: 高雄市 | J15: 55358471 | K15: 51813606 | L15: 0 | M15: 3544865 | N15: 19328740 | O15: 5006640 | P15: 60101 | Q15: 11450645 | R15: 高雄市 | S15: 2811354 | T15: 29549711 | U15: 3749409 | V15: 1293036 | W15: 15964980 | X15: 101087 | Y15: 8441199 | Z15: 高雄市 | AA15: 11192638 | AB15: 10656686 | AC15: 535952 | AD15: 5963830 | AE15: 5963830 | AF15: 2231376 | AG15: 2216798 | AH15: 高雄市 | AI15: 14578 | AJ15: 2950394 | AK15: 0 | AL15: 0 | AM15: 0 | AN15: 2550394 | AO15: 400000
A16: 縣市合計 | B16: 420822561 | C16: 73269083 | D16: 6926369 | E16: 3436920 | F16: 27153043 | G16: 31594809 | H16: 4157942 | I16: 縣市合計 | J16: 151147568 | K16: 142903706 | L16: 36750 | M16: 8207112 | N16: 63601644 | O16: 19520855 | P16: 6068361 | Q16: 24957346 | R16: 縣市合計 | S16: 13055082 | T16: 71314279 | U16: 2352634 | V16: 3240603 | W16: 43977887 | X16: 720110 | Y16: 21023045 | Z16: 縣市合計 | AA16: 12181986 | AB16: 10245347 | AC16: 1936639 | AD16: 37171993 | AE16: 37171993 | AF16: 2317140 | AG16: 2317140 | AH16: 縣市合計 | AI16: 0 | AJ16: 9818868 | AK16: 303712 | AL16: 219707 | AM16: 0 | AN16: 7659449 | AO16: 1636000
A17: 宜蘭縣 | B17: 26653640 | C17: 4302364 | D17: 368153 | E17: 192709 | F17: 1534150 | G17: 1989386 | H17: 217966 | I17: 宜蘭縣 | J17: 10865055 | K17: 10245694 | L17: 0 | M17: 619361 | N17: 3280803 | O17: 1092811 | P17: 188833 | Q17: 680582 | R17: 宜蘭縣 | S17: 1318577 | T17: 3941895 | U17: 123415 | V17: 159553 | W17: 1996722 | X17: 80086 | Y17: 1582119 | Z17: 宜蘭縣 | AA17: 1467484 | AB17: 464560 | AC17: 1002924 | AD17: 1991372 | AE17: 1991372 | AF17: 146410 | AG17: 146410 | AH17: 宜蘭縣 | AI17: 0 | AJ17: 658257 | AK17: 9750 | AL17: 0 | AM17: 0 | AN17: 568507 | AO17: 80000
A18: 新竹縣 | B18: 32360287 | C18: 4783299 | D18: 424492 | E18: 220270 | F18: 2049815 | G18: 1851170 | H18: 237552 | I18: 新竹縣 | J18: 13892448 | K18: 13405572 | L18: 0 | M18: 486876 | N18: 3777021 | O18: 475189 | P18: 75124 | Q18: 2000780 | R18: 新竹縣 | S18: 1225928 | T18: 5334778 | U18: 101856 | V18: 115372 | W18: 4368919 | X18: 40562 | Y18: 708069 | Z18: 新竹縣 | AA18: 1124065 | AB18: 1124065 | AC18: 0 | AD18: 2468556 | AE18: 2468556 | AF18: 200000 | AG18: 200000 | AH18: 新竹縣 | AI18: 0 | AJ18: 780120 | AK18: 0 | AL18: 0 | AM18: 0 | AN18: 380120 | AO18: 400000
A19: 苗栗縣 | B19: 21566773 | C19: 4865472 | D19: 365302 | E19: 220376 | F19: 1899075 | G19: 2119606 | H19: 261113 | I19: 苗栗縣 | J19: 7862216 | K19: 7597597 | L19: 0 | M19: 264619 | N19: 1356436 | O19: 524458 | P19: 17181 | Q19: 615592 | R19: 苗栗縣 | S19: 199205 | T19: 2996196 | U19: 123783 | V19: 213845 | W19: 1456292 | X19: 59459 | Y19: 1142817 | Z19: 苗栗縣 | AA19: 1128667 | AB19: 940471 | AC19: 188196 | AD19: 2439786 | AE19: 2439786 | AF19: 500000 | AG19: 500000 | AH19: 苗栗縣 | AI19: 0 | AJ19: 418000 | AK19: 0 | AL19: 42750 | AM19: 0 | AN19: 325250 | AO19: 50000
A20: 彰化縣 | B20: 56604393 | C20: 8122989 | D20: 436396 | E20: 296924 | F20: 2294849 | G20: 4454840 | H20: 639980 | I20: 彰化縣 | J20: 21904508 | K20: 21504257 | L20: 0 | M20: 400251 | N20: 8386644 | O20: 2634204 | P20: 164289 | Q20: 3720047 | R20: 彰化縣 | S20: 1868104 | T20: 10676934 | U20: 364960 | V20: 335952 | W20: 5807400 | X20: 131872 | Y20: 4036750 | Z20: 彰化縣 | AA20: 626916 | AB20: 329825 | AC20: 297091 | AD20: 5466553 | AE20: 5466553 | AF20: 367896 | AG20: 367896 | AH20: 彰化縣 | AI20: 0 | AJ20: 1051953 | AK20: 23325 | AL20: 0 | AM20: 0 | AN20: 928628 | AO20: 100000
A21: 南投縣 | B21: 28905000 | C21: 5424925 | D21: 659174 | E21: 259024 | F21: 1741529 | G21: 2504822 | H21: 260376 | I21: 南投縣 | J21: 10317304 | K21: 10156793 | L21: 0 | M21: 160511 | N21: 4190094 | O21: 471991 | P21: 1492301 | Q21: 2026722 | R21: 南投縣 | S21: 199080 | T21: 4905653 | U21: 133836 | V21: 125461 | W21: 3743086 | X21: 16763 | Y21: 886507 | Z21: 南投縣 | AA21: 473194 | AB21: 366645 | AC21: 106549 | AD21: 2726031 | AE21: 2726031 | AF21: 94357 | AG21: 94357 | AH21: 南投縣 | AI21: 0 | AJ21: 773442 | AK21: 36000 | AL21: 0 | AM21: 0 | AN21: 507442 | AO21: 230000
A22: 雲林縣 | B22: 37307792 | C22: 4898857 | D22: 396274 | E22: 244976 | F22: 1507193 | G22: 2469925 | H22: 280489 | I22: 雲林縣 | J22: 14997272 | K22: 14101565 | L22: 0 | M22: 895707 | N22: 6069727 | O22: 2874792 | P22: 152522 | Q22: 1592581 | R22: 雲林縣 | S22: 1449832 | T22: 6799340 | U22: 227800 | V22: 520923 | W22: 3923729 | X22: 0 | Y22: 2126888 | Z22: 雲林縣 | AA22: 436796 | AB22: 374764 | AC22: 62032 | AD22: 3108385 | AE22: 3108385 | AF22: 176837 | AG22: 176837 | AH22: 雲林縣 | AI22: 0 | AJ22: 820578 | AK22: 72000 | AL22: 0 | AM22: 0 | AN22: 668578 | AO22: 80000
A23: 嘉義縣 | B23: 28353197 | C23: 4961278 | D23: 545149 | E23: 240256 | F23: 1621222 | G23: 2280077 | H23: 274574 | I23: 嘉義縣 | J23: 8948167 | K23: 8769122 | L23: 0 | M23: 179045 | N23: 5187325 | O23: 3233612 | P23: 66094 | Q23: 1393861 | R23: 嘉義縣 | S23: 493758 | T23: 5583431 | U23: 148629 | V23: 127871 | W23: 4161641 | X23: 75239 | Y23: 1070051 | Z23: 嘉義縣 | AA23: 191327 | AB23: 191327 | AC23: 0 | AD23: 2301682 | AE23: 2301682 | AF23: 250000 | AG23: 250000 | AH23: 嘉義縣 | AI23: 0 | AJ23: 929987 | AK23: 22137 | AL23: 89250 | AM23: 0 | AN23: 738600 | AO23: 80000
A24: 屏東縣 | B24: 47117000 | C24: 8643562 | D24: 650734 | E24: 330213 | F24: 3922767 | G24: 3240380 | H24: 499468 | I24: 屏東縣 | J24: 16439017 | K24: 15271744 | L24: 0 | M24: 1167273 | N24: 6996570 | O24: 3551955 | P24: 829025 | Q24: 1731353 | R24: 屏東縣 | S24: 884237 | T24: 8170612 | U24: 259693 | V24: 395213 | W24: 3999191 | X24: 143180 | Y24: 3373335 | Z24: 屏東縣 | AA24: 773596 | AB24: 676591 | AC24: 97005 | AD24: 5112571 | AE24: 5112571 | AF24: 150000 | AG24: 150000 | AH24: 屏東縣 | AI24: 0 | AJ24: 831072 | AK24: 78000 | AL24: 0 | AM24: 0 | AN24: 693072 | AO24: 60000
A25: 臺東縣 | B25: 20846011 | C25: 4780684 | D25: 560730 | E25: 203681 | F25: 2255042 | G25: 1564078 | H25: 197153 | I25: 臺東縣 | J25: 6396474 | K25: 6027780 | L25: 0 | M25: 368694 | N25: 2483948 | O25: 762731 | P25: 168921 | Q25: 643384 | R25: 臺東縣 | S25: 908912 | T25: 3352235 | U25: 85999 | V25: 295051 | W25: 1502372 | X25: 25823 | Y25: 1442990 | Z25: 臺東縣 | AA25: 533484 | AB25: 513224 | AC25: 20260 | AD25: 2275294 | AE25: 2275294 | AF25: 100000 | AG25: 100000 | AH25: 臺東縣 | AI25: 0 | AJ25: 923892 | AK25: 1000 | AL25: 0 | AM25: 0 | AN25: 862892 | AO25: 60000
A26: 花蓮縣 | B26: 26256716 | C26: 5375873 | D26: 390067 | E26: 226088 | F26: 2473296 | G26: 1999585 | H26: 286837 | I26: 花蓮縣 | J26: 8786412 | K26: 8351827 | L26: 0 | M26: 434585 | N26: 4254328 | O26: 896106 | P26: 868525 | Q26: 1755024 | R26: 花蓮縣 | S26: 734673 | T26: 4355711 | U26: 104874 | V26: 243667 | W26: 3239890 | X26: 12892 | Y26: 754388 | Z26: 花蓮縣 | AA26: 519259 | AB26: 502829 | AC26: 16430 | AD26: 2318933 | AE26: 2318933 | AF26: 127200 | AG26: 127200 | AH26: 花蓮縣 | AI26: 0 | AJ26: 519000 | AK26: 0 | AL26: 0 | AM26: 0 | AN26: 459000 | AO26: 60000
A27: 澎湖縣 | B27: 12701162 | C27: 2515965 | D27: 231189 | E27: 157221 | F27: 631046 | G27: 1365410 | H27: 131099 | I27: 澎湖縣 | J27: 3169577 | K27: 2742621 | L27: 36750 | M27: 390206 | N27: 3150594 | O27: 680105 | P27: 627411 | Q27: 1331383 | R27: 澎湖縣 | S27: 511695 | T27: 2074134 | U27: 45324 | V27: 100738 | W27: 1282808 | X27: 22001 | Y27: 623263 | Z27: 澎湖縣 | AA27: 601058 | AB27: 596434 | AC27: 4624 | AD27: 849655 | AE27: 849655 | AF27: 16740 | AG27: 16740 | AH27: 澎湖縣 | AI27: 0 | AJ27: 323439 | AK27: 58500 | AL27: 0 | AM27: 0 | AN27: 217939 | AO27: 47000
A28: 基隆市 | B28: 21154599 | C28: 4326866 | D28: 416089 | E28: 209812 | F28: 1641767 | G28: 1779347 | H28: 279851 | I28: 基隆市 | J28: 7050919 | K28: 6734346 | L28: 0 | M28: 316573 | N28: 2817232 | O28: 241056 | P28: 620778 | Q28: 1329852 | R28: 基隆市 | S28: 625546 | T28: 3904294 | U28: 454543 | V28: 302596 | W28: 2687909 | X28: 14641 | Y28: 444605 | Z28: 基隆市 | AA28: 940663 | AB28: 887415 | AC28: 53248 | AD28: 1658275 | AE28: 1658275 | AF28: 60000 | AG28: 60000 | AH28: 基隆市 | AI28: 0 | AJ28: 396350 | AK28: 0 | AL28: 0 | AM28: 0 | AN28: 369350 | AO28: 27000
A29: 新竹市 | B29: 25615303 | C29: 3850898 | D29: 338198 | E29: 206625 | F29: 1393361 | G29: 1648777 | H29: 263937 | I29: 新竹市 | J29: 9976072 | K29: 8715865 | L29: 0 | M29: 1260207 | N29: 2506739 | O29: 359294 | P29: 413343 | Q29: 1139487 | R29: 新竹市 | S29: 594615 | T29: 4662221 | U29: 75500 | V29: 149800 | W29: 3323525 | X29: 58682 | Y29: 1054714 | Z29: 新竹市 | AA29: 1462588 | AB29: 1399772 | AC29: 62816 | AD29: 2326672 | AE29: 2326672 | AF29: 120000 | AG29: 120000 | AH29: 新竹市 | AI29: 0 | AJ29: 710113 | AK29: 0 | AL29: 0 | AM29: 0 | AN29: 415113 | AO29: 295000
A30: 嘉義市 | B30: 16622292 | C30: 3426818 | D30: 360998 | E30: 173787 | F30: 1223545 | G30: 1430486 | H30: 238002 | I30: 嘉義市 | J30: 5685673 | K30: 5283402 | L30: 0 | M30: 402271 | N30: 2335017 | O30: 59816 | P30: 72381 | Q30: 1714094 | R30: 嘉義市 | S30: 488726 | T30: 2467957 | U30: 66608 | V30: 95677 | W30: 1441535 | X30: 38910 | Y30: 825227 | Z30: 嘉義市 | AA30: 981747 | AB30: 972159 | AC30: 9588 | AD30: 1393980 | AE30: 1393980 | AF30: 7100 | AG30: 7100 | AH30: 嘉義市 | AI30: 0 | AJ30: 324000 | AK30: 0 | AL30: 0 | AM30: 0 | AN30: 309000 | AO30: 15000
A31: 金門縣 | B31: 13934761 | C31: 2241371 | D31: 519692 | E31: 189197 | F31: 757846 | G31: 714771 | H31: 59865 | I31: 金門縣 | J31: 3552784 | K31: 3054934 | L31: 0 | M31: 497850 | N31: 4674854 | O31: 1268499 | P31: 292723 | Q31: 2195898 | R31: 金門縣 | S31: 917734 | T31: 1667713 | U31: 33985 | V31: 49213 | W31: 912014 | X31: 0 | Y31: 672501 | Z31: 金門縣 | AA31: 828831 | AB31: 812955 | AC31: 15876 | AD31: 682501 | AE31: 682501 | AF31: 0 | AG31: 0 | AH31: 金門縣 | AI31: 0 | AJ31: 286707 | AK31: 0 | AL31: 87707 | AM31: 0 | AN31: 162000 | AO31: 37000
A32: 連江縣 | B32: 4823635 | C32: 747862 | D32: 263732 | E32: 65761 | F32: 206540 | G32: 182149 | H32: 29680 | I32: 連江縣 | J32: 1303670 | K32: 940587 | L32: 0 | M32: 363083 | N32: 2134312 | O32: 394236 | P32: 18910 | Q32: 1086706 | R32: 連江縣 | S32: 634460 | T32: 421175 | U32: 1829 | V32: 9671 | W32: 130854 | X32: 0 | Y32: 278821 | Z32: 連江縣 | AA32: 92311 | AB32: 92311 | AC32: 0 | AD32: 51747 | AE32: 51747 | AF32: 600 | AG32: 600 | AH32: 連江縣 | AI32: 0 | AJ32: 71958 | AK32: 3000 | AL32: 0 | AM32: 0 | AN32: 53958 | AO32: 15000
A33: (經常門) | I33: (經常門) | R33: (經常門) | Z33: (經常門) | AH33: (經常門)
A34: 總 計 | B34: 1047705371 | C34: 204274968 | D34: 13385342 | E34: 7697286 | F34: 82529017 | G34: 90397448 | H34: 10265875 | I34: 總 計 | J34: 422067894 | K34: 399862580 | L34: 36750 | M34: 22168564 | N34: 64247943 | O34: 16016811 | P34: 8571238 | Q34: 27351596 | R34: 總 計 | S34: 12308298 | T34: 224108598 | U34: 11198053 | V34: 21687524 | W34: 139575461 | X34: 1416534 | Y34: 50231026 | Z34: 總 計 | AA34: 50418326 | AB34: 44389289 | AC34: 6029037 | AD34: 60529202 | AE34: 60529202 | AF34: 7962358 | AG34: 7939780 | AH34: 總 計 | AI34: 22578 | AJ34: 14096082 | AK34: 300712 | AL34: 171792 | AM34: 0 | AN34: 10224245 | AO34: 3399333
A35: 直轄市合計 | B35: 717502055 | C35: 137744667 | D35: 7281955 | E35: 4392823 | F35: 59042922 | G35: 60418851 | H35: 6608116 | I35: 直轄市合計 | J35: 295105422 | K35: 277574934 | L35: 0 | M35: 17530488 | N35: 48165220 | O35: 9451214 | P35: 6471477 | Q35: 24272626 | R35: 直轄市合計 | S35: 7969903 | T35: 155480397 | U35: 8845419 | V35: 18447056 | W35: 96905993 | X35: 718943 | Y35: 30562986 | Z35: 直轄市合計 | AA35: 43218878 | AB35: 37672832 | AC35: 5546046 | AD35: 23357209 | AE35: 23357209 | AF35: 5645218 | AG35: 5622640 | AH35: 直轄市合計 | AI35: 22578 | AJ35: 8785044 | AK35: 0 | AL35: 0 | AM35: 0 | AN35: 6631711 | AO35: 2153333
A36: 新北市 | B36: 149818218 | C36: 29615588 | D36: 1541354 | E36: 682969 | F36: 14609589 | G36: 11520274 | H36: 1261402 | I36: 新北市 | J36: 60595806 | K36: 58177444 | L36: 0 | M36: 2418362 | N36: 7593494 | O36: 1766711 | P36: 734101 | Q36: 4310047 | R36: 新北市 | S36: 782635 | T36: 34138475 | U36: 1467157 | V36: 1498277 | W36: 24054613 | X36: 122864 | Y36: 6995564 | Z36: 新北市 | AA36: 10219380 | AB36: 9476165 | AC36: 743215 | AD36: 4040780 | AE36: 4040780 | AF36: 1036000 | AG36: 1036000 | AH36: 新北市 | AI36: 0 | AJ36: 2578695 | AK36: 0 | AL36: 0 | AM36: 0 | AN36: 2178695 | AO36: 400000
A37: 臺北市 | B37: 138543567 | C37: 26809436 | D37: 1905052 | E37: 835394 | F37: 8968342 | G37: 13149761 | H37: 1950887 | I37: 臺北市 | J37: 55724117 | K37: 49853044 | L37: 0 | M37: 5871073 | N37: 13867473 | O37: 2344140 | P37: 1840006 | Q37: 8011491 | R37: 臺北市 | S37: 1671836 | T37: 24482784 | U37: 668657 | V37: 9221035 | W37: 9451788 | X37: 379805 | Y37: 4761499 | Z37: 臺北市 | AA37: 9637614 | AB37: 7985326 | AC37: 1652288 | AD37: 5258356 | AE37: 5258356 | AF37: 597287 | AG37: 589287 | AH37: 臺北市 | AI37: 8000 | AJ37: 2166500 | AK37: 0 | AL37: 0 | AM37: 0 | AN37: 1646500 | AO37: 520000
A38: 桃園市 | B38: 102355497 | C38: 19391658 | D38: 979854 | E38: 658710 | F38: 8987427 | G38: 8001753 | H38: 763914 | I38: 桃園市 | J38: 44272048 | K38: 41189934 | L38: 0 | M38: 3082114 | N38: 6893154 | O38: 1675882 | P38: 1530007 | Q38: 2527604 | R38: 桃園市 | S38: 1159661 | T38: 22087582 | U38: 1279655 | V38: 3622706 | W38: 14907628 | X38: 0 | Y38: 2277593 | Z38: 桃園市 | AA38: 7110437 | AB38: 5740385 | AC38: 1370052 | AD38: 1451441 | AE38: 1451441 | AF38: 394555 | AG38: 394555 | AH38: 桃園市 | AI38: 0 | AJ38: 754622 | AK38: 0 | AL38: 0 | AM38: 0 | AN38: 354622 | AO38: 400000
A39: 臺中市 | B39: 122215094 | C39: 22995326 | D39: 1342471 | E39: 792840 | F39: 9465527 | G39: 10360369 | H39: 1034119 | I39: 臺中市 | J39: 51923558 | K39: 50007065 | L39: 0 | M39: 1916493 | N39: 7821220 | O39: 1143611 | P39: 1808250 | Q39: 3912752 | R39: 臺中市 | S39: 956607 | T39: 28010738 | U39: 951246 | V39: 2130855 | W39: 17954569 | X39: 20442 | Y39: 6953626 | Z39: 臺中市 | AA39: 6286559 | AB39: 5553454 | AC39: 733105 | AD39: 3096693 | AE39: 3096693 | AF39: 870000 | AG39: 870000 | AH39: 臺中市 | AI39: 0 | AJ39: 1211000 | AK39: 0 | AL39: 0 | AM39: 0 | AN39: 911000 | AO39: 300000
A40: 臺南市 | B40: 78804596 | C40: 16089875 | D40: 690749 | E40: 664068 | F40: 7257437 | G40: 6838496 | H40: 639125 | I40: 臺南市 | J40: 31444763 | K40: 29689411 | L40: 0 | M40: 1755352 | N40: 4981899 | O40: 1759717 | P40: 526999 | Q40: 1651734 | R40: 臺南市 | S40: 1043449 | T40: 17959140 | U40: 729295 | V40: 681185 | W40: 15086681 | X40: 95458 | Y40: 1366521 | Z40: 臺南市 | AA40: 3512810 | AB40: 2910696 | AC40: 602114 | AD40: 3546109 | AE40: 3546109 | AF40: 516000 | AG40: 516000 | AH40: 臺南市 | AI40: 0 | AJ40: 754000 | AK40: 0 | AL40: 0 | AM40: 0 | AN40: 354000 | AO40: 400000
A41: 高雄市 | B41: 125765083 | C41: 22842784 | D41: 822475 | E41: 758842 | F41: 9754600 | G41: 10548198 | H41: 958669 | I41: 高雄市 | J41: 51145130 | K41: 48658036 | L41: 0 | M41: 2487094 | N41: 7007980 | O41: 761153 | P41: 32114 | Q41: 3858998 | R41: 高雄市 | S41: 2355715 | T41: 28801678 | U41: 3749409 | V41: 1292998 | W41: 15450714 | X41: 100374 | Y41: 8208183 | Z41: 高雄市 | AA41: 6452078 | AB41: 6006806 | AC41: 445272 | AD41: 5963830 | AE41: 5963830 | AF41: 2231376 | AG41: 2216798 | AH41: 高雄市 | AI41: 14578 | AJ41: 1320227 | AK41: 0 | AL41: 0 | AM41: 0 | AN41: 1186894 | AO41: 133333
A42: 縣市合計 | B42: 330203316 | C42: 66530301 | D42: 6103387 | E42: 3304463 | F42: 23486095 | G42: 29978597 | H42: 3657759 | I42: 縣市合計 | J42: 126962472 | K42: 122287646 | L42: 36750 | M42: 4638076 | N42: 16082723 | O42: 6565597 | P42: 2099761 | Q42: 3078970 | R42: 縣市合計 | S42: 4338395 | T42: 68628201 | U42: 2352634 | V42: 3240468 | W42: 42669468 | X42: 697591 | Y42: 19668040 | Z42: 縣市合計 | AA42: 7199448 | AB42: 6716457 | AC42: 482991 | AD42: 37171993 | AE42: 37171993 | AF42: 2317140 | AG42: 2317140 | AH42: 縣市合計 | AI42: 0 | AJ42: 5311038 | AK42: 300712 | AL42: 171792 | AM42: 0 | AN42: 3592534 | AO42: 1246000
A43: 宜蘭縣 | B43: 21935564 | C43: 3960760 | D43: 318060 | E43: 191609 | F43: 1288565 | G43: 1947547 | H43: 214979 | I43: 宜蘭縣 | J43: 9863367 | K43: 9362962 | L43: 0 | M43: 500405 | N43: 1212095 | O43: 655002 | P43: 185961 | Q43: 142701 | R43: 宜蘭縣 | S43: 228431 | T43: 3800494 | U43: 123415 | V43: 159553 | W43: 1916320 | X43: 69936 | Y43: 1531270 | Z43: 宜蘭縣 | AA43: 569353 | AB43: 449580 | AC43: 119773 | AD43: 1991372 | AE43: 1991372 | AF43: 146410 | AG43: 146410 | AH43: 宜蘭縣 | AI43: 0 | AJ43: 391713 | AK43: 9750 | AL43: 0 | AM43: 0 | AN43: 301963 | AO43: 80000
A44: 新竹縣 | B44: 24209559 | C44: 4160215 | D44: 359342 | E44: 212069 | F44: 1683854 | G44: 1673328 | H44: 231622 | I44: 新竹縣 | J44: 10568332 | K44: 10319271 | L44: 0 | M44: 249061 | N44: 624634 | O44: 259401 | P44: 60324 | Q44: 143214 | R44: 新竹縣 | S44: 161695 | T44: 5160312 | U44: 101856 | V44: 115372 | W44: 4224495 | X44: 40562 | Y44: 678027 | Z44: 新竹縣 | AA44: 571040 | AB44: 571040 | AC44: 0 | AD44: 2468556 | AE44: 2468556 | AF44: 200000 | AG44: 200000 | AH44: 新竹縣 | AI44: 0 | AJ44: 456470 | AK44: 0 | AL44: 0 | AM44: 0 | AN44: 56470 | AO44: 400000
A45: 苗栗縣 | B45: 18731681 | C45: 4550324 | D45: 339929 | E45: 213766 | F45: 1754575 | G45: 1985493 | H45: 256561 | I45: 苗栗縣 | J45: 7571402 | K45: 7355149 | L45: 0 | M45: 216253 | N45: 378807 | O45: 220341 | P45: 16461 | Q45: 63276 | R45: 苗栗縣 | S45: 78729 | T45: 2943400 | U45: 123783 | V45: 213845 | W45: 1445867 | X45: 59283 | Y45: 1100622 | Z45: 苗栗縣 | AA45: 145712 | AB45: 137516 | AC45: 8196 | AD45: 2439786 | AE45: 2439786 | AF45: 500000 | AG45: 500000 | AH45: 苗栗縣 | AI45: 0 | AJ45: 202250 | AK45: 0 | AL45: 42750 | AM45: 0 | AN45: 109500 | AO45: 50000
A46: 彰化縣 | B46: 44784684 | C46: 7577787 | D46: 413969 | E46: 292390 | F46: 2190764 | G46: 4260297 | H46: 420367 | I46: 彰化縣 | J46: 18943685 | K46: 18631904 | L46: 0 | M46: 311781 | N46: 1399619 | O46: 645043 | P46: 164289 | Q46: 180644 | R46: 彰化縣 | S46: 409643 | T46: 10177631 | U46: 364960 | V46: 335952 | W46: 5762232 | X46: 131872 | Y46: 3582615 | Z46: 彰化縣 | AA46: 299560 | AB46: 249686 | AC46: 49874 | AD46: 5466553 | AE46: 5466553 | AF46: 367896 | AG46: 367896 | AH46: 彰化縣 | AI46: 0 | AJ46: 551953 | AK46: 23325 | AL46: 0 | AM46: 0 | AN46: 428628 | AO46: 100000
A47: 南投縣 | B47: 23601224 | C47: 4816833 | D47: 371241 | E47: 253974 | F47: 1563604 | G47: 2371974 | H47: 256040 | I47: 南投縣 | J47: 9573404 | K47: 9460574 | L47: 0 | M47: 112830 | N47: 657147 | O47: 269806 | P47: 188117 | Q47: 11464 | R47: 南投縣 | S47: 187760 | T47: 4882840 | U47: 133836 | V47: 125461 | W47: 3743086 | X47: 16763 | Y47: 863694 | Z47: 南投縣 | AA47: 366220 | AB47: 336221 | AC47: 29999 | AD47: 2726031 | AE47: 2726031 | AF47: 94357 | AG47: 94357 | AH47: 南投縣 | AI47: 0 | AJ47: 484392 | AK47: 36000 | AL47: 0 | AM47: 0 | AN47: 218392 | AO47: 230000
A48: 雲林縣 | B48: 28653927 | C48: 4742483 | D48: 381158 | E48: 243006 | F48: 1438946 | G48: 2402659 | H48: 276714 | I48: 雲林縣 | J48: 12206384 | K48: 11786528 | L48: 0 | M48: 419856 | N48: 1140293 | O48: 765354 | P48: 143995 | Q48: 98596 | R48: 雲林縣 | S48: 132348 | T48: 6611092 | U48: 227800 | V48: 520923 | W48: 3841480 | X48: 0 | Y48: 2020889 | Z48: 雲林縣 | AA48: 300953 | AB48: 295304 | AC48: 5649 | AD48: 3108385 | AE48: 3108385 | AF48: 176837 | AG48: 176837 | AH48: 雲林縣 | AI48: 0 | AJ48: 367500 | AK48: 72000 | AL48: 0 | AM48: 0 | AN48: 295500 | AO48: 0
A49: 嘉義縣 | B49: 21827290 | C49: 4525312 | D49: 440699 | E49: 214356 | F49: 1458102 | G49: 2151681 | H49: 260474 | I49: 嘉義縣 | J49: 7827470 | K49: 7694310 | L49: 0 | M49: 133160 | N49: 918272 | O49: 479102 | P49: 42551 | Q49: 157185 | R49: 嘉義縣 | S49: 239434 | T49: 5326313 | U49: 148629 | V49: 127871 | W49: 3944330 | X49: 74941 | Y49: 1030542 | Z49: 嘉義縣 | AA49: 111854 | AB49: 111854 | AC49: 0 | AD49: 2301682 | AE49: 2301682 | AF49: 250000 | AG49: 250000 | AH49: 嘉義縣 | AI49: 0 | AJ49: 566387 | AK49: 22137 | AL49: 89250 | AM49: 0 | AN49: 455000 | AO49: 0
A50: 屏東縣 | B50: 36354877 | C50: 7469461 | D50: 586269 | E50: 304618 | F50: 3204465 | G50: 3038344 | H50: 335765 | I50: 屏東縣 | J50: 13560880 | K50: 13101780 | L50: 0 | M50: 459100 | N50: 1407677 | O50: 643202 | P50: 131955 | Q50: 318144 | R50: 屏東縣 | S50: 314376 | T50: 7730394 | U50: 259693 | V50: 395213 | W50: 3829875 | X50: 131495 | Y50: 3114118 | Z50: 屏東縣 | AA50: 566828 | AB50: 469823 | AC50: 97005 | AD50: 5112571 | AE50: 5112571 | AF50: 150000 | AG50: 150000 | AH50: 屏東縣 | AI50: 0 | AJ50: 357066 | AK50: 78000 | AL50: 0 | AM50: 0 | AN50: 219066 | AO50: 60000
A51: 臺東縣 | B51: 17212192 | C51: 4186989 | D51: 549830 | E51: 194681 | F51: 1763841 | G51: 1506183 | H51: 172454 | I51: 臺東縣 | J51: 5362525 | K51: 5125594 | L51: 0 | M51: 236931 | N51: 1171578 | O51: 453979 | P51: 168921 | Q51: 164841 | R51: 臺東縣 | S51: 383837 | T51: 3163775 | U51: 85999 | V51: 295051 | W51: 1425618 | X51: 25823 | Y51: 1331284 | Z51: 臺東縣 | AA51: 298139 | AB51: 277879 | AC51: 20260 | AD51: 2275294 | AE51: 2275294 | AF51: 100000 | AG51: 100000 | AH51: 臺東縣 | AI51: 0 | AJ51: 653892 | AK51: 1000 | AL51: 0 | AM51: 0 | AN51: 652892 | AO51: 0
A52: 花蓮縣 | B52: 20486655 | C52: 4714110 | D52: 381219 | E52: 214898 | F52: 1928445 | G52: 1907507 | H52: 282041 | I52: 花蓮縣 | J52: 7351194 | K52: 7037602 | L52: 0 | M52: 313592 | N52: 1093276 | O52: 409721 | P52: 320149 | Q52: 84521 | R52: 花蓮縣 | S52: 278885 | T52: 4213635 | U52: 104874 | V52: 243532 | W52: 3150452 | X52: 12882 | Y52: 701895 | Z52: 花蓮縣 | AA52: 402307 | AB52: 386937 | AC52: 15370 | AD52: 2318933 | AE52: 2318933 | AF52: 127200 | AG52: 127200 | AH52: 花蓮縣 | AI52: 0 | AJ52: 266000 | AK52: 0 | AL52: 0 | AM52: 0 | AN52: 206000 | AO52: 60000
A53: 澎湖縣 | B53: 9163199 | C53: 2404420 | D53: 223019 | E53: 153721 | F53: 573339 | G53: 1324910 | H53: 129431 | I53: 澎湖縣 | J53: 2485053 | K53: 2254247 | L53: 36750 | M53: 194056 | N53: 949640 | O53: 345937 | P53: 92008 | Q53: 0 | R53: 澎湖縣 | S53: 511695 | T53: 1881156 | U53: 45324 | V53: 100738 | W53: 1147609 | X53: 22001 | Y53: 565484 | Z53: 澎湖縣 | AA53: 380403 | AB53: 375779 | AC53: 4624 | AD53: 849655 | AE53: 849655 | AF53: 16740 | AG53: 16740 | AH53: 澎湖縣 | AI53: 0 | AJ53: 196132 | AK53: 58500 | AL53: 0 | AM53: 0 | AN53: 90632 | AO53: 47000
A54: 基隆市 | B54: 17256439 | C54: 4055209 | D54: 368902 | E54: 202707 | F54: 1465034 | G54: 1744121 | H54: 274445 | I54: 基隆市 | J54: 5708752 | K54: 5486653 | L54: 0 | M54: 222099 | N54: 887704 | O54: 173738 | P54: 86698 | Q54: 452053 | R54: 基隆市 | S54: 175215 | T54: 3837193 | U54: 454543 | V54: 302596 | W54: 2644403 | X54: 14641 | Y54: 421010 | Z54: 基隆市 | AA54: 868456 | AB54: 815508 | AC54: 52948 | AD54: 1658275 | AE54: 1658275 | AF54: 60000 | AG54: 60000 | AH54: 基隆市 | AI54: 0 | AJ54: 180850 | AK54: 0 | AL54: 0 | AM54: 0 | AN54: 153850 | AO54: 27000
A55: 新竹市 | B55: 20302126 | C55: 3482214 | D55: 324033 | E55: 200348 | F55: 1229596 | G55: 1472853 | H55: 255384 | I55: 新竹市 | J55: 7381759 | K55: 6798988 | L55: 0 | M55: 582771 | N55: 969228 | O55: 190182 | P55: 177618 | Q55: 306407 | R55: 新竹市 | S55: 295021 | T55: 4597469 | U55: 75500 | V55: 149800 | W55: 3284247 | X55: 58482 | Y55: 1029440 | Z55: 新竹市 | AA55: 1134671 | AB55: 1075842 | AC55: 58829 | AD55: 2326672 | AE55: 2326672 | AF55: 120000 | AG55: 120000 | AH55: 新竹市 | AI55: 0 | AJ55: 290113 | AK55: 0 | AL55: 0 | AM55: 0 | AN55: 155113 | AO55: 135000
A56: 嘉義市 | B56: 13340236 | C56: 3039634 | D56: 310008 | E56: 171687 | F56: 1033532 | G56: 1321437 | H56: 202970 | I56: 嘉義市 | J56: 5046453 | K56: 4766104 | L56: 0 | M56: 280349 | N56: 491911 | O56: 59816 | P56: 72381 | Q56: 110915 | R56: 嘉義市 | S56: 248799 | T56: 2414477 | U56: 66608 | V56: 95677 | W56: 1425215 | X56: 38910 | Y56: 788067 | Z56: 嘉義市 | AA56: 732681 | AB56: 723093 | AC56: 9588 | AD56: 1393980 | AE56: 1393980 | AF56: 7100 | AG56: 7100 | AH56: 嘉義市 | AI56: 0 | AJ56: 214000 | AK56: 0 | AL56: 0 | AM56: 0 | AN56: 199000 | AO56: 15000
A57: 金門縣 | B57: 9586272 | C57: 2164617 | D57: 502440 | E57: 177055 | F57: 733466 | G57: 691866 | H57: 59790 | I57: 金門縣 | J57: 2710921 | K57: 2423964 | L57: 0 | M57: 286957 | N57: 2047743 | O57: 813621 | P57: 229423 | Q57: 355127 | R57: 金門縣 | S57: 649572 | T57: 1488927 | U57: 33985 | V57: 49213 | W57: 754185 | X57: 0 | Y57: 651544 | Z57: 金門縣 | AA57: 370771 | AB57: 359895 | AC57: 10876 | AD57: 682501 | AE57: 682501 | AF57: 0 | AG57: 0 | AH57: 金門縣 | AI57: 0 | AJ57: 120792 | AK57: 0 | AL57: 39792 | AM57: 0 | AN57: 44000 | AO57: 37000
A58: 連江縣 | B58: 2757391 | C58: 679933 | D58: 233269 | E58: 63578 | F58: 175967 | G58: 178397 | H58: 28722 | I58: 連江縣 | J58: 800891 | K58: 682016 | L58: 0 | M58: 118875 | N58: 733099 | O58: 181352 | P58: 18910 | Q58: 489882 | R58: 連江縣 | S58: 42955 | T58: 399093 | U58: 1829 | V58: 9671 | W58: 130054 | X58: 0 | Y58: 257539 | Z58: 連江縣 | AA58: 80500 | AB58: 80500 | AC58: 0 | AD58: 51747 | AE58: 51747 | AF58: 600 | AG58: 600 | AH58: 連江縣 | AI58: 0 | AJ58: 11528 | AK58: 0 | AL58: 0 | AM58: 0 | AN58: 6528 | AO58: 5000
A59: (資本門) | I59: (資本門) | R59: (資本門) | Z59: (資本門) | AH59: (資本門)
A60: 總 計 | B60: 276950905 | C60: 22584919 | D60: 1646654 | E60: 233989 | F60: 13577423 | G60: 5180654 | H60: 1946199 | I60: 總 計 | J60: 64232050 | K60: 46164790 | L60: 0 | M60: 18067260 | N60: 146054377 | O60: 39905735 | P60: 10251086 | Q60: 84802457 | R60: 總 計 | S60: 11095099 | T60: 9148566 | U60: 0 | V60: 173 | W60: 6645861 | X60: 196403 | Y60: 2306129 | Z60: 總 計 | AA60: 22052996 | AB60: 16939277 | AC60: 5113719 | AD60: 0 | AE60: 0 | AF60: 0 | AG60: 0 | AH60: 總 計 | AI60: 0 | AJ60: 12877997 | AK60: 3000 | AL60: 47915 | AM60: 0 | AN60: 11750415 | AO60: 1076667
A61: 直轄市合計 | B61: 186331660 | C61: 15846137 | D61: 823672 | E61: 101532 | F61: 9910475 | G61: 3564442 | H61: 1446016 | I61: 直轄市合計 | J61: 40046954 | K61: 25548730 | L61: 0 | M61: 14498224 | N61: 98535456 | O61: 26950477 | P61: 6282486 | Q61: 62924081 | R61: 直轄市合計 | S61: 2378412 | T61: 6462488 | U61: 0 | V61: 38 | W61: 5337442 | X61: 173884 | Y61: 951124 | Z61: 直轄市合計 | AA61: 17070458 | AB61: 13410387 | AC61: 3660071 | AD61: 0 | AE61: 0 | AF61: 0 | AG61: 0 | AH61: 直轄市合計 | AI61: 0 | AJ61: 8370167 | AK61: 0 | AL61: 0 | AM61: 0 | AN61: 7683500 | AO61: 686667
A62: 新北市 | B62: 36664623 | C62: 5603948 | D62: 211564 | E62: 15698 | F62: 3529853 | G62: 559095 | H62: 1287738 | I62: 新北市 | J62: 4131926 | K62: 3020390 | L62: 0 | M62: 1111536 | N62: 20678496 | O62: 3556969 | P62: 43604 | Q62: 16448705 | R62: 新北市 | S62: 629218 | T62: 910873 | U62: 0 | V62: 0 | W62: 667265 | X62: 563 | Y62: 243045 | Z62: 新北市 | AA62: 3780380 | AB62: 3652206 | AC62: 128174 | AD62: 0 | AE62: 0 | AF62: 0 | AG62: 0 | AH62: 新北市 | AI62: 0 | AJ62: 1559000 | AK62: 0 | AL62: 0 | AM62: 0 | AN62: 1559000 | AO62: 0
A63: 臺北市 | B63: 33039899 | C63: 2292449 | D63: 254283 | E63: 23552 | F63: 987526 | G63: 940251 | H63: 86837 | I63: 臺北市 | J63: 7806139 | K63: 4919130 | L63: 0 | M63: 2887009 | N63: 14492706 | O63: 5356694 | P63: 216105 | Q63: 8819332 | R63: 臺北市 | S63: 100575 | T63: 2855451 | U63: 0 | V63: 0 | W63: 2437394 | X63: 170897 | Y63: 247160 | Z63: 臺北市 | AA63: 4323154 | AB63: 1648962 | AC63: 2674192 | AD63: 0 | AE63: 0 | AF63: 0 | AG63: 0 | AH63: 臺北市 | AI63: 0 | AJ63: 1270000 | AK63: 0 | AL63: 0 | AM63: 0 | AN63: 1050000 | AO63: 220000
A64: 桃園市 | B64: 38695503 | C64: 2513817 | D64: 68246 | E64: 17063 | F64: 1320604 | G64: 1098482 | H64: 9422 | I64: 桃園市 | J64: 11021148 | K64: 6116093 | L64: 0 | M64: 4905055 | N64: 22202295 | O64: 5126512 | P64: 4424119 | Q64: 12324900 | R64: 桃園市 | S64: 326764 | T64: 847137 | U64: 0 | V64: 0 | W64: 779055 | X64: 0 | Y64: 68082 | Z64: 桃園市 | AA64: 692106 | AB64: 575714 | AC64: 116392 | AD64: 0 | AE64: 0 | AF64: 0 | AG64: 0 | AH64: 桃園市 | AI64: 0 | AJ64: 1419000 | AK64: 0 | AL64: 0 | AM64: 0 | AN64: 1419000 | AO64: 0
A65: 臺中市 | B65: 28985818 | C65: 1813463 | D65: 98751 | E65: 5200 | F65: 1401441 | G65: 286515 | H65: 21556 | I65: 臺中市 | J65: 6781384 | K65: 4045028 | L65: 0 | M65: 2736356 | N65: 14931873 | O65: 1558070 | P65: 1405989 | Q65: 11593179 | R65: 臺中市 | S65: 374635 | T65: 826784 | U65: 0 | V65: 0 | W65: 716733 | X65: 0 | Y65: 110051 | Z65: 臺中市 | AA65: 3062314 | AB65: 2539098 | AC65: 523216 | AD65: 0 | AE65: 0 | AF65: 0 | AG65: 0 | AH65: 臺中市 | AI65: 0 | AJ65: 1570000 | AK65: 0 | AL65: 0 | AM65: 0 | AN65: 1370000 | AO65: 200000
A66: 臺南市 | B66: 23261218 | C66: 1590722 | D66: 84603 | E66: 19384 | F66: 1122666 | G66: 351700 | H66: 12369 | I66: 臺南市 | J66: 6093016 | K66: 4292519 | L66: 0 | M66: 1800497 | N66: 13909326 | O66: 7106745 | P66: 164682 | Q66: 6146318 | R66: 臺南市 | S66: 491581 | T66: 274210 | U66: 0 | V66: 0 | W66: 222729 | X66: 1711 | Y66: 49770 | Z66: 臺南市 | AA66: 471944 | AB66: 344527 | AC66: 127417 | AD66: 0 | AE66: 0 | AF66: 0 | AG66: 0 | AH66: 臺南市 | AI66: 0 | AJ66: 922000 | AK66: 0 | AL66: 0 | AM66: 0 | AN66: 922000 | AO66: 0
A67: 高雄市 | B67: 25684599 | C67: 2031738 | D67: 106225 | E67: 20635 | F67: 1548385 | G67: 328399 | H67: 28094 | I67: 高雄市 | J67: 4213341 | K67: 3155570 | L67: 0 | M67: 1057771 | N67: 12320760 | O67: 4245487 | P67: 27987 | Q67: 7591647 | R67: 高雄市 | S67: 455639 | T67: 748033 | U67: 0 | V67: 38 | W67: 514266 | X67: 713 | Y67: 233016 | Z67: 高雄市 | AA67: 4740560 | AB67: 4649880 | AC67: 90680 | AD67: 0 | AE67: 0 | AF67: 0 | AG67: 0 | AH67: 高雄市 | AI67: 0 | AJ67: 1630167 | AK67: 0 | AL67: 0 | AM67: 0 | AN67: 1363500 | AO67: 266667
A68: 縣市合計 | B68: 90619245 | C68: 6738782 | D68: 822982 | E68: 132457 | F68: 3666948 | G68: 1616212 | H68: 500183 | I68: 縣市合計 | J68: 24185096 | K68: 20616060 | L68: 0 | M68: 3569036 | N68: 47518921 | O68: 12955258 | P68: 3968600 | Q68: 21878376 | R68: 縣市合計 | S68: 8716687 | T68: 2686078 | U68: 0 | V68: 135 | W68: 1308419 | X68: 22519 | Y68: 1355005 | Z68: 縣市合計 | AA68: 4982538 | AB68: 3528890 | AC68: 1453648 | AD68: 0 | AE68: 0 | AF68: 0 | AG68: 0 | AH68: 縣市合計 | AI68: 0 | AJ68: 4507830 | AK68: 3000 | AL68: 47915 | AM68: 0 | AN68: 4066915 | AO68: 390000
A69: 宜蘭縣 | B69: 4718076 | C69: 341604 | D69: 50093 | E69: 1100 | F69: 245585 | G69: 41839 | H69: 2987 | I69: 宜蘭縣 | J69: 1001688 | K69: 882732 | L69: 0 | M69: 118956 | N69: 2068708 | O69: 437809 | P69: 2872 | Q69: 537881 | R69: 宜蘭縣 | S69: 1090146 | T69: 141401 | U69: 0 | V69: 0 | W69: 80402 | X69: 10150 | Y69: 50849 | Z69: 宜蘭縣 | AA69: 898131 | AB69: 14980 | AC69: 883151 | AD69: 0 | AE69: 0 | AF69: 0 | AG69: 0 | AH69: 宜蘭縣 | AI69: 0 | AJ69: 266544 | AK69: 0 | AL69: 0 | AM69: 0 | AN69: 266544 | AO69: 0
A70: 新竹縣 | B70: 8150728 | C70: 623084 | D70: 65150 | E70: 8201 | F70: 365961 | G70: 177842 | H70: 5930 | I70: 新竹縣 | J70: 3324116 | K70: 3086301 | L70: 0 | M70: 237815 | N70: 3152387 | O70: 215788 | P70: 14800 | Q70: 1857566 | R70: 新竹縣 | S70: 1064233 | T70: 174466 | U70: 0 | V70: 0 | W70: 144424 | X70: 0 | Y70: 30042 | Z70: 新竹縣 | AA70: 553025 | AB70: 553025 | AC70: 0 | AD70: 0 | AE70: 0 | AF70: 0 | AG70: 0 | AH70: 新竹縣 | AI70: 0 | AJ70: 323650 | AK70: 0 | AL70: 0 | AM70: 0 | AN70: 323650 | AO70: 0
A71: 苗栗縣 | B71: 2835092 | C71: 315148 | D71: 25373 | E71: 6610 | F71: 144500 | G71: 134113 | H71: 4552 | I71: 苗栗縣 | J71: 290814 | K71: 242448 | L71: 0 | M71: 48366 | N71: 977629 | O71: 304117 | P71: 720 | Q71: 552316 | R71: 苗栗縣 | S71: 120476 | T71: 52796 | U71: 0 | V71: 0 | W71: 10425 | X71: 176 | Y71: 42195 | Z71: 苗栗縣 | AA71: 982955 | AB71: 802955 | AC71: 180000 | AD71: 0 | AE71: 0 | AF71: 0 | AG71: 0 | AH71: 苗栗縣 | AI71: 0 | AJ71: 215750 | AK71: 0 | AL71: 0 | AM71: 0 | AN71: 215750 | AO71: 0
A72: 彰化縣 | B72: 11819709 | C72: 545202 | D72: 22427 | E72: 4534 | F72: 104085 | G72: 194543 | H72: 219613 | I72: 彰化縣 | J72: 2960823 | K72: 2872353 | L72: 0 | M72: 88470 | N72: 6987025 | O72: 1989161 | P72: 0 | Q72: 3539403 | R72: 彰化縣 | S72: 1458461 | T72: 499303 | U72: 0 | V72: 0 | W72: 45168 | X72: 0 | Y72: 454135 | Z72: 彰化縣 | AA72: 327356 | AB72: 80139 | AC72: 247217 | AD72: 0 | AE72: 0 | AF72: 0 | AG72: 0 | AH72: 彰化縣 | AI72: 0 | AJ72: 500000 | AK72: 0 | AL72: 0 | AM72: 0 | AN72: 500000 | AO72: 0
A73: 南投縣 | B73: 5303776 | C73: 608092 | D73: 287933 | E73: 5050 | F73: 177925 | G73: 132848 | H73: 4336 | I73: 南投縣 | J73: 743900 | K73: 696219 | L73: 0 | M73: 47681 | N73: 3532947 | O73: 202185 | P73: 1304184 | Q73: 2015258 | R73: 南投縣 | S73: 11320 | T73: 22813 | U73: 0 | V73: 0 | W73: 0 | X73: 0 | Y73: 22813 | Z73: 南投縣 | AA73: 106974 | AB73: 30424 | AC73: 76550 | AD73: 0 | AE73: 0 | AF73: 0 | AG73: 0 | AH73: 南投縣 | AI73: 0 | AJ73: 289050 | AK73: 0 | AL73: 0 | AM73: 0 | AN73: 289050 | AO73: 0
A74: 雲林縣 | B74: 8653865 | C74: 156374 | D74: 15116 | E74: 1970 | F74: 68247 | G74: 67266 | H74: 3775 | I74: 雲林縣 | J74: 2790888 | K74: 2315037 | L74: 0 | M74: 475851 | N74: 4929434 | O74: 2109438 | P74: 8527 | Q74: 1493985 | R74: 雲林縣 | S74: 1317484 | T74: 188248 | U74: 0 | V74: 0 | W74: 82249 | X74: 0 | Y74: 105999 | Z74: 雲林縣 | AA74: 135843 | AB74: 79460 | AC74: 56383 | AD74: 0 | AE74: 0 | AF74: 0 | AG74: 0 | AH74: 雲林縣 | AI74: 0 | AJ74: 453078 | AK74: 0 | AL74: 0 | AM74: 0 | AN74: 373078 | AO74: 80000
A75: 嘉義縣 | B75: 6525907 | C75: 435966 | D75: 104450 | E75: 25900 | F75: 163120 | G75: 128396 | H75: 14100 | I75: 嘉義縣 | J75: 1120697 | K75: 1074812 | L75: 0 | M75: 45885 | N75: 4269053 | O75: 2754510 | P75: 23543 | Q75: 1236676 | R75: 嘉義縣 | S75: 254324 | T75: 257118 | U75: 0 | V75: 0 | W75: 217311 | X75: 298 | Y75: 39509 | Z75: 嘉義縣 | AA75: 79473 | AB75: 79473 | AC75: 0 | AD75: 0 | AE75: 0 | AF75: 0 | AG75: 0 | AH75: 嘉義縣 | AI75: 0 | AJ75: 363600 | AK75: 0 | AL75: 0 | AM75: 0 | AN75: 283600 | AO75: 80000
A76: 屏東縣 | B76: 10762123 | C76: 1174101 | D76: 64465 | E76: 25595 | F76: 718302 | G76: 202036 | H76: 163703 | I76: 屏東縣 | J76: 2878137 | K76: 2169964 | L76: 0 | M76: 708173 | N76: 5588893 | O76: 2908753 | P76: 697070 | Q76: 1413209 | R76: 屏東縣 | S76: 569861 | T76: 440218 | U76: 0 | V76: 0 | W76: 169316 | X76: 11685 | Y76: 259217 | Z76: 屏東縣 | AA76: 206768 | AB76: 206768 | AC76: 0 | AD76: 0 | AE76: 0 | AF76: 0 | AG76: 0 | AH76: 屏東縣 | AI76: 0 | AJ76: 474006 | AK76: 0 | AL76: 0 | AM76: 0 | AN76: 474006 | AO76: 0
A77: 臺東縣 | B77: 3633819 | C77: 593695 | D77: 10900 | E77: 9000 | F77: 491201 | G77: 57895 | H77: 24699 | I77: 臺東縣 | J77: 1033949 | K77: 902186 | L77: 0 | M77: 131763 | N77: 1312370 | O77: 308752 | P77: 0 | Q77: 478543 | R77: 臺東縣 | S77: 525075 | T77: 188460 | U77: 0 | V77: 0 | W77: 76754 | X77: 0 | Y77: 111706 | Z77: 臺東縣 | AA77: 235345 | AB77: 235345 | AC77: 0 | AD77: 0 | AE77: 0 | AF77: 0 | AG77: 0 | AH77: 臺東縣 | AI77: 0 | AJ77: 270000 | AK77: 0 | AL77: 0 | AM77: 0 | AN77: 210000 | AO77: 60000
A78: 花蓮縣 | B78: 5770061 | C78: 661763 | D78: 8848 | E78: 11190 | F78: 544851 | G78: 92078 | H78: 4796 | I78: 花蓮縣 | J78: 1435218 | K78: 1314225 | L78: 0 | M78: 120993 | N78: 3161052 | O78: 486385 | P78: 548376 | Q78: 1670503 | R78: 花蓮縣 | S78: 455788 | T78: 142076 | U78: 0 | V78: 135 | W78: 89438 | X78: 10 | Y78: 52493 | Z78: 花蓮縣 | AA78: 116952 | AB78: 115892 | AC78: 1060 | AD78: 0 | AE78: 0 | AF78: 0 | AG78: 0 | AH78: 花蓮縣 | AI78: 0 | AJ78: 253000 | AK78: 0 | AL78: 0 | AM78: 0 | AN78: 253000 | AO78: 0
A79: 澎湖縣 | B79: 3537963 | C79: 111545 | D79: 8170 | E79: 3500 | F79: 57707 | G79: 40500 | H79: 1668 | I79: 澎湖縣 | J79: 684524 | K79: 488374 | L79: 0 | M79: 196150 | N79: 2200954 | O79: 334168 | P79: 535403 | Q79: 1331383 | R79: 澎湖縣 | S79: 0 | T79: 192978 | U79: 0 | V79: 0 | W79: 135199 | X79: 0 | Y79: 57779 | Z79: 澎湖縣 | AA79: 220655 | AB79: 220655 | AC79: 0 | AD79: 0 | AE79: 0 | AF79: 0 | AG79: 0 | AH79: 澎湖縣 | AI79: 0 | AJ79: 127307 | AK79: 0 | AL79: 0 | AM79: 0 | AN79: 127307 | AO79: 0
A80: 基隆市 | B80: 3898160 | C80: 271657 | D80: 47187 | E80: 7105 | F80: 176733 | G80: 35226 | H80: 5406 | I80: 基隆市 | J80: 1342167 | K80: 1247693 | L80: 0 | M80: 94474 | N80: 1929528 | O80: 67318 | P80: 534080 | Q80: 877799 | R80: 基隆市 | S80: 450331 | T80: 67101 | U80: 0 | V80: 0 | W80: 43506 | X80: 0 | Y80: 23595 | Z80: 基隆市 | AA80: 72207 | AB80: 71907 | AC80: 300 | AD80: 0 | AE80: 0 | AF80: 0 | AG80: 0 | AH80: 基隆市 | AI80: 0 | AJ80: 215500 | AK80: 0 | AL80: 0 | AM80: 0 | AN80: 215500 | AO80: 0
A81: 新竹市 | B81: 5313177 | C81: 368684 | D81: 14165 | E81: 6277 | F81: 163765 | G81: 175924 | H81: 8553 | I81: 新竹市 | J81: 2594313 | K81: 1916877 | L81: 0 | M81: 677436 | N81: 1537511 | O81: 169112 | P81: 235725 | Q81: 833080 | R81: 新竹市 | S81: 299594 | T81: 64752 | U81: 0 | V81: 0 | W81: 39278 | X81: 200 | Y81: 25274 | Z81: 新竹市 | AA81: 327917 | AB81: 323930 | AC81: 3987 | AD81: 0 | AE81: 0 | AF81: 0 | AG81: 0 | AH81: 新竹市 | AI81: 0 | AJ81: 420000 | AK81: 0 | AL81: 0 | AM81: 0 | AN81: 260000 | AO81: 160000
A82: 嘉義市 | B82: 3282056 | C82: 387184 | D82: 50990 | E82: 2100 | F82: 190013 | G82: 109049 | H82: 35032 | I82: 嘉義市 | J82: 639220 | K82: 517298 | L82: 0 | M82: 121922 | N82: 1843106 | O82: 0 | P82: 0 | Q82: 1603179 | R82: 嘉義市 | S82: 239927 | T82: 53480 | U82: 0 | V82: 0 | W82: 16320 | X82: 0 | Y82: 37160 | Z82: 嘉義市 | AA82: 249066 | AB82: 249066 | AC82: 0 | AD82: 0 | AE82: 0 | AF82: 0 | AG82: 0 | AH82: 嘉義市 | AI82: 0 | AJ82: 110000 | AK82: 0 | AL82: 0 | AM82: 0 | AN82: 110000 | AO82: 0
A83: 金門縣 | B83: 4348489 | C83: 76754 | D83: 17252 | E83: 12142 | F83: 24380 | G83: 22905 | H83: 75 | I83: 金門縣 | J83: 841863 | K83: 630970 | L83: 0 | M83: 210893 | N83: 2627111 | O83: 454878 | P83: 63300 | Q83: 1840771 | R83: 金門縣 | S83: 268162 | T83: 178786 | U83: 0 | V83: 0 | W83: 157829 | X83: 0 | Y83: 20957 | Z83: 金門縣 | AA83: 458060 | AB83: 453060 | AC83: 5000 | AD83: 0 | AE83: 0 | AF83: 0 | AG83: 0 | AH83: 金門縣 | AI83: 0 | AJ83: 165915 | AK83: 0 | AL83: 47915 | AM83: 0 | AN83: 118000 | AO83: 0
A84: 連江縣 | B84: 2066244 | C84: 67929 | D84: 30463 | E84: 2183 | F84: 30573 | G84: 3752 | H84: 958 | I84: 連江縣 | J84: 502779 | K84: 258571 | L84: 0 | M84: 244208 | N84: 1401213 | O84: 212884 | P84: 0 | Q84: 596824 | R84: 連江縣 | S84: 591505 | T84: 22082 | U84: 0 | V84: 0 | W84: 800 | X84: 0 | Y84: 21282 | Z84: 連江縣 | AA84: 11811 | AB84: 11811 | AC84: 0 | AD84: 0 | AE84: 0 | AF84: 0 | AG84: 0 | AH84: 連江縣 | AI84: 0 | AJ84: 60430 | AK84: 3000 | AL84: 0 | AM84: 0 | AN84: 47430 | AO84: 10000

Sheet 政事別-資
D1: 各直轄市及縣 | E1: (市)總預算 | M1: 各直轄市及縣 | N1: (市)總預算 | U1: 各直轄市及縣 | V1: (市)總預算 | AC1: 各直轄市及縣 | AD1: (市)總預算 | AK1: 各直轄市及縣 | AL1: (市)總預算
D2: 歲出政事別 | E2: 預算總表 | H2: (續十) | M2: 歲出政事別 | N2: 預算總表 | Q2: (續十一) | U2: 歲出政事別 | V2: 預算總表 | Y2: (續十二) | AC2: 歲出政事別 | AD2: 預算總表 | AG2: (續十三) | AK2: 歲出政事別 | AL2: 預算總表 | AO2: (續十四)
D3: 中華民國 | E3: =簡明總!E3 -> 111 年 度 | H3: 單位：新臺幣千元 | M3: 中華民國 | N3: =E3 -> 111 年 度 | Q3: 單位：新臺幣千元 | U3: 中華民國 | V3: =N3 -> 111 年 度 | Y3: 單位：新臺幣千元 | AC3: 中華民國 | AD3: =簡明總!#REF! ->  | AG3: 單位：新臺幣千元 | AK3: 中華民國 | AL3: =AD3 ->  | AO3: 單位：新臺幣千元
A4: 科 目 | C4: 一般政務支出 | D4: 行政支出 | E4: 立法支出 | F4: 民政支出 | G4: 警政支出 | H4: 財務支出 | I4: 科 目 | J4: 教育科學 文化支出 | K4: 教育支出 | L4: 科學支出 | M4: 文化支出 | N4: 經濟發展支出 | O4: 農業支出 | P4: 工業支出 | Q4: 交通支出 | R4: 科 目 | S4: 其他經濟 服務支出 | T4: 社會福利支出 | U4: 社會保險支出 | V4: 社會救助支出 | W4: 福利服務支出 | X4: 國民就業支出 | Y4: 醫療保健支出 | Z4: 科 目 | AA4: 社區發展及環 境保護支出 | AB4: 環境保護支出 | AC4: 社區發展支出 | AD4: 退休撫 卹支出 | AE4: 退休撫卹 給付支出 | AF4: 債務支出 | AG4: 債務付息支出 | AH4: 科 目 | AI4: 還本付息 事務支出 | AJ4: 補助及其他支出 | AK4: 專案補助支出 | AL4: 平衡預算 補助支出 | AM4: 協助支出 | AN4: 其他支出 | AO4: 第二預備金
A5: 款 | B5: 合 計 | C5: 1 | I5: 款 | J5: 2 | N5: 3 | R5: 款 | T5: 4 | Z5: 款 | AA5: 5 | AD5: 6 | AF5: 7 | AH5: 款 | AJ5: 8
A6: 項 | D6: 1 | E6: 2 | F6: 3 | G6: 4 | H6: 5 | I6: 項 | K6: 1 | L6: 2 | M6: 3 | O6: 1 | P6: 2 | Q6: 3 | R6: 項 | S6: 4 | U6: 1 | V6: 2 | W6: 3 | X6: 4 | Y6: 5 | Z6: 項 | AB6: 1 | AC6: 2 | AE6: 1 | AG6: 1 | AH6: 項 | AI6: 2 | AK6: 1 | AL6: 2 | AM6: 3 | AN6: 4 | AO6: 5
A7: (經資門併計) | I7: (經資門併計) | R7: (經資門併計) | Z7: (經資門併計) | AH7: (經資門併計)
A8: 總 計 | B8: 1324656276 | C8: 226859887 | D8: 15031996 | E8: 7931275 | F8: 96106440 | G8: 95578102 | H8: 12212074 | I8: 總 計 | J8: 486299944 | K8: 446027370 | L8: 36750 | M8: 40235824 | N8: 210302320 | O8: 55922546 | P8: 18822324 | Q8: 112154053 | R8: 總 計 | S8: 23403397 | T8: 233257164 | U8: 11198053 | V8: 21687697 | W8: 146221322 | X8: 1612937 | Y8: 52537155 | Z8: 總 計 | AA8: 72471322 | AB8: 61328566 | AC8: 11142756 | AD8: 60529202 | AE8: 60529202 | AF8: 7962358 | AG8: 7939780 | AH8: 總 計 | AI8: 22578 | AJ8: 26974079 | AK8: 303712 | AL8: 219707 | AM8: 0 | AN8: 21974660 | AO8: 4476000
A9: 直轄市合計 | B9: 903833715 | C9: 153590804 | D9: 8105627 | E9: 4494355 | F9: 68953397 | G9: 63983293 | H9: 8054132 | I9: 直轄市合計 | J9: 335152376 | K9: 303123664 | L9: 0 | M9: 32028712 | N9: 146700676 | O9: 36401691 | P9: 12753963 | Q9: 87196707 | R9: 直轄市合計 | S9: 10348315 | T9: 161942885 | U9: 8845419 | V9: 18447094 | W9: 102243435 | X9: 892827 | Y9: 31514110 | Z9: 直轄市合計 | AA9: 60289336 | AB9: 51083219 | AC9: 9206117 | AD9: 23357209 | AE9: 23357209 | AF9: 5645218 | AG9: 5622640 | AH9: 直轄市合計 | AI9: 22578 | AJ9: 17155211 | AK9: 0 | AL9: 0 | AM9: 0 | AN9: 14315211 | AO9: 2840000
A10: 新北市 | B10: 186482841 | C10: 35219536 | D10: 1752918 | E10: 698667 | F10: 18139442 | G10: 12079369 | H10: 2549140 | I10: 新北市 | J10: 64727732 | K10: 61197834 | L10: 0 | M10: 3529898 | N10: 28271990 | O10: 5323680 | P10: 777705 | Q10: 20758752 | R10: 新北市 | S10: 1411853 | T10: 35049348 | U10: 1467157 | V10: 1498277 | W10: 24721878 | X10: 123427 | Y10: 7238609 | Z10: 新北市 | AA10: 13999760 | AB10: 13128371 | AC10: 871389 | AD10: 4040780 | AE10: 4040780 | AF10: 1036000 | AG10: 1036000 | AH10: 新北市 | AI10: 0 | AJ10: 4137695 | AK10: 0 | AL10: 0 | AM10: 0 | AN10: 3737695 | AO10: 400000
A11: 臺北市 | B11: 171583466 | C11: 29101885 | D11: 2159335 | E11: 858946 | F11: 9955868 | G11: 14090012 | H11: 2037724 | I11: 臺北市 | J11: 63530256 | K11: 54772174 | L11: 0 | M11: 8758082 | N11: 28360179 | O11: 7700834 | P11: 2056111 | Q11: 16830823 | R11: 臺北市 | S11: 1772411 | T11: 27338235 | U11: 668657 | V11: 9221035 | W11: 11889182 | X11: 550702 | Y11: 5008659 | Z11: 臺北市 | AA11: 13960768 | AB11: 9634288 | AC11: 4326480 | AD11: 5258356 | AE11: 5258356 | AF11: 597287 | AG11: 589287 | AH11: 臺北市 | AI11: 8000 | AJ11: 3436500 | AK11: 0 | AL11: 0 | AM11: 0 | AN11: 2696500 | AO11: 740000
A12: 桃園市 | B12: 141051000 | C12: 21905475 | D12: 1048100 | E12: 675773 | F12: 10308031 | G12: 9100235 | H12: 773336 | I12: 桃園市 | J12: 55293196 | K12: 47306027 | L12: 0 | M12: 7987169 | N12: 29095449 | O12: 6802394 | P12: 5954126 | Q12: 14852504 | R12: 桃園市 | S12: 1486425 | T12: 22934719 | U12: 1279655 | V12: 3622706 | W12: 15686683 | X12: 0 | Y12: 2345675 | Z12: 桃園市 | AA12: 7802543 | AB12: 6316099 | AC12: 1486444 | AD12: 1451441 | AE12: 1451441 | AF12: 394555 | AG12: 394555 | AH12: 桃園市 | AI12: 0 | AJ12: 2173622 | AK12: 0 | AL12: 0 | AM12: 0 | AN12: 1773622 | AO12: 400000
A13: 臺中市 | B13: 151200912 | C13: 24808789 | D13: 1441222 | E13: 798040 | F13: 10866968 | G13: 10646884 | H13: 1055675 | I13: 臺中市 | J13: 58704942 | K13: 54052093 | L13: 0 | M13: 4652849 | N13: 22753093 | O13: 2701681 | P13: 3214239 | Q13: 15505931 | R13: 臺中市 | S13: 1331242 | T13: 28837522 | U13: 951246 | V13: 2130855 | W13: 18671302 | X13: 20442 | Y13: 7063677 | Z13: 臺中市 | AA13: 9348873 | AB13: 8092552 | AC13: 1256321 | AD13: 3096693 | AE13: 3096693 | AF13: 870000 | AG13: 870000 | AH13: 臺中市 | AI13: 0 | AJ13: 2781000 | AK13: 0 | AL13: 0 | AM13: 0 | AN13: 2281000 | AO13: 500000
A14: 臺南市 | B14: 102065814 | C14: 17680597 | D14: 775352 | E14: 683452 | F14: 8380103 | G14: 7190196 | H14: 651494 | I14: 臺南市 | J14: 37537779 | K14: 33981930 | L14: 0 | M14: 3555849 | N14: 18891225 | O14: 8866462 | P14: 691681 | Q14: 7798052 | R14: 臺南市 | S14: 1535030 | T14: 18233350 | U14: 729295 | V14: 681185 | W14: 15309410 | X14: 97169 | Y14: 1416291 | Z14: 臺南市 | AA14: 3984754 | AB14: 3255223 | AC14: 729531 | AD14: 3546109 | AE14: 3546109 | AF14: 516000 | AG14: 516000 | AH14: 臺南市 | AI14: 0 | AJ14: 1676000 | AK14: 0 | AL14: 0 | AM14: 0 | AN14: 1276000 | AO14: 400000
A15: 高雄市 | B15: 151449682 | C15: 24874522 | D15: 928700 | E15: 779477 | F15: 11302985 | G15: 10876597 | H15: 986763 | I15: 高雄市 | J15: 55358471 | K15: 51813606 | L15: 0 | M15: 3544865 | N15: 19328740 | O15: 5006640 | P15: 60101 | Q15: 11450645 | R15: 高雄市 | S15: 2811354 | T15: 29549711 | U15: 3749409 | V15: 1293036 | W15: 15964980 | X15: 101087 | Y15: 8441199 | Z15: 高雄市 | AA15: 11192638 | AB15: 10656686 | AC15: 535952 | AD15: 5963830 | AE15: 5963830 | AF15: 2231376 | AG15: 2216798 | AH15: 高雄市 | AI15: 14578 | AJ15: 2950394 | AK15: 0 | AL15: 0 | AM15: 0 | AN15: 2550394 | AO15: 400000
A16: 縣市合計 | B16: 420822561 | C16: 73269083 | D16: 6926369 | E16: 3436920 | F16: 27153043 | G16: 31594809 | H16: 4157942 | I16: 縣市合計 | J16: 151147568 | K16: 142903706 | L16: 36750 | M16: 8207112 | N16: 63601644 | O16: 19520855 | P16: 6068361 | Q16: 24957346 | R16: 縣市合計 | S16: 13055082 | T16: 71314279 | U16: 2352634 | V16: 3240603 | W16: 43977887 | X16: 720110 | Y16: 21023045 | Z16: 縣市合計 | AA16: 12181986 | AB16: 10245347 | AC16: 1936639 | AD16: 37171993 | AE16: 37171993 | AF16: 2317140 | AG16: 2317140 | AH16: 縣市合計 | AI16: 0 | AJ16: 9818868 | AK16: 303712 | AL16: 219707 | AM16: 0 | AN16: 7659449 | AO16: 1636000
A17: 宜蘭縣 | B17: 26653640 | C17: 4302364 | D17: 368153 | E17: 192709 | F17: 1534150 | G17: 1989386 | H17: 217966 | I17: 宜蘭縣 | J17: 10865055 | K17: 10245694 | L17: 0 | M17: 619361 | N17: 3280803 | O17: 1092811 | P17: 188833 | Q17: 680582 | R17: 宜蘭縣 | S17: 1318577 | T17: 3941895 | U17: 123415 | V17: 159553 | W17: 1996722 | X17: 80086 | Y17: 1582119 | Z17: 宜蘭縣 | AA17: 1467484 | AB17: 464560 | AC17: 1002924 | AD17: 1991372 | AE17: 1991372 | AF17: 146410 | AG17: 146410 | AH17: 宜蘭縣 | AI17: 0 | AJ17: 658257 | AK17: 9750 | AL17: 0 | AM17: 0 | AN17: 568507 | AO17: 80000
A18: 新竹縣 | B18: 32360287 | C18: 4783299 | D18: 424492 | E18: 220270 | F18: 2049815 | G18: 1851170 | H18: 237552 | I18: 新竹縣 | J18: 13892448 | K18: 13405572 | L18: 0 | M18: 486876 | N18: 3777021 | O18: 475189 | P18: 75124 | Q18: 2000780 | R18: 新竹縣 | S18: 1225928 | T18: 5334778 | U18: 101856 | V18: 115372 | W18: 4368919 | X18: 40562 | Y18: 708069 | Z18: 新竹縣 | AA18: 1124065 | AB18: 1124065 | AC18: 0 | AD18: 2468556 | AE18: 2468556 | AF18: 200000 | AG18: 200000 | AH18: 新竹縣 | AI18: 0 | AJ18: 780120 | AK18: 0 | AL18: 0 | AM18: 0 | AN18: 380120 | AO18: 400000
A19: 苗栗縣 | B19: 21566773 | C19: 4865472 | D19: 365302 | E19: 220376 | F19: 1899075 | G19: 2119606 | H19: 261113 | I19: 苗栗縣 | J19: 7862216 | K19: 7597597 | L19: 0 | M19: 264619 | N19: 1356436 | O19: 524458 | P19: 17181 | Q19: 615592 | R19: 苗栗縣 | S19: 199205 | T19: 2996196 | U19: 123783 | V19: 213845 | W19: 1456292 | X19: 59459 | Y19: 1142817 | Z19: 苗栗縣 | AA19: 1128667 | AB19: 940471 | AC19: 188196 | AD19: 2439786 | AE19: 2439786 | AF19: 500000 | AG19: 500000 | AH19: 苗栗縣 | AI19: 0 | AJ19: 418000 | AK19: 0 | AL19: 42750 | AM19: 0 | AN19: 325250 | AO19: 50000
A20: 彰化縣 | B20: 56604393 | C20: 8122989 | D20: 436396 | E20: 296924 | F20: 2294849 | G20: 4454840 | H20: 639980 | I20: 彰化縣 | J20: 21904508 | K20: 21504257 | L20: 0 | M20: 400251 | N20: 8386644 | O20: 2634204 | P20: 164289 | Q20: 3720047 | R20: 彰化縣 | S20: 1868104 | T20: 10676934 | U20: 364960 | V20: 335952 | W20: 5807400 | X20: 131872 | Y20: 4036750 | Z20: 彰化縣 | AA20: 626916 | AB20: 329825 | AC20: 297091 | AD20: 5466553 | AE20: 5466553 | AF20: 367896 | AG20: 367896 | AH20: 彰化縣 | AI20: 0 | AJ20: 1051953 | AK20: 23325 | AL20: 0 | AM20: 0 | AN20: 928628 | AO20: 100000
A21: 南投縣 | B21: 28905000 | C21: 5424925 | D21: 659174 | E21: 259024 | F21: 1741529 | G21: 2504822 | H21: 260376 | I21: 南投縣 | J21: 10317304 | K21: 10156793 | L21: 0 | M21: 160511 | N21: 4190094 | O21: 471991 | P21: 1492301 | Q21: 2026722 | R21: 南投縣 | S21: 199080 | T21: 4905653 | U21: 133836 | V21: 125461 | W21: 3743086 | X21: 16763 | Y21: 886507 | Z21: 南投縣 | AA21: 473194 | AB21: 366645 | AC21: 106549 | AD21: 2726031 | AE21: 2726031 | AF21: 94357 | AG21: 94357 | AH21: 南投縣 | AI21: 0 | AJ21: 773442 | AK21: 36000 | AL21: 0 | AM21: 0 | AN21: 507442 | AO21: 230000
A22: 雲林縣 | B22: 37307792 | C22: 4898857 | D22: 396274 | E22: 244976 | F22: 1507193 | G22: 2469925 | H22: 280489 | I22: 雲林縣 | J22: 14997272 | K22: 14101565 | L22: 0 | M22: 895707 | N22: 6069727 | O22: 2874792 | P22: 152522 | Q22: 1592581 | R22: 雲林縣 | S22: 1449832 | T22: 6799340 | U22: 227800 | V22: 520923 | W22: 3923729 | X22: 0 | Y22: 2126888 | Z22: 雲林縣 | AA22: 436796 | AB22: 374764 | AC22: 62032 | AD22: 3108385 | AE22: 3108385 | AF22: 176837 | AG22: 176837 | AH22: 雲林縣 | AI22: 0 | AJ22: 820578 | AK22: 72000 | AL22: 0 | AM22: 0 | AN22: 668578 | AO22: 80000
A23: 嘉義縣 | B23: 28353197 | C23: 4961278 | D23: 545149 | E23: 240256 | F23: 1621222 | G23: 2280077 | H23: 274574 | I23: 嘉義縣 | J23: 8948167 | K23: 8769122 | L23: 0 | M23: 179045 | N23: 5187325 | O23: 3233612 | P23: 66094 | Q23: 1393861 | R23: 嘉義縣 | S23: 493758 | T23: 5583431 | U23: 148629 | V23: 127871 | W23: 4161641 | X23: 75239 | Y23: 1070051 | Z23: 嘉義縣 | AA23: 191327 | AB23: 191327 | AC23: 0 | AD23: 2301682 | AE23: 2301682 | AF23: 250000 | AG23: 250000 | AH23: 嘉義縣 | AI23: 0 | AJ23: 929987 | AK23: 22137 | AL23: 89250 | AM23: 0 | AN23: 738600 | AO23: 80000
A24: 屏東縣 | B24: 47117000 | C24: 8643562 | D24: 650734 | E24: 330213 | F24: 3922767 | G24: 3240380 | H24: 499468 | I24: 屏東縣 | J24: 16439017 | K24: 15271744 | L24: 0 | M24: 1167273 | N24: 6996570 | O24: 3551955 | P24: 829025 | Q24: 1731353 | R24: 屏東縣 | S24: 884237 | T24: 8170612 | U24: 259693 | V24: 395213 | W24: 3999191 | X24: 143180 | Y24: 3373335 | Z24: 屏東縣 | AA24: 773596 | AB24: 676591 | AC24: 97005 | AD24: 5112571 | AE24: 5112571 | AF24: 150000 | AG24: 150000 | AH24: 屏東縣 | AI24: 0 | AJ24: 831072 | AK24: 78000 | AL24: 0 | AM24: 0 | AN24: 693072 | AO24: 60000
A25: 臺東縣 | B25: 20846011 | C25: 4780684 | D25: 560730 | E25: 203681 | F25: 2255042 | G25: 1564078 | H25: 197153 | I25: 臺東縣 | J25: 6396474 | K25: 6027780 | L25: 0 | M25: 368694 | N25: 2483948 | O25: 762731 | P25: 168921 | Q25: 643384 | R25: 臺東縣 | S25: 908912 | T25: 3352235 | U25: 85999 | V25: 295051 | W25: 1502372 | X25: 25823 | Y25: 1442990 | Z25: 臺東縣 | AA25: 533484 | AB25: 513224 | AC25: 20260 | AD25: 2275294 | AE25: 2275294 | AF25: 100000 | AG25: 100000 | AH25: 臺東縣 | AI25: 0 | AJ25: 923892 | AK25: 1000 | AL25: 0 | AM25: 0 | AN25: 862892 | AO25: 60000
A26: 花蓮縣 | B26: 26256716 | C26: 5375873 | D26: 390067 | E26: 226088 | F26: 2473296 | G26: 1999585 | H26: 286837 | I26: 花蓮縣 | J26: 8786412 | K26: 8351827 | L26: 0 | M26: 434585 | N26: 4254328 | O26: 896106 | P26: 868525 | Q26: 1755024 | R26: 花蓮縣 | S26: 734673 | T26: 4355711 | U26: 104874 | V26: 243667 | W26: 3239890 | X26: 12892 | Y26: 754388 | Z26: 花蓮縣 | AA26: 519259 | AB26: 502829 | AC26: 16430 | AD26: 2318933 | AE26: 2318933 | AF26: 127200 | AG26: 127200 | AH26: 花蓮縣 | AI26: 0 | AJ26: 519000 | AK26: 0 | AL26: 0 | AM26: 0 | AN26: 459000 | AO26: 60000
A27: 澎湖縣 | B27: 12701162 | C27: 2515965 | D27: 231189 | E27: 157221 | F27: 631046 | G27: 1365410 | H27: 131099 | I27: 澎湖縣 | J27: 3169577 | K27: 2742621 | L27: 36750 | M27: 390206 | N27: 3150594 | O27: 680105 | P27: 627411 | Q27: 1331383 | R27: 澎湖縣 | S27: 511695 | T27: 2074134 | U27: 45324 | V27: 100738 | W27: 1282808 | X27: 22001 | Y27: 623263 | Z27: 澎湖縣 | AA27: 601058 | AB27: 596434 | AC27: 4624 | AD27: 849655 | AE27: 849655 | AF27: 16740 | AG27: 16740 | AH27: 澎湖縣 | AI27: 0 | AJ27: 323439 | AK27: 58500 | AL27: 0 | AM27: 0 | AN27: 217939 | AO27: 47000
A28: 基隆市 | B28: 21154599 | C28: 4326866 | D28: 416089 | E28: 209812 | F28: 1641767 | G28: 1779347 | H28: 279851 | I28: 基隆市 | J28: 7050919 | K28: 6734346 | L28: 0 | M28: 316573 | N28: 2817232 | O28: 241056 | P28: 620778 | Q28: 1329852 | R28: 基隆市 | S28: 625546 | T28: 3904294 | U28: 454543 | V28: 302596 | W28: 2687909 | X28: 14641 | Y28: 444605 | Z28: 基隆市 | AA28: 940663 | AB28: 887415 | AC28: 53248 | AD28: 1658275 | AE28: 1658275 | AF28: 60000 | AG28: 60000 | AH28: 基隆市 | AI28: 0 | AJ28: 396350 | AK28: 0 | AL28: 0 | AM28: 0 | AN28: 369350 | AO28: 27000
A29: 新竹市 | B29: 25615303 | C29: 3850898 | D29: 338198 | E29: 206625 | F29: 1393361 | G29: 1648777 | H29: 263937 | I29: 新竹市 | J29: 9976072 | K29: 8715865 | L29: 0 | M29: 1260207 | N29: 2506739 | O29: 359294 | P29: 413343 | Q29: 1139487 | R29: 新竹市 | S29: 594615 | T29: 4662221 | U29: 75500 | V29: 149800 | W29: 3323525 | X29: 58682 | Y29: 1054714 | Z29: 新竹市 | AA29: 1462588 | AB29: 1399772 | AC29: 62816 | AD29: 2326672 | AE29: 2326672 | AF29: 120000 | AG29: 120000 | AH29: 新竹市 | AI29: 0 | AJ29: 710113 | AK29: 0 | AL29: 0 | AM29: 0 | AN29: 415113 | AO29: 295000
A30: 嘉義市 | B30: 16622292 | C30: 3426818 | D30: 360998 | E30: 173787 | F30: 1223545 | G30: 1430486 | H30: 238002 | I30: 嘉義市 | J30: 5685673 | K30: 5283402 | L30: 0 | M30: 402271 | N30: 2335017 | O30: 59816 | P30: 72381 | Q30: 1714094 | R30: 嘉義市 | S30: 488726 | T30: 2467957 | U30: 66608 | V30: 95677 | W30: 1441535 | X30: 38910 | Y30: 825227 | Z30: 嘉義市 | AA30: 981747 | AB30: 972159 | AC30: 9588 | AD30: 1393980 | AE30: 1393980 | AF30: 7100 | AG30: 7100 | AH30: 嘉義市 | AI30: 0 | AJ30: 324000 | AK30: 0 | AL30: 0 | AM30: 0 | AN30: 309000 | AO30: 15000
A31: 金門縣 | B31: 13934761 | C31: 2241371 | D31: 519692 | E31: 189197 | F31: 757846 | G31: 714771 | H31: 59865 | I31: 金門縣 | J31: 3552784 | K31: 3054934 | L31: 0 | M31: 497850 | N31: 4674854 | O31: 1268499 | P31: 292723 | Q31: 2195898 | R31: 金門縣 | S31: 917734 | T31: 1667713 | U31: 33985 | V31: 49213 | W31: 912014 | X31: 0 | Y31: 672501 | Z31: 金門縣 | AA31: 828831 | AB31: 812955 | AC31: 15876 | AD31: 682501 | AE31: 682501 | AF31: 0 | AG31: 0 | AH31: 金門縣 | AI31: 0 | AJ31: 286707 | AK31: 0 | AL31: 87707 | AM31: 0 | AN31: 162000 | AO31: 37000
A32: 連江縣 | B32: 4823635 | C32: 747862 | D32: 263732 | E32: 65761 | F32: 206540 | G32: 182149 | H32: 29680 | I32: 連江縣 | J32: 1303670 | K32: 940587 | L32: 0 | M32: 363083 | N32: 2134312 | O32: 394236 | P32: 18910 | Q32: 1086706 | R32: 連江縣 | S32: 634460 | T32: 421175 | U32: 1829 | V32: 9671 | W32: 130854 | X32: 0 | Y32: 278821 | Z32: 連江縣 | AA32: 92311 | AB32: 92311 | AC32: 0 | AD32: 51747 | AE32: 51747 | AF32: 600 | AG32: 600 | AH32: 連江縣 | AI32: 0 | AJ32: 71958 | AK32: 3000 | AL32: 0 | AM32: 0 | AN32: 53958 | AO32: 15000
A33: (經常門) | I33: (經常門) | R33: (經常門) | Z33: (經常門) | AH33: (經常門)
A34: 總 計 | B34: 1047705371 | C34: 204274968 | D34: 13385342 | E34: 7697286 | F34: 82529017 | G34: 90397448 | H34: 10265875 | I34: 總 計 | J34: 422067894 | K34: 399862580 | L34: 36750 | M34: 22168564 | N34: 64247943 | O34: 16016811 | P34: 8571238 | Q34: 27351596 | R34: 總 計 | S34: 12308298 | T34: 224108598 | U34: 11198053 | V34: 21687524 | W34: 139575461 | X34: 1416534 | Y34: 50231026 | Z34: 總 計 | AA34: 50418326 | AB34: 44389289 | AC34: 6029037 | AD34: 60529202 | AE34: 60529202 | AF34: 7962358 | AG34: 7939780 | AH34: 總 計 | AI34: 22578 | AJ34: 14096082 | AK34: 300712 | AL34: 171792 | AM34: 0 | AN34: 10224245 | AO34: 3399333
A35: 直轄市合計 | B35: 717502055 | C35: 137744667 | D35: 7281955 | E35: 4392823 | F35: 59042922 | G35: 60418851 | H35: 6608116 | I35: 直轄市合計 | J35: 295105422 | K35: 277574934 | L35: 0 | M35: 17530488 | N35: 48165220 | O35: 9451214 | P35: 6471477 | Q35: 24272626 | R35: 直轄市合計 | S35: 7969903 | T35: 155480397 | U35: 8845419 | V35: 18447056 | W35: 96905993 | X35: 718943 | Y35: 30562986 | Z35: 直轄市合計 | AA35: 43218878 | AB35: 37672832 | AC35: 5546046 | AD35: 23357209 | AE35: 23357209 | AF35: 5645218 | AG35: 5622640 | AH35: 直轄市合計 | AI35: 22578 | AJ35: 8785044 | AK35: 0 | AL35: 0 | AM35: 0 | AN35: 6631711 | AO35: 2153333
A36: 新北市 | B36: 149818218 | C36: 29615588 | D36: 1541354 | E36: 682969 | F36: 14609589 | G36: 11520274 | H36: 1261402 | I36: 新北市 | J36: 60595806 | K36: 58177444 | L36: 0 | M36: 2418362 | N36: 7593494 | O36: 1766711 | P36: 734101 | Q36: 4310047 | R36: 新北市 | S36: 782635 | T36: 34138475 | U36: 1467157 | V36: 1498277 | W36: 24054613 | X36: 122864 | Y36: 6995564 | Z36: 新北市 | AA36: 10219380 | AB36: 9476165 | AC36: 743215 | AD36: 4040780 | AE36: 4040780 | AF36: 1036000 | AG36: 1036000 | AH36: 新北市 | AI36: 0 | AJ36: 2578695 | AK36: 0 | AL36: 0 | AM36: 0 | AN36: 2178695 | AO36: 400000
A37: 臺北市 | B37: 138543567 | C37: 26809436 | D37: 1905052 | E37: 835394 | F37: 8968342 | G37: 13149761 | H37: 1950887 | I37: 臺北市 | J37: 55724117 | K37: 49853044 | L37: 0 | M37: 5871073 | N37: 13867473 | O37: 2344140 | P37: 1840006 | Q37: 8011491 | R37: 臺北市 | S37: 1671836 | T37: 24482784 | U37: 668657 | V37: 9221035 | W37: 9451788 | X37: 379805 | Y37: 4761499 | Z37: 臺北市 | AA37: 9637614 | AB37: 7985326 | AC37: 1652288 | AD37: 5258356 | AE37: 5258356 | AF37: 597287 | AG37: 589287 | AH37: 臺北市 | AI37: 8000 | AJ37: 2166500 | AK37: 0 | AL37: 0 | AM37: 0 | AN37: 1646500 | AO37: 520000
A38: 桃園市 | B38: 102355497 | C38: 19391658 | D38: 979854 | E38: 658710 | F38: 8987427 | G38: 8001753 | H38: 763914 | I38: 桃園市 | J38: 44272048 | K38: 41189934 | L38: 0 | M38: 3082114 | N38: 6893154 | O38: 1675882 | P38: 1530007 | Q38: 2527604 | R38: 桃園市 | S38: 1159661 | T38: 22087582 | U38: 1279655 | V38: 3622706 | W38: 14907628 | X38: 0 | Y38: 2277593 | Z38: 桃園市 | AA38: 7110437 | AB38: 5740385 | AC38: 1370052 | AD38: 1451441 | AE38: 1451441 | AF38: 394555 | AG38: 394555 | AH38: 桃園市 | AI38: 0 | AJ38: 754622 | AK38: 0 | AL38: 0 | AM38: 0 | AN38: 354622 | AO38: 400000
A39: 臺中市 | B39: 122215094 | C39: 22995326 | D39: 1342471 | E39: 792840 | F39: 9465527 | G39: 10360369 | H39: 1034119 | I39: 臺中市 | J39: 51923558 | K39: 50007065 | L39: 0 | M39: 1916493 | N39: 7821220 | O39: 1143611 | P39: 1808250 | Q39: 3912752 | R39: 臺中市 | S39: 956607 | T39: 28010738 | U39: 951246 | V39: 2130855 | W39: 17954569 | X39: 20442 | Y39: 6953626 | Z39: 臺中市 | AA39: 6286559 | AB39: 5553454 | AC39: 733105 | AD39: 3096693 | AE39: 3096693 | AF39: 870000 | AG39: 870000 | AH39: 臺中市 | AI39: 0 | AJ39: 1211000 | AK39: 0 | AL39: 0 | AM39: 0 | AN39: 911000 | AO39: 300000
A40: 臺南市 | B40: 78804596 | C40: 16089875 | D40: 690749 | E40: 664068 | F40: 7257437 | G40: 6838496 | H40: 639125 | I40: 臺南市 | J40: 31444763 | K40: 29689411 | L40: 0 | M40: 1755352 | N40: 4981899 | O40: 1759717 | P40: 526999 | Q40: 1651734 | R40: 臺南市 | S40: 1043449 | T40: 17959140 | U40: 729295 | V40: 681185 | W40: 15086681 | X40: 95458 | Y40: 1366521 | Z40: 臺南市 | AA40: 3512810 | AB40: 2910696 | AC40: 602114 | AD40: 3546109 | AE40: 3546109 | AF40: 516000 | AG40: 516000 | AH40: 臺南市 | AI40: 0 | AJ40: 754000 | AK40: 0 | AL40: 0 | AM40: 0 | AN40: 354000 | AO40: 400000
A41: 高雄市 | B41: 125765083 | C41: 22842784 | D41: 822475 | E41: 758842 | F41: 9754600 | G41: 10548198 | H41: 958669 | I41: 高雄市 | J41: 51145130 | K41: 48658036 | L41: 0 | M41: 2487094 | N41: 7007980 | O41: 761153 | P41: 32114 | Q41: 3858998 | R41: 高雄市 | S41: 2355715 | T41: 28801678 | U41: 3749409 | V41: 1292998 | W41: 15450714 | X41: 100374 | Y41: 8208183 | Z41: 高雄市 | AA41: 6452078 | AB41: 6006806 | AC41: 445272 | AD41: 5963830 | AE41: 5963830 | AF41: 2231376 | AG41: 2216798 | AH41: 高雄市 | AI41: 14578 | AJ41: 1320227 | AK41: 0 | AL41: 0 | AM41: 0 | AN41: 1186894 | AO41: 133333
A42: 縣市合計 | B42: 330203316 | C42: 66530301 | D42: 6103387 | E42: 3304463 | F42: 23486095 | G42: 29978597 | H42: 3657759 | I42: 縣市合計 | J42: 126962472 | K42: 122287646 | L42: 36750 | M42: 4638076 | N42: 16082723 | O42: 6565597 | P42: 2099761 | Q42: 3078970 | R42: 縣市合計 | S42: 4338395 | T42: 68628201 | U42: 2352634 | V42: 3240468 | W42: 42669468 | X42: 697591 | Y42: 19668040 | Z42: 縣市合計 | AA42: 7199448 | AB42: 6716457 | AC42: 482991 | AD42: 37171993 | AE42: 37171993 | AF42: 2317140 | AG42: 2317140 | AH42: 縣市合計 | AI42: 0 | AJ42: 5311038 | AK42: 300712 | AL42: 171792 | AM42: 0 | AN42: 3592534 | AO42: 1246000
A43: 宜蘭縣 | B43: 21935564 | C43: 3960760 | D43: 318060 | E43: 191609 | F43: 1288565 | G43: 1947547 | H43: 214979 | I43: 宜蘭縣 | J43: 9863367 | K43: 9362962 | L43: 0 | M43: 500405 | N43: 1212095 | O43: 655002 | P43: 185961 | Q43: 142701 | R43: 宜蘭縣 | S43: 228431 | T43: 3800494 | U43: 123415 | V43: 159553 | W43: 1916320 | X43: 69936 | Y43: 1531270 | Z43: 宜蘭縣 | AA43: 569353 | AB43: 449580 | AC43: 119773 | AD43: 1991372 | AE43: 1991372 | AF43: 146410 | AG43: 146410 | AH43: 宜蘭縣 | AI43: 0 | AJ43: 391713 | AK43: 9750 | AL43: 0 | AM43: 0 | AN43: 301963 | AO43: 80000
A44: 新竹縣 | B44: 24209559 | C44: 4160215 | D44: 359342 | E44: 212069 | F44: 1683854 | G44: 1673328 | H44: 231622 | I44: 新竹縣 | J44: 10568332 | K44: 10319271 | L44: 0 | M44: 249061 | N44: 624634 | O44: 259401 | P44: 60324 | Q44: 143214 | R44: 新竹縣 | S44: 161695 | T44: 5160312 | U44: 101856 | V44: 115372 | W44: 4224495 | X44: 40562 | Y44: 678027 | Z44: 新竹縣 | AA44: 571040 | AB44: 571040 | AC44: 0 | AD44: 2468556 | AE44: 2468556 | AF44: 200000 | AG44: 200000 | AH44: 新竹縣 | AI44: 0 | AJ44: 456470 | AK44: 0 | AL44: 0 | AM44: 0 | AN44: 56470 | AO44: 400000
A45: 苗栗縣 | B45: 18731681 | C45: 4550324 | D45: 339929 | E45: 213766 | F45: 1754575 | G45: 1985493 | H45: 256561 | I45: 苗栗縣 | J45: 7571402 | K45: 7355149 | L45: 0 | M45: 216253 | N45: 378807 | O45: 220341 | P45: 16461 | Q45: 63276 | R45: 苗栗縣 | S45: 78729 | T45: 2943400 | U45: 123783 | V45: 213845 | W45: 1445867 | X45: 59283 | Y45: 1100622 | Z45: 苗栗縣 | AA45: 145712 | AB45: 137516 | AC45: 8196 | AD45: 2439786 | AE45: 2439786 | AF45: 500000 | AG45: 500000 | AH45: 苗栗縣 | AI45: 0 | AJ45: 202250 | AK45: 0 | AL45: 42750 | AM45: 0 | AN45: 109500 | AO45: 50000
A46: 彰化縣 | B46: 44784684 | C46: 7577787 | D46: 413969 | E46: 292390 | F46: 2190764 | G46: 4260297 | H46: 420367 | I46: 彰化縣 | J46: 18943685 | K46: 18631904 | L46: 0 | M46: 311781 | N46: 1399619 | O46: 645043 | P46: 164289 | Q46: 180644 | R46: 彰化縣 | S46: 409643 | T46: 10177631 | U46: 364960 | V46: 335952 | W46: 5762232 | X46: 131872 | Y46: 3582615 | Z46: 彰化縣 | AA46: 299560 | AB46: 249686 | AC46: 49874 | AD46: 5466553 | AE46: 5466553 | AF46: 367896 | AG46: 367896 | AH46: 彰化縣 | AI46: 0 | AJ46: 551953 | AK46: 23325 | AL46: 0 | AM46: 0 | AN46: 428628 | AO46: 100000
A47: 南投縣 | B47: 23601224 | C47: 4816833 | D47: 371241 | E47: 253974 | F47: 1563604 | G47: 2371974 | H47: 256040 | I47: 南投縣 | J47: 9573404 | K47: 9460574 | L47: 0 | M47: 112830 | N47: 657147 | O47: 269806 | P47: 188117 | Q47: 11464 | R47: 南投縣 | S47: 187760 | T47: 4882840 | U47: 133836 | V47: 125461 | W47: 3743086 | X47: 16763 | Y47: 863694 | Z47: 南投縣 | AA47: 366220 | AB47: 336221 | AC47: 29999 | AD47: 2726031 | AE47: 2726031 | AF47: 94357 | AG47: 94357 | AH47: 南投縣 | AI47: 0 | AJ47: 484392 | AK47: 36000 | AL47: 0 | AM47: 0 | AN47: 218392 | AO47: 230000
A48: 雲林縣 | B48: 28653927 | C48: 4742483 | D48: 381158 | E48: 243006 | F48: 1438946 | G48: 2402659 | H48: 276714 | I48: 雲林縣 | J48: 12206384 | K48: 11786528 | L48: 0 | M48: 419856 | N48: 1140293 | O48: 765354 | P48: 143995 | Q48: 98596 | R48: 雲林縣 | S48: 132348 | T48: 6611092 | U48: 227800 | V48: 520923 | W48: 3841480 | X48: 0 | Y48: 2020889 | Z48: 雲林縣 | AA48: 300953 | AB48: 295304 | AC48: 5649 | AD48: 3108385 | AE48: 3108385 | AF48: 176837 | AG48: 176837 | AH48: 雲林縣 | AI48: 0 | AJ48: 367500 | AK48: 72000 | AL48: 0 | AM48: 0 | AN48: 295500 | AO48: 0
A49: 嘉義縣 | B49: 21827290 | C49: 4525312 | D49: 440699 | E49: 214356 | F49: 1458102 | G49: 2151681 | H49: 260474 | I49: 嘉義縣 | J49: 7827470 | K49: 7694310 | L49: 0 | M49: 133160 | N49: 918272 | O49: 479102 | P49: 42551 | Q49: 157185 | R49: 嘉義縣 | S49: 239434 | T49: 5326313 | U49: 148629 | V49: 127871 | W49: 3944330 | X49: 74941 | Y49: 1030542 | Z49: 嘉義縣 | AA49: 111854 | AB49: 111854 | AC49: 0 | AD49: 2301682 | AE49: 2301682 | AF49: 250000 | AG49: 250000 | AH49: 嘉義縣 | AI49: 0 | AJ49: 566387 | AK49: 22137 | AL49: 89250 | AM49: 0 | AN49: 455000 | AO49: 0
A50: 屏東縣 | B50: 36354877 | C50: 7469461 | D50: 586269 | E50: 304618 | F50: 3204465 | G50: 3038344 | H50: 335765 | I50: 屏東縣 | J50: 13560880 | K50: 13101780 | L50: 0 | M50: 459100 | N50: 1407677 | O50: 643202 | P50: 131955 | Q50: 318144 | R50: 屏東縣 | S50: 314376 | T50: 7730394 | U50: 259693 | V50: 395213 | W50: 3829875 | X50: 131495 | Y50: 3114118 | Z50: 屏東縣 | AA50: 566828 | AB50: 469823 | AC50: 97005 | AD50: 5112571 | AE50: 5112571 | AF50: 150000 | AG50: 150000 | AH50: 屏東縣 | AI50: 0 | AJ50: 357066 | AK50: 78000 | AL50: 0 | AM50: 0 | AN50: 219066 | AO50: 60000
A51: 臺東縣 | B51: 17212192 | C51: 4186989 | D51: 549830 | E51: 194681 | F51: 1763841 | G51: 1506183 | H51: 172454 | I51: 臺東縣 | J51: 5362525 | K51: 5125594 | L51: 0 | M51: 236931 | N51: 1171578 | O51: 453979 | P51: 168921 | Q51: 164841 | R51: 臺東縣 | S51: 383837 | T51: 3163775 | U51: 85999 | V51: 295051 | W51: 1425618 | X51: 25823 | Y51: 1331284 | Z51: 臺東縣 | AA51: 298139 | AB51: 277879 | AC51: 20260 | AD51: 2275294 | AE51: 2275294 | AF51: 100000 | AG51: 100000 | AH51: 臺東縣 | AI51: 0 | AJ51: 653892 | AK51: 1000 | AL51: 0 | AM51: 0 | AN51: 652892 | AO51: 0
A52: 花蓮縣 | B52: 20486655 | C52: 4714110 | D52: 381219 | E52: 214898 | F52: 1928445 | G52: 1907507 | H52: 282041 | I52: 花蓮縣 | J52: 7351194 | K52: 7037602 | L52: 0 | M52: 313592 | N52: 1093276 | O52: 409721 | P52: 320149 | Q52: 84521 | R52: 花蓮縣 | S52: 278885 | T52: 4213635 | U52: 104874 | V52: 243532 | W52: 3150452 | X52: 12882 | Y52: 701895 | Z52: 花蓮縣 | AA52: 402307 | AB52: 386937 | AC52: 15370 | AD52: 2318933 | AE52: 2318933 | AF52: 127200 | AG52: 127200 | AH52: 花蓮縣 | AI52: 0 | AJ52: 266000 | AK52: 0 | AL52: 0 | AM52: 0 | AN52: 206000 | AO52: 60000
A53: 澎湖縣 | B53: 9163199 | C53: 2404420 | D53: 223019 | E53: 153721 | F53: 573339 | G53: 1324910 | H53: 129431 | I53: 澎湖縣 | J53: 2485053 | K53: 2254247 | L53: 36750 | M53: 194056 | N53: 949640 | O53: 345937 | P53: 92008 | Q53: 0 | R53: 澎湖縣 | S53: 511695 | T53: 1881156 | U53: 45324 | V53: 100738 | W53: 1147609 | X53: 22001 | Y53: 565484 | Z53: 澎湖縣 | AA53: 380403 | AB53: 375779 | AC53: 4624 | AD53: 849655 | AE53: 849655 | AF53: 16740 | AG53: 16740 | AH53: 澎湖縣 | AI53: 0 | AJ53: 196132 | AK53: 58500 | AL53: 0 | AM53: 0 | AN53: 90632 | AO53: 47000
A54: 基隆市 | B54: 17256439 | C54: 4055209 | D54: 368902 | E54: 202707 | F54: 1465034 | G54: 1744121 | H54: 274445 | I54: 基隆市 | J54: 5708752 | K54: 5486653 | L54: 0 | M54: 222099 | N54: 887704 | O54: 173738 | P54: 86698 | Q54: 452053 | R54: 基隆市 | S54: 175215 | T54: 3837193 | U54: 454543 | V54: 302596 | W54: 2644403 | X54: 14641 | Y54: 421010 | Z54: 基隆市 | AA54: 868456 | AB54: 815508 | AC54: 52948 | AD54: 1658275 | AE54: 1658275 | AF54: 60000 | AG54: 60000 | AH54: 基隆市 | AI54: 0 | AJ54: 180850 | AK54: 0 | AL54: 0 | AM54: 0 | AN54: 153850 | AO54: 27000
A55: 新竹市 | B55: 20302126 | C55: 3482214 | D55: 324033 | E55: 200348 | F55: 1229596 | G55: 1472853 | H55: 255384 | I55: 新竹市 | J55: 7381759 | K55: 6798988 | L55: 0 | M55: 582771 | N55: 969228 | O55: 190182 | P55: 177618 | Q55: 306407 | R55: 新竹市 | S55: 295021 | T55: 4597469 | U55: 75500 | V55: 149800 | W55: 3284247 | X55: 58482 | Y55: 1029440 | Z55: 新竹市 | AA55: 1134671 | AB55: 1075842 | AC55: 58829 | AD55: 2326672 | AE55: 2326672 | AF55: 120000 | AG55: 120000 | AH55: 新竹市 | AI55: 0 | AJ55: 290113 | AK55: 0 | AL55: 0 | AM55: 0 | AN55: 155113 | AO55: 135000
A56: 嘉義市 | B56: 13340236 | C56: 3039634 | D56: 310008 | E56: 171687 | F56: 1033532 | G56: 1321437 | H56: 202970 | I56: 嘉義市 | J56: 5046453 | K56: 4766104 | L56: 0 | M56: 280349 | N56: 491911 | O56: 59816 | P56: 72381 | Q56: 110915 | R56: 嘉義市 | S56: 248799 | T56: 2414477 | U56: 66608 | V56: 95677 | W56: 1425215 | X56: 38910 | Y56: 788067 | Z56: 嘉義市 | AA56: 732681 | AB56: 723093 | AC56: 9588 | AD56: 1393980 | AE56: 1393980 | AF56: 7100 | AG56: 7100 | AH56: 嘉義市 | AI56: 0 | AJ56: 214000 | AK56: 0 | AL56: 0 | AM56: 0 | AN56: 199000 | AO56: 15000
A57: 金門縣 | B57: 9586272 | C57: 2164617 | D57: 502440 | E57: 177055 | F57: 733466 | G57: 691866 | H57: 59790 | I57: 金門縣 | J57: 2710921 | K57: 2423964 | L57: 0 | M57: 286957 | N57: 2047743 | O57: 813621 | P57: 229423 | Q57: 355127 | R57: 金門縣 | S57: 649572 | T57: 1488927 | U57: 33985 | V57: 49213 | W57: 754185 | X57: 0 | Y57: 651544 | Z57: 金門縣 | AA57: 370771 | AB57: 359895 | AC57: 10876 | AD57: 682501 | AE57: 682501 | AF57: 0 | AG57: 0 | AH57: 金門縣 | AI57: 0 | AJ57: 120792 | AK57: 0 | AL57: 39792 | AM57: 0 | AN57: 44000 | AO57: 37000
A58: 連江縣 | B58: 2757391 | C58: 679933 | D58: 233269 | E58: 63578 | F58: 175967 | G58: 178397 | H58: 28722 | I58: 連江縣 | J58: 800891 | K58: 682016 | L58: 0 | M58: 118875 | N58: 733099 | O58: 181352 | P58: 18910 | Q58: 489882 | R58: 連江縣 | S58: 42955 | T58: 399093 | U58: 1829 | V58: 9671 | W58: 130054 | X58: 0 | Y58: 257539 | Z58: 連江縣 | AA58: 80500 | AB58: 80500 | AC58: 0 | AD58: 51747 | AE58: 51747 | AF58: 600 | AG58: 600 | AH58: 連江縣 | AI58: 0 | AJ58: 11528 | AK58: 0 | AL58: 0 | AM58: 0 | AN58: 6528 | AO58: 5000
A59: (資本門) | I59: (資本門) | R59: (資本門) | Z59: (資本門) | AH59: (資本門)
A60: 總 計 | B60: 276950905 | C60: 22584919 | D60: 1646654 | E60: 233989 | F60: 13577423 | G60: 5180654 | H60: 1946199 | I60: 總 計 | J60: 64232050 | K60: 46164790 | L60: 0 | M60: 18067260 | N60: 146054377 | O60: 39905735 | P60: 10251086 | Q60: 84802457 | R60: 總 計 | S60: 11095099 | T60: 9148566 | U60: 0 | V60: 173 | W60: 6645861 | X60: 196403 | Y60: 2306129 | Z60: 總 計 | AA60: 22052996 | AB60: 16939277 | AC60: 5113719 | AD60: 0 | AE60: 0 | AF60: 0 | AG60: 0 | AH60: 總 計 | AI60: 0 | AJ60: 12877997 | AK60: 3000 | AL60: 47915 | AM60: 0 | AN60: 11750415 | AO60: 1076667
A61: 直轄市合計 | B61: 186331660 | C61: 15846137 | D61: 823672 | E61: 101532 | F61: 9910475 | G61: 3564442 | H61: 1446016 | I61: 直轄市合計 | J61: 40046954 | K61: 25548730 | L61: 0 | M61: 14498224 | N61: 98535456 | O61: 26950477 | P61: 6282486 | Q61: 62924081 | R61: 直轄市合計 | S61: 2378412 | T61: 6462488 | U61: 0 | V61: 38 | W61: 5337442 | X61: 173884 | Y61: 951124 | Z61: 直轄市合計 | AA61: 17070458 | AB61: 13410387 | AC61: 3660071 | AD61: 0 | AE61: 0 | AF61: 0 | AG61: 0 | AH61: 直轄市合計 | AI61: 0 | AJ61: 8370167 | AK61: 0 | AL61: 0 | AM61: 0 | AN61: 7683500 | AO61: 686667
A62: 新北市 | B62: 36664623 | C62: 5603948 | D62: 211564 | E62: 15698 | F62: 3529853 | G62: 559095 | H62: 1287738 | I62: 新北市 | J62: 4131926 | K62: 3020390 | L62: 0 | M62: 1111536 | N62: 20678496 | O62: 3556969 | P62: 43604 | Q62: 16448705 | R62: 新北市 | S62: 629218 | T62: 910873 | U62: 0 | V62: 0 | W62: 667265 | X62: 563 | Y62: 243045 | Z62: 新北市 | AA62: 3780380 | AB62: 3652206 | AC62: 128174 | AD62: 0 | AE62: 0 | AF62: 0 | AG62: 0 | AH62: 新北市 | AI62: 0 | AJ62: 1559000 | AK62: 0 | AL62: 0 | AM62: 0 | AN62: 1559000 | AO62: 0
A63: 臺北市 | B63: 33039899 | C63: 2292449 | D63: 254283 | E63: 23552 | F63: 987526 | G63: 940251 | H63: 86837 | I63: 臺北市 | J63: 7806139 | K63: 4919130 | L63: 0 | M63: 2887009 | N63: 14492706 | O63: 5356694 | P63: 216105 | Q63: 8819332 | R63: 臺北市 | S63: 100575 | T63: 2855451 | U63: 0 | V63: 0 | W63: 2437394 | X63: 170897 | Y63: 247160 | Z63: 臺北市 | AA63: 4323154 | AB63: 1648962 | AC63: 2674192 | AD63: 0 | AE63: 0 | AF63: 0 | AG63: 0 | AH63: 臺北市 | AI63: 0 | AJ63: 1270000 | AK63: 0 | AL63: 0 | AM63: 0 | AN63: 1050000 | AO63: 220000
A64: 桃園市 | B64: 38695503 | C64: 2513817 | D64: 68246 | E64: 17063 | F64: 1320604 | G64: 1098482 | H64: 9422 | I64: 桃園市 | J64: 11021148 | K64: 6116093 | L64: 0 | M64: 4905055 | N64: 22202295 | O64: 5126512 | P64: 4424119 | Q64: 12324900 | R64: 桃園市 | S64: 326764 | T64: 847137 | U64: 0 | V64: 0 | W64: 779055 | X64: 0 | Y64: 68082 | Z64: 桃園市 | AA64: 692106 | AB64: 575714 | AC64: 116392 | AD64: 0 | AE64: 0 | AF64: 0 | AG64: 0 | AH64: 桃園市 | AI64: 0 | AJ64: 1419000 | AK64: 0 | AL64: 0 | AM64: 0 | AN64: 1419000 | AO64: 0
A65: 臺中市 | B65: 28985818 | C65: 1813463 | D65: 98751 | E65: 5200 | F65: 1401441 | G65: 286515 | H65: 21556 | I65: 臺中市 | J65: 6781384 | K65: 4045028 | L65: 0 | M65: 2736356 | N65: 14931873 | O65: 1558070 | P65: 1405989 | Q65: 11593179 | R65: 臺中市 | S65: 374635 | T65: 826784 | U65: 0 | V65: 0 | W65: 716733 | X65: 0 | Y65: 110051 | Z65: 臺中市 | AA65: 3062314 | AB65: 2539098 | AC65: 523216 | AD65: 0 | AE65: 0 | AF65: 0 | AG65: 0 | AH65: 臺中市 | AI65: 0 | AJ65: 1570000 | AK65: 0 | AL65: 0 | AM65: 0 | AN65: 1370000 | AO65: 200000
A66: 臺南市 | B66: 23261218 | C66: 1590722 | D66: 84603 | E66: 19384 | F66: 1122666 | G66: 351700 | H66: 12369 | I66: 臺南市 | J66: 6093016 | K66: 4292519 | L66: 0 | M66: 1800497 | N66: 13909326 | O66: 7106745 | P66: 164682 | Q66: 6146318 | R66: 臺南市 | S66: 491581 | T66: 274210 | U66: 0 | V66: 0 | W66: 222729 | X66: 1711 | Y66: 49770 | Z66: 臺南市 | AA66: 471944 | AB66: 344527 | AC66: 127417 | AD66: 0 | AE66: 0 | AF66: 0 | AG66: 0 | AH66: 臺南市 | AI66: 0 | AJ66: 922000 | AK66: 0 | AL66: 0 | AM66: 0 | AN66: 922000 | AO66: 0
A67: 高雄市 | B67: 25684599 | C67: 2031738 | D67: 106225 | E67: 20635 | F67: 1548385 | G67: 328399 | H67: 28094 | I67: 高雄市 | J67: 4213341 | K67: 3155570 | L67: 0 | M67: 1057771 | N67: 12320760 | O67: 4245487 | P67: 27987 | Q67: 7591647 | R67: 高雄市 | S67: 455639 | T67: 748033 | U67: 0 | V67: 38 | W67: 514266 | X67: 713 | Y67: 233016 | Z67: 高雄市 | AA67: 4740560 | AB67: 4649880 | AC67: 90680 | AD67: 0 | AE67: 0 | AF67: 0 | AG67: 0 | AH67: 高雄市 | AI67: 0 | AJ67: 1630167 | AK67: 0 | AL67: 0 | AM67: 0 | AN67: 1363500 | AO67: 266667
A68: 縣市合計 | B68: 90619245 | C68: 6738782 | D68: 822982 | E68: 132457 | F68: 3666948 | G68: 1616212 | H68: 500183 | I68: 縣市合計 | J68: 24185096 | K68: 20616060 | L68: 0 | M68: 3569036 | N68: 47518921 | O68: 12955258 | P68: 3968600 | Q68: 21878376 | R68: 縣市合計 | S68: 8716687 | T68: 2686078 | U68: 0 | V68: 135 | W68: 1308419 | X68: 22519 | Y68: 1355005 | Z68: 縣市合計 | AA68: 4982538 | AB68: 3528890 | AC68: 1453648 | AD68: 0 | AE68: 0 | AF68: 0 | AG68: 0 | AH68: 縣市合計 | AI68: 0 | AJ68: 4507830 | AK68: 3000 | AL68: 47915 | AM68: 0 | AN68: 4066915 | AO68: 390000
A69: 宜蘭縣 | B69: 4718076 | C69: 341604 | D69: 50093 | E69: 1100 | F69: 245585 | G69: 41839 | H69: 2987 | I69: 宜蘭縣 | J69: 1001688 | K69: 882732 | L69: 0 | M69: 118956 | N69: 2068708 | O69: 437809 | P69: 2872 | Q69: 537881 | R69: 宜蘭縣 | S69: 1090146 | T69: 141401 | U69: 0 | V69: 0 | W69: 80402 | X69: 10150 | Y69: 50849 | Z69: 宜蘭縣 | AA69: 898131 | AB69: 14980 | AC69: 883151 | AD69: 0 | AE69: 0 | AF69: 0 | AG69: 0 | AH69: 宜蘭縣 | AI69: 0 | AJ69: 266544 | AK69: 0 | AL69: 0 | AM69: 0 | AN69: 266544 | AO69: 0
A70: 新竹縣 | B70: 8150728 | C70: 623084 | D70: 65150 | E70: 8201 | F70: 365961 | G70: 177842 | H70: 5930 | I70: 新竹縣 | J70: 3324116 | K70: 3086301 | L70: 0 | M70: 237815 | N70: 3152387 | O70: 215788 | P70: 14800 | Q70: 1857566 | R70: 新竹縣 | S70: 1064233 | T70: 174466 | U70: 0 | V70: 0 | W70: 144424 | X70: 0 | Y70: 30042 | Z70: 新竹縣 | AA70: 553025 | AB70: 553025 | AC70: 0 | AD70: 0 | AE70: 0 | AF70: 0 | AG70: 0 | AH70: 新竹縣 | AI70: 0 | AJ70: 323650 | AK70: 0 | AL70: 0 | AM70: 0 | AN70: 323650 | AO70: 0
A71: 苗栗縣 | B71: 2835092 | C71: 315148 | D71: 25373 | E71: 6610 | F71: 144500 | G71: 134113 | H71: 4552 | I71: 苗栗縣 | J71: 290814 | K71: 242448 | L71: 0 | M71: 48366 | N71: 977629 | O71: 304117 | P71: 720 | Q71: 552316 | R71: 苗栗縣 | S71: 120476 | T71: 52796 | U71: 0 | V71: 0 | W71: 10425 | X71: 176 | Y71: 42195 | Z71: 苗栗縣 | AA71: 982955 | AB71: 802955 | AC71: 180000 | AD71: 0 | AE71: 0 | AF71: 0 | AG71: 0 | AH71: 苗栗縣 | AI71: 0 | AJ71: 215750 | AK71: 0 | AL71: 0 | AM71: 0 | AN71: 215750 | AO71: 0
A72: 彰化縣 | B72: 11819709 | C72: 545202 | D72: 22427 | E72: 4534 | F72: 104085 | G72: 194543 | H72: 219613 | I72: 彰化縣 | J72: 2960823 | K72: 2872353 | L72: 0 | M72: 88470 | N72: 6987025 | O72: 1989161 | P72: 0 | Q72: 3539403 | R72: 彰化縣 | S72: 1458461 | T72: 499303 | U72: 0 | V72: 0 | W72: 45168 | X72: 0 | Y72: 454135 | Z72: 彰化縣 | AA72: 327356 | AB72: 80139 | AC72: 247217 | AD72: 0 | AE72: 0 | AF72: 0 | AG72: 0 | AH72: 彰化縣 | AI72: 0 | AJ72: 500000 | AK72: 0 | AL72: 0 | AM72: 0 | AN72: 500000 | AO72: 0
A73: 南投縣 | B73: 5303776 | C73: 608092 | D73: 287933 | E73: 5050 | F73: 177925 | G73: 132848 | H73: 4336 | I73: 南投縣 | J73: 743900 | K73: 696219 | L73: 0 | M73: 47681 | N73: 3532947 | O73: 202185 | P73: 1304184 | Q73: 2015258 | R73: 南投縣 | S73: 11320 | T73: 22813 | U73: 0 | V73: 0 | W73: 0 | X73: 0 | Y73: 22813 | Z73: 南投縣 | AA73: 106974 | AB73: 30424 | AC73: 76550 | AD73: 0 | AE73: 0 | AF73: 0 | AG73: 0 | AH73: 南投縣 | AI73: 0 | AJ73: 289050 | AK73: 0 | AL73: 0 | AM73: 0 | AN73: 289050 | AO73: 0
A74: 雲林縣 | B74: 8653865 | C74: 156374 | D74: 15116 | E74: 1970 | F74: 68247 | G74: 67266 | H74: 3775 | I74: 雲林縣 | J74: 2790888 | K74: 2315037 | L74: 0 | M74: 475851 | N74: 4929434 | O74: 2109438 | P74: 8527 | Q74: 1493985 | R74: 雲林縣 | S74: 1317484 | T74: 188248 | U74: 0 | V74: 0 | W74: 82249 | X74: 0 | Y74: 105999 | Z74: 雲林縣 | AA74: 135843 | AB74: 79460 | AC74: 56383 | AD74: 0 | AE74: 0 | AF74: 0 | AG74: 0 | AH74: 雲林縣 | AI74: 0 | AJ74: 453078 | AK74: 0 | AL74: 0 | AM74: 0 | AN74: 373078 | AO74: 80000
A75: 嘉義縣 | B75: 6525907 | C75: 435966 | D75: 104450 | E75: 25900 | F75: 163120 | G75: 128396 | H75: 14100 | I75: 嘉義縣 | J75: 1120697 | K75: 1074812 | L75: 0 | M75: 45885 | N75: 4269053 | O75: 2754510 | P75: 23543 | Q75: 1236676 | R75: 嘉義縣 | S75: 254324 | T75: 257118 | U75: 0 | V75: 0 | W75: 217311 | X75: 298 | Y75: 39509 | Z75: 嘉義縣 | AA75: 79473 | AB75: 79473 | AC75: 0 | AD75: 0 | AE75: 0 | AF75: 0 | AG75: 0 | AH75: 嘉義縣 | AI75: 0 | AJ75: 363600 | AK75: 0 | AL75: 0 | AM75: 0 | AN75: 283600 | AO75: 80000
A76: 屏東縣 | B76: 10762123 | C76: 1174101 | D76: 64465 | E76: 25595 | F76: 718302 | G76: 202036 | H76: 163703 | I76: 屏東縣 | J76: 2878137 | K76: 2169964 | L76: 0 | M76: 708173 | N76: 5588893 | O76: 2908753 | P76: 697070 | Q76: 1413209 | R76: 屏東縣 | S76: 569861 | T76: 440218 | U76: 0 | V76: 0 | W76: 169316 | X76: 11685 | Y76: 259217 | Z76: 屏東縣 | AA76: 206768 | AB76: 206768 | AC76: 0 | AD76: 0 | AE76: 0 | AF76: 0 | AG76: 0 | AH76: 屏東縣 | AI76: 0 | AJ76: 474006 | AK76: 0 | AL76: 0 | AM76: 0 | AN76: 474006 | AO76: 0
A77: 臺東縣 | B77: 3633819 | C77: 593695 | D77: 10900 | E77: 9000 | F77: 491201 | G77: 57895 | H77: 24699 | I77: 臺東縣 | J77: 1033949 | K77: 902186 | L77: 0 | M77: 131763 | N77: 1312370 | O77: 308752 | P77: 0 | Q77: 478543 | R77: 臺東縣 | S77: 525075 | T77: 188460 | U77: 0 | V77: 0 | W77: 76754 | X77: 0 | Y77: 111706 | Z77: 臺東縣 | AA77: 235345 | AB77: 235345 | AC77: 0 | AD77: 0 | AE77: 0 | AF77: 0 | AG77: 0 | AH77: 臺東縣 | AI77: 0 | AJ77: 270000 | AK77: 0 | AL77: 0 | AM77: 0 | AN77: 210000 | AO77: 60000
A78: 花蓮縣 | B78: 5770061 | C78: 661763 | D78: 8848 | E78: 11190 | F78: 544851 | G78: 92078 | H78: 4796 | I78: 花蓮縣 | J78: 1435218 | K78: 1314225 | L78: 0 | M78: 120993 | N78: 3161052 | O78: 486385 | P78: 548376 | Q78: 1670503 | R78: 花蓮縣 | S78: 455788 | T78: 142076 | U78: 0 | V78: 135 | W78: 89438 | X78: 10 | Y78: 52493 | Z78: 花蓮縣 | AA78: 116952 | AB78: 115892 | AC78: 1060 | AD78: 0 | AE78: 0 | AF78: 0 | AG78: 0 | AH78: 花蓮縣 | AI78: 0 | AJ78: 253000 | AK78: 0 | AL78: 0 | AM78: 0 | AN78: 253000 | AO78: 0
A79: 澎湖縣 | B79: 3537963 | C79: 111545 | D79: 8170 | E79: 3500 | F79: 57707 | G79: 40500 | H79: 1668 | I79: 澎湖縣 | J79: 684524 | K79: 488374 | L79: 0 | M79: 196150 | N79: 2200954 | O79: 334168 | P79: 535403 | Q79: 1331383 | R79: 澎湖縣 | S79: 0 | T79: 192978 | U79: 0 | V79: 0 | W79: 135199 | X79: 0 | Y79: 57779 | Z79: 澎湖縣 | AA79: 220655 | AB79: 220655 | AC79: 0 | AD79: 0 | AE79: 0 | AF79: 0 | AG79: 0 | AH79: 澎湖縣 | AI79: 0 | AJ79: 127307 | AK79: 0 | AL79: 0 | AM79: 0 | AN79: 127307 | AO79: 0
A80: 基隆市 | B80: 3898160 | C80: 271657 | D80: 47187 | E80: 7105 | F80: 176733 | G80: 35226 | H80: 5406 | I80: 基隆市 | J80: 1342167 | K80: 1247693 | L80: 0 | M80: 94474 | N80: 1929528 | O80: 67318 | P80: 534080 | Q80: 877799 | R80: 基隆市 | S80: 450331 | T80: 67101 | U80: 0 | V80: 0 | W80: 43506 | X80: 0 | Y80: 23595 | Z80: 基隆市 | AA80: 72207 | AB80: 71907 | AC80: 300 | AD80: 0 | AE80: 0 | AF80: 0 | AG80: 0 | AH80: 基隆市 | AI80: 0 | AJ80: 215500 | AK80: 0 | AL80: 0 | AM80: 0 | AN80: 215500 | AO80: 0
A81: 新竹市 | B81: 5313177 | C81: 368684 | D81: 14165 | E81: 6277 | F81: 163765 | G81: 175924 | H81: 8553 | I81: 新竹市 | J81: 2594313 | K81: 1916877 | L81: 0 | M81: 677436 | N81: 1537511 | O81: 169112 | P81: 235725 | Q81: 833080 | R81: 新竹市 | S81: 299594 | T81: 64752 | U81: 0 | V81: 0 | W81: 39278 | X81: 200 | Y81: 25274 | Z81: 新竹市 | AA81: 327917 | AB81: 323930 | AC81: 3987 | AD81: 0 | AE81: 0 | AF81: 0 | AG81: 0 | AH81: 新竹市 | AI81: 0 | AJ81: 420000 | AK81: 0 | AL81: 0 | AM81: 0 | AN81: 260000 | AO81: 160000
A82: 嘉義市 | B82: 3282056 | C82: 387184 | D82: 50990 | E82: 2100 | F82: 190013 | G82: 109049 | H82: 35032 | I82: 嘉義市 | J82: 639220 | K82: 517298 | L82: 0 | M82: 121922 | N82: 1843106 | O82: 0 | P82: 0 | Q82: 1603179 | R82: 嘉義市 | S82: 239927 | T82: 53480 | U82: 0 | V82: 0 | W82: 16320 | X82: 0 | Y82: 37160 | Z82: 嘉義市 | AA82: 249066 | AB82: 249066 | AC82: 0 | AD82: 0 | AE82: 0 | AF82: 0 | AG82: 0 | AH82: 嘉義市 | AI82: 0 | AJ82: 110000 | AK82: 0 | AL82: 0 | AM82: 0 | AN82: 110000 | AO82: 0
A83: 金門縣 | B83: 4348489 | C83: 76754 | D83: 17252 | E83: 12142 | F83: 24380 | G83: 22905 | H83: 75 | I83: 金門縣 | J83: 841863 | K83: 630970 | L83: 0 | M83: 210893 | N83: 2627111 | O83: 454878 | P83: 63300 | Q83: 1840771 | R83: 金門縣 | S83: 268162 | T83: 178786 | U83: 0 | V83: 0 | W83: 157829 | X83: 0 | Y83: 20957 | Z83: 金門縣 | AA83: 458060 | AB83: 453060 | AC83: 5000 | AD83: 0 | AE83: 0 | AF83: 0 | AG83: 0 | AH83: 金門縣 | AI83: 0 | AJ83: 165915 | AK83: 0 | AL83: 47915 | AM83: 0 | AN83: 118000 | AO83: 0
A84: 連江縣 | B84: 2066244 | C84: 67929 | D84: 30463 | E84: 2183 | F84: 30573 | G84: 3752 | H84: 958 | I84: 連江縣 | J84: 502779 | K84: 258571 | L84: 0 | M84: 244208 | N84: 1401213 | O84: 212884 | P84: 0 | Q84: 596824 | R84: 連江縣 | S84: 591505 | T84: 22082 | U84: 0 | V84: 0 | W84: 800 | X84: 0 | Y84: 21282 | Z84: 連江縣 | AA84: 11811 | AB84: 11811 | AC84: 0 | AD84: 0 | AE84: 0 | AF84: 0 | AG84: 0 | AH84: 連江縣 | AI84: 0 | AJ84: 60430 | AK84: 3000 | AL84: 0 | AM84: 0 | AN84: 47430 | AO84: 10000

Sheet 機關別
D1: 各直轄市及縣 | E1: (市)總預算 | K1: 各直轄市及縣 | L1: (市)總預算 | R1: 各直轄市及縣 | S1: (市)總預算
D2: 歲出機關別 | E2: 預算總表 | K2: 歲出機關別 | L2: 預算總表 | N2: (續一) | R2: 歲出機關別 | S2: 預算總表 | V2: (續二)
D3: 中華民國 | E3: =簡明總!#REF! ->  | G3: 單位：新臺幣千元 | K3: 中華民國 | L3: =$E$3 ->  | N3: 單位：新臺幣千元 | R3: 中華民國 | S3: =$E$3 ->  | V3: 單位：新臺幣千元
A4: 主管別 市縣別 | B4: 合 計 | C4: 縣(市)議會主管 | D4: 縣(市)政府主管 | E4: 行政(管理)處 、新聞（局）處主管 | F4: 民政局(處)主管 | G4: 教育局(處)主管 | H4: 主管別 市縣別 | I4: 農(產)(經濟)業(發展)、漁業局(處)主管 | J4: 社會(勞工)局(處)主管 | K4: 地政局(處)主管 | L4: 稅捐稽徵處((地方、財政)稅務局)主管 | M4: 警察局主管 | N4: 消防局主管 | O4: 主管別 市縣別 | P4: 環境保護局主管 | Q4: 衛生局主管 | R4: 文化(觀光)(傳播)局(處)主管 | S4: 其他局(處)主管 | T4: 統籌支撥科目(其他支出) | U4: 調整公務員工待遇準備 | V4: 第二預備金
C5: 1 | D5: 2 | E5: 3 | F5: 4 | G5: 5 | I5: 6 | J5: 7 | K5: 8 | L5: 9 | M5: 10 | N5: 11 | P5: 12 | Q5: 13 | R5: 14 | S5: 15 | T5: 16 | U5: 17 | V5: 18
A6: 總 計 | B6: 1324656276 | C6: 7931275 | D6: 335848002 | E6: 504773 | F6: 21585510 | G6: 307594007 | H6: 總 計 | I6: 26703421 | J6: 124922870 | K6: 11716432 | L6: 17477564 | M6: 95579302 | N6: 27962036 | O6: 總 計 | P6: 43944776 | Q6: 52957280 | R6: 27768477 | S6: 157832382 | T6: 59852169 | U6: 0 | V6: 4476000
A7: 直轄市合計 | B7: 903833715 | C7: 4494355 | D7: 41204857 | E7: 465561 | F7: 17466807 | G7: 307087669 | H7: 直轄市合計 | I7: 23971802 | J7: 120437242 | K7: 8155543 | L7: 13501694 | M7: 63983293 | N7: 17827572 | O7: 直轄市合計 | P7: 35692409 | Q7: 31799220 | R7: 21646315 | S7: 156043622 | T7: 37215754 | U7: 0 | V7: 2840000
A8: 新北市 | B8: 186482841 | C8: 698667 | D8: 11929966 | E8: 0 | F8: 2938828 | G8: 62173714 | H8: 新北市 | I8: 3308772 | J8: 26951082 | K8: 1447020 | L8: 3585140 | M8: 12079369 | N8: 3870453 | O8: 新北市 | P8: 8758652 | Q8: 7238609 | R8: 3181072 | S8: 30512872 | T8: 7408625 | U8: 0 | V8: 400000
A9: 臺北市 | B9: 171583466 | C9: 858946 | D9: 4774642 | E9: 0 | F9: 3222004 | G9: 56493871 | H9: 臺北市 | I9: 4664074 | J9: 21164596 | K9: 1239238 | L9: 2517419 | M9: 14090012 | N9: 3350620 | O9: 臺北市 | P9: 6968592 | Q9: 5433427 | R9: 4997386 | S9: 33140783 | T9: 7927856 | U9: 0 | V9: 740000
A10: 桃園市 | B10: 141051000 | C10: 675773 | D10: 8753681 | E10: 0 | F10: 1419457 | G10: 47306027 | H10: 桃園市 | I10: 3398471 | J10: 19402868 | K10: 1373393 | L10: 1167891 | M10: 9100235 | N10: 2935098 | O10: 桃園市 | P10: 6316099 | Q10: 2345675 | R10: 6056309 | S10: 27182960 | T10: 3217063 | U10: 0 | V10: 400000
A11: 臺中市 | B11: 151200912 | C11: 798040 | D11: 7772387 | E11: 283065 | F11: 2006826 | G11: 54062753 | H11: 臺中市 | I11: 3239563 | J11: 18640595 | K11: 1362463 | L11: 1925675 | M11: 10646884 | N11: 2823491 | O11: 臺中市 | P11: 5837541 | Q11: 7063677 | R11: 2059208 | S11: 26836051 | T11: 5342693 | U11: 0 | V11: 500000
A12: 臺南市 | B12: 102065814 | C12: 683452 | D12: 1050381 | E12: 0 | F12: 6035049 | G12: 35205355 | H12: 臺南市 | I12: 4900237 | J12: 14633626 | K12: 1593502 | L12: 1190994 | M12: 7190196 | N12: 1957914 | O12: 臺南市 | P12: 3255223 | Q12: 1416291 | R12: 2486711 | S12: 15244774 | T12: 4822109 | U12: 0 | V12: 400000
A13: 高雄市 | B13: 151449682 | C13: 779477 | D13: 6923800 | E13: 182496 | F13: 1844643 | G13: 51845949 | H13: 高雄市 | I13: 4460685 | J13: 19644475 | K13: 1139927 | L13: 3114575 | M13: 10876597 | N13: 2889996 | O13: 高雄市 | P13: 4556302 | Q13: 8301541 | R13: 2865629 | S13: 23126182 | T13: 8497408 | U13: 0 | V13: 400000
A14: 縣市合計 | B14: 420822561 | C14: 3436920 | D14: 294643145 | E14: 39212 | F14: 4118703 | G14: 506338 | H14: 縣市合計 | I14: 2731619 | J14: 4485628 | K14: 3560889 | L14: 3975870 | M14: 31596009 | N14: 10134464 | O14: 縣市合計 | P14: 8252367 | Q14: 21158060 | R14: 6122162 | S14: 1788760 | T14: 22636415 | U14: 0 | V14: 1636000
A15: 宜蘭縣 | B15: 26653640 | C15: 192709 | D15: 18954664 | E15: 0 | F15: 418564 | G15: 69188 | H15: 宜蘭縣 | I15: 208644 | J15: 0 | K15: 230288 | L15: 364376 | M15: 1989386 | N15: 518473 | O15: 宜蘭縣 | P15: 464560 | Q15: 1582119 | R15: 536212 | S15: 0 | T15: 1044457 | U15: 0 | V15: 80000
A16: 新竹縣 | B16: 32360287 | C16: 220270 | D16: 25528271 | E16: 0 | F16: 131902 | G16: 84617 | H16: 新竹縣 | I16: 54058 | J16: 0 | K16: 281093 | L16: 188478 | M16: 1851170 | N16: 744160 | O16: 新竹縣 | P16: 591577 | Q16: 708069 | R16: 483399 | S16: 0 | T16: 1093223 | U16: 0 | V16: 400000
A17: 苗栗縣 | B17: 21566773 | C17: 220376 | D17: 14498273 | E17: 17123 | F17: 188483 | G17: 16625 | H17: 苗栗縣 | I17: 37001 | J17: 0 | K17: 378541 | L17: 214556 | M17: 2119606 | N17: 846962 | O17: 苗栗縣 | P17: 201174 | Q17: 1142817 | R17: 247994 | S17: 260154 | T17: 1127088 | U17: 0 | V17: 50000
A18: 彰化縣 | B18: 56604393 | C18: 296924 | D18: 42172332 | E18: 0 | F18: 352682 | G18: 0 | H18: 彰化縣 | I18: 110907 | J18: 0 | K18: 517695 | L18: 368459 | M18: 4454840 | N18: 1124737 | O18: 彰化縣 | P18: 329825 | Q18: 4036750 | R18: 394045 | S18: 0 | T18: 2345197 | U18: 0 | V18: 100000
A19: 南投縣 | B19: 28905000 | C19: 259024 | D19: 19410454 | E19: 0 | F19: 182135 | G19: 0 | H19: 南投縣 | I19: 59794 | J19: 0 | K19: 287114 | L19: 212821 | M19: 2504822 | N19: 742994 | O19: 南投縣 | P19: 366645 | Q19: 886507 | R19: 236004 | S19: 260213 | T19: 3266473 | U19: 0 | V19: 230000
A20: 雲林縣 | B20: 37307792 | C20: 244976 | D20: 29000566 | E20: 0 | F20: 0 | G20: 18886 | H20: 雲林縣 | I20: 89289 | J20: 0 | K20: 351310 | L20: 248406 | M20: 2469925 | N20: 730029 | O20: 雲林縣 | P20: 374764 | Q20: 2126888 | R20: 0 | S20: 0 | T20: 1572753 | U20: 0 | V20: 80000
A21: 嘉義縣 | B21: 28353197 | C21: 240256 | D21: 16169650 | E21: 0 | F21: 170611 | G21: 0 | H21: 嘉義縣 | I21: 80662 | J21: 4407799 | K21: 285109 | L21: 613824 | M21: 2280077 | N21: 818934 | O21: 嘉義縣 | P21: 191327 | Q21: 1070051 | R21: 366028 | S21: 19155 | T21: 1559714 | U21: 0 | V21: 80000
A22: 屏東縣 | B22: 47117000 | C22: 330213 | D22: 33688852 | E22: 0 | F22: 308677 | G22: 0 | H22: 屏東縣 | I22: 849900 | J22: 0 | K22: 390679 | L22: 649468 | M22: 3240380 | N22: 1083572 | O22: 屏東縣 | P22: 676591 | Q22: 3373335 | R22: 198761 | S22: 0 | T22: 2266572 | U22: 0 | V22: 60000
A23: 臺東縣 | B23: 20846011 | C23: 203681 | D23: 14355796 | E23: 0 | F23: 141348 | G23: 57219 | H23: 臺東縣 | I23: 35782 | J23: 0 | K23: 165145 | L23: 112263 | M23: 1564078 | N23: 568465 | O23: 臺東縣 | P23: 513224 | Q23: 1442990 | R23: 0 | S23: 0 | T23: 1626020 | U23: 0 | V23: 60000
A24: 花蓮縣 | B24: 26256716 | C24: 226088 | D24: 18279929 | E24: 0 | F24: 145102 | G24: 40261 | H24: 花蓮縣 | I24: 73457 | J24: 0 | K24: 197417 | L24: 155524 | M24: 1999585 | N24: 699993 | O24: 花蓮縣 | P24: 502829 | Q24: 754388 | R24: 350210 | S24: 0 | T24: 2771933 | U24: 0 | V24: 60000
A25: 澎湖縣 | B25: 12701162 | C25: 157221 | D25: 8205979 | E25: 0 | F25: 0 | G25: 0 | H25: 澎湖縣 | I25: 472808 | J25: 0 | K25: 0 | L25: 141831 | M25: 1365410 | N25: 386170 | O25: 澎湖縣 | P25: 395944 | Q25: 623263 | R25: 262071 | S25: 0 | T25: 643465 | U25: 0 | V25: 47000
A26: 基隆市 | B26: 21154599 | C26: 209812 | D26: 14808693 | E26: 0 | F26: 892510 | G26: 28730 | H26: 基隆市 | I26: 39191 | J26: 0 | K26: 108509 | L26: 181531 | M26: 1779347 | N26: 457457 | O26: 基隆市 | P26: 887415 | Q26: 444605 | R26: 287843 | S26: 0 | T26: 1001956 | U26: 0 | V26: 27000
A27: 新竹市 | B27: 25615303 | C27: 206625 | D27: 17692059 | E27: 0 | F27: 586743 | G27: 45689 | H27: 新竹市 | I27: 70655 | J27: 0 | K27: 118056 | L27: 199032 | M27: 1648777 | N27: 496465 | O27: 新竹市 | P27: 1040603 | Q27: 1054714 | R27: 1052093 | S27: 0 | T27: 1108792 | U27: 0 | V27: 295000
A28: 嘉義市 | B28: 16622292 | C28: 173787 | D28: 10781199 | E28: 0 | F28: 488465 | G28: 51206 | H28: 嘉義市 | I28: 0 | J28: 0 | K28: 97113 | L28: 245102 | M28: 1430486 | N28: 491744 | O28: 嘉義市 | P28: 972159 | Q28: 825227 | R28: 351065 | S28: 0 | T28: 699739 | U28: 0 | V28: 15000
A29: 金門縣 | B29: 13934761 | C29: 189197 | D29: 8782556 | E29: 22089 | F29: 93379 | G29: 93917 | H29: 金門縣 | I29: 549471 | J29: 77829 | K29: 119508 | L29: 46919 | M29: 715971 | N29: 315135 | O29: 金門縣 | P29: 308425 | Q29: 672501 | R29: 1356437 | S29: 151099 | T29: 403328 | U29: 0 | V29: 37000
A30: 連江縣 | B30: 4823635 | C30: 65761 | D30: 2313872 | E30: 0 | F30: 18102 | G30: 0 | H30: 連江縣 | I30: 0 | J30: 0 | K30: 33312 | L30: 33280 | M30: 182149 | N30: 109174 | O30: 連江縣 | P30: 435305 | Q30: 413836 | R30: 0 | S30: 1098139 | T30: 105705 | U30: 0 | V30: 15000

Sheet 用途別
D1: 各直轄市及縣 | E1: (市)總預算 | L1: 各直轄市及縣 | M1: (市)總預算
D2: 歲 出 一 級 用 途 別 | E2: 科 目 分 析 總 表 | L2: 歲 出 一 級 用 途 別 | M2: 科 目 分 析 總 表 | O2: （續一）
D3: 中 華 民 國 | E3: =簡明總!E3 -> 111 年 度 | H3: 單位：新臺幣千元 | L3: 中 華 民 國 | M3: =E3 -> 111 年 度 | O3: 單位：新臺幣千元
A4: 市縣別 | B4: 合 計 | D4: 經常支出 | I4: 市縣別 | K4: 資本支出
C5: 人事費 | D5: 業務費 | E5: 獎補助費 | F5: 債務費 | G5: 預備金 | H5: 小計 | J5: 人事費 | K5: 業務費 | L5: 設備及投資 | M5: 獎補助費 | N5: 預備金 | O5: 小計
A6: 總 計 | B6: 1324656276 | C6: 242617861 | D6: 117573256 | E6: 673676029 | F6: 7868213 | G6: 5970012 | H6: 1047705371 | I6: 總 計 | J6: 0 | K6: 864300 | L6: 190336582 | M6: 72981941 | N6: 12768082 | O6: 276950905
A7: 直轄市合計 | B7: 903833715 | C7: 168424734 | D7: 82706949 | E7: 456510728 | F7: 5550113 | G7: 4309531 | H7: 717502055 | I7: 直轄市合計 | J7: 0 | K7: 125355 | L7: 135864908 | M7: 42030230 | N7: 8311167 | O7: 186331660
A8: 新北市 | B8: 186482841 | C8: 31409842 | D8: 19940179 | E8: 96317849 | F8: 1036000 | G8: 1114348 | H8: 149818218 | I8: 新北市 | J8: 0 | K8: 351 | L8: 26540769 | M8: 8623503 | N8: 1500000 | O8: 36664623
A9: 臺北市 | B9: 171583466 | C9: 39388862 | D9: 15430376 | E9: 81729310 | F9: 597287 | G9: 1397732 | H9: 138543567 | I9: 臺北市 | J9: 0 | K9: 0 | L9: 24179541 | M9: 7590358 | N9: 1270000 | O9: 33039899
A10: 桃園市 | B10: 141051000 | C10: 20749875 | D10: 14683950 | E10: 66127117 | F10: 394555 | G10: 400000 | H10: 102355497 | I10: 桃園市 | J10: 0 | K10: 61550 | L10: 28141459 | M10: 9073494 | N10: 1419000 | O10: 38695503
A11: 臺中市 | B11: 151200912 | C11: 26343263 | D11: 12618482 | E11: 81841141 | F11: 870000 | G11: 542208 | H11: 122215094 | I11: 臺中市 | J11: 0 | K11: 5100 | L11: 22942743 | M11: 4467975 | N11: 1570000 | O11: 28985818
A12: 臺南市 | B12: 102065814 | C12: 19820919 | D12: 9589142 | E12: 48327675 | F12: 516000 | G12: 550860 | H12: 78804596 | I12: 臺南市 | J12: 0 | K12: 58354 | L12: 17198961 | M12: 5081903 | N12: 922000 | O12: 23261218
A13: 高雄市 | B13: 151449682 | C13: 30711973 | D13: 10444820 | E13: 82167636 | F13: 2136271 | G13: 304383 | H13: 125765083 | I13: 高雄市 | J13: 0 | K13: 0 | L13: 16861435 | M13: 7192997 | N13: 1630167 | O13: 25684599
A14: 縣市合計 | B14: 420822561 | C14: 74193127 | D14: 34866307 | E14: 217165301 | F14: 2318100 | G14: 1660481 | H14: 330203316 | I14: 縣市合計 | J14: 0 | K14: 738945 | L14: 54471674 | M14: 30951711 | N14: 4456915 | O14: 90619245
A15: 宜蘭縣 | B15: 26653640 | C15: 4491454 | D15: 2374654 | E15: 14843046 | F15: 146410 | G15: 80000 | H15: 21935564 | I15: 宜蘭縣 | J15: 0 | K15: 0 | L15: 2957379 | M15: 1494153 | N15: 266544 | O15: 4718076
A16: 新竹縣 | B16: 32360287 | C16: 4192931 | D16: 2184722 | E16: 17219807 | F16: 200000 | G16: 412099 | H16: 24209559 | I16: 新竹縣 | J16: 0 | K16: 11040 | L16: 3255402 | M16: 4560636 | N16: 323650 | O16: 8150728
A17: 苗栗縣 | B17: 21566773 | C17: 5003548 | D17: 1180419 | E17: 11997714 | F17: 500000 | G17: 50000 | H17: 18731681 | I17: 苗栗縣 | J17: 0 | K17: 21705 | L17: 2128007 | M17: 469630 | N17: 215750 | O17: 2835092
A18: 彰化縣 | B18: 56604393 | C18: 9022221 | D18: 2916964 | E18: 32279643 | F18: 368856 | G18: 197000 | H18: 44784684 | I18: 彰化縣 | J18: 0 | K18: 34659 | L18: 6512696 | M18: 4772354 | N18: 500000 | O18: 11819709
A19: 南投縣 | B19: 28905000 | C19: 5376204 | D19: 1849860 | E19: 16050803 | F19: 94357 | G19: 230000 | H19: 23601224 | I19: 南投縣 | J19: 0 | K19: 0 | L19: 3855572 | M19: 1159154 | N19: 289050 | O19: 5303776
A20: 雲林縣 | B20: 37307792 | C20: 5754844 | D20: 2212788 | E20: 20495499 | F20: 176837 | G20: 13959 | H20: 28653927 | I20: 雲林縣 | J20: 0 | K20: 74535 | L20: 5284433 | M20: 2841819 | N20: 453078 | O20: 8653865
A21: 嘉義縣 | B21: 28353197 | C21: 5532114 | D21: 2581630 | E21: 13457107 | F21: 250000 | G21: 6439 | H21: 21827290 | I21: 嘉義縣 | J21: 0 | K21: 401721 | L21: 4417376 | M21: 1343210 | N21: 363600 | O21: 6525907
A22: 屏東縣 | B22: 47117000 | C22: 7933051 | D22: 3077494 | E22: 25119332 | F22: 150000 | G22: 75000 | H22: 36354877 | I22: 屏東縣 | J22: 0 | K22: 0 | L22: 6921388 | M22: 3366729 | N22: 474006 | O22: 10762123
A23: 臺東縣 | B23: 20846011 | C23: 4291720 | D23: 2467954 | E23: 10312518 | F23: 100000 | G23: 40000 | H23: 17212192 | I23: 臺東縣 | J23: 0 | K23: 0 | L23: 1423778 | M23: 1940041 | N23: 270000 | O23: 3633819
A24: 花蓮縣 | B24: 26256716 | C24: 4288986 | D24: 2663709 | E24: 13329560 | F24: 127200 | G24: 77200 | H24: 20486655 | I24: 花蓮縣 | J24: 0 | K24: 23908 | L24: 3034255 | M24: 2458898 | N24: 253000 | O24: 5770061
A25: 澎湖縣 | B25: 12701162 | C25: 2837705 | D25: 1503979 | E25: 4741775 | F25: 16740 | G25: 63000 | H25: 9163199 | I25: 澎湖縣 | J25: 0 | K25: 109782 | L25: 2431030 | M25: 869844 | N25: 127307 | O25: 3537963
A26: 基隆市 | B26: 21154599 | C26: 4812967 | D26: 2230846 | E26: 10109126 | F26: 60000 | G26: 43500 | H26: 17256439 | I26: 基隆市 | J26: 0 | K26: 27505 | L26: 2321179 | M26: 1333976 | N26: 215500 | O26: 3898160
A27: 新竹市 | B27: 25615303 | C27: 4162004 | D27: 2821457 | E27: 13044795 | F27: 120000 | G27: 153870 | H27: 20302126 | I27: 新竹市 | J27: 0 | K27: 0 | L27: 2836496 | M27: 2056681 | N27: 420000 | O27: 5313177
A28: 嘉義市 | B28: 16622292 | C28: 3535539 | D28: 1898760 | E28: 7811837 | F28: 7100 | G28: 87000 | H28: 13340236 | I28: 嘉義市 | J28: 0 | K28: 34090 | L28: 2439637 | M28: 698329 | N28: 110000 | O28: 3282056
A29: 金門縣 | B29: 13934761 | C29: 2232641 | D29: 2206784 | E29: 5026735 | F29: 0 | G29: 120112 | H29: 9586272 | I29: 金門縣 | J29: 0 | K29: 0 | L29: 2938381 | M29: 1292108 | N29: 118000 | O29: 4348489
A30: 連江縣 | B30: 4823635 | C30: 725198 | D30: 694287 | E30: 1326004 | F30: 600 | G30: 11302 | H30: 2757391 | I30: 連江縣 | J30: 0 | K30: 0 | L30: 1714665 | M30: 294149 | N30: 57430 | O30: 2066244

Sheet 資本支出
F1: 各直轄市及縣 | G1: (市)總預算
F2: 資 本 支 出 | G2: 分 析 總 表
F3: 中 華 民 國 | G3: =簡明總!E3 -> 111 年 度 | L3: 單位：新臺幣千元
A4: 市縣別 | B4: 合 計 | C4: 設 備 及 投 資 | L4: 其他資本支出
C5: 土地 | D5: 房屋建築 及設備 | E5: 公共建設 及設施 | F5: 機械設備 | G5: 運輸設備 | H5: 資訊軟硬 體設備 | I5: 雜項設備 | J5: 權利 | K5: 投資
A7: 總 計 | B7: 276950905 | C7: 11907893 | D7: 23886585 | E7: 119068558 | F7: 1798933 | G7: 4096599 | H7: 2835328 | I7: 4191745 | J7: 16 | K7: 22550925 | L7: 86614323
A8: 直轄市合計 | B8: 186331660 | C8: 9780450 | D8: 17767840 | E8: 78237162 | F8: 1210339 | G8: 2338086 | H8: 2062445 | I8: 2708093 | J8: 16 | K8: 21760477 | L8: 50466752
A9: 新北市 | B9: 36664623 | C9: 0 | D9: 1918454 | E9: 13821572 | F9: 73408 | G9: 438719 | H9: 521981 | I9: 579847 | J9: 0 | K9: 9186788 | L9: 10123854
A10: 臺北市 | B10: 33039899 | C10: 2320082 | D10: 5731053 | E10: 11632602 | F10: 240743 | G10: 242458 | H10: 506899 | I10: 475006 | J10: 0 | K10: 3030698 | L10: 8860358
A11: 桃園市 | B11: 38695503 | C11: 2040856 | D11: 5487187 | E11: 10982280 | F11: 276965 | G11: 437913 | H11: 461749 | I11: 434309 | J11: 0 | K11: 8020200 | L11: 10554044
A12: 臺中市 | B12: 28985818 | C12: 3520823 | D12: 2531525 | E12: 14221089 | F12: 351852 | G12: 357090 | H12: 216959 | I12: 414360 | J12: 16 | K12: 1329029 | L12: 6043075
A13: 臺南市 | B13: 23261218 | C13: 751490 | D13: 1510123 | E13: 14130482 | F13: 98417 | G13: 177482 | H13: 194111 | I13: 335856 | J13: 0 | K13: 1000 | L13: 6062257
A14: 高雄市 | B14: 25684599 | C14: 1147199 | D14: 589498 | E14: 13449137 | F14: 168954 | G14: 684424 | H14: 160746 | I14: 468715 | J14: 0 | K14: 192762 | L14: 8823164
A15: 縣市合計 | B15: 90619245 | C15: 2127443 | D15: 6118745 | E15: 40831396 | F15: 588594 | G15: 1758513 | H15: 772883 | I15: 1483652 | J15: 0 | K15: 790448 | L15: 36147571
A16: 宜蘭縣 | B16: 4718076 | C16: 4717 | D16: 122892 | E16: 2679043 | F16: 13072 | G16: 41791 | H16: 45214 | I16: 50650 | J16: 0 | K16: 0 | L16: 1760697
A17: 新竹縣 | B17: 8150728 | C17: 5964 | D17: 469761 | E17: 2433968 | F17: 48833 | G17: 156597 | H17: 38090 | I17: 102189 | J17: 0 | K17: 0 | L17: 4895326
A18: 苗栗縣 | B18: 2835092 | C18: 8000 | D18: 70886 | E18: 1798171 | F18: 5313 | G18: 103718 | H18: 58316 | I18: 83603 | J18: 0 | K18: 0 | L18: 707085
A19: 彰化縣 | B19: 11819709 | C19: 629426 | D19: 530023 | E19: 4427274 | F19: 26835 | G19: 187415 | H19: 46332 | I19: 154307 | J19: 0 | K19: 511084 | L19: 5307013
A20: 南投縣 | B20: 5303776 | C20: 0 | D20: 291677 | E20: 3336486 | F20: 38497 | G20: 75467 | H20: 44010 | I20: 69435 | J20: 0 | K20: 0 | L20: 1448204
A21: 雲林縣 | B21: 8653865 | C21: 25345 | D21: 240910 | E21: 4542425 | F21: 104195 | G21: 59794 | H21: 31586 | I21: 210178 | J21: 0 | K21: 70000 | L21: 3369432
A22: 嘉義縣 | B22: 6525907 | C22: 266392 | D22: 252841 | E22: 3583270 | F22: 63897 | G22: 90576 | H22: 83058 | I22: 61702 | J22: 0 | K22: 15640 | L22: 2108531
A23: 屏東縣 | B23: 10762123 | C23: 460000 | D23: 1605329 | E23: 4449125 | F23: 62192 | G23: 98194 | H23: 64841 | I23: 181707 | J23: 0 | K23: 0 | L23: 3840735
A24: 臺東縣 | B24: 3633819 | C24: 10250 | D24: 384750 | E24: 816588 | F24: 22162 | G24: 76223 | H24: 48877 | I24: 64928 | J24: 0 | K24: 0 | L24: 2210041
A25: 花蓮縣 | B25: 5770061 | C25: 225804 | D25: 465492 | E25: 2107275 | F25: 70791 | G25: 21993 | H25: 35932 | I25: 106968 | J25: 0 | K25: 0 | L25: 2735806
A26: 澎湖縣 | B26: 3537963 | C26: 0 | D26: 255302 | E26: 1994055 | F26: 16747 | G26: 59223 | H26: 20991 | I26: 41655 | J26: 0 | K26: 43057 | L26: 1106933
A27: 基隆市 | B27: 3898160 | C27: 64176 | D27: 114144 | E27: 1779832 | F27: 20773 | G27: 67472 | H27: 66088 | I27: 108027 | J27: 0 | K27: 100667 | L27: 1576981
A28: 新竹市 | B28: 5313177 | C28: 54100 | D28: 759134 | E28: 1687826 | F28: 62979 | G28: 87739 | H28: 54065 | I28: 130653 | J28: 0 | K28: 0 | L28: 2476681
A29: 嘉義市 | B29: 3282056 | C29: 212500 | D29: 324680 | E29: 1650669 | F29: 8041 | G29: 63332 | H29: 108322 | I29: 72093 | J29: 0 | K29: 0 | L29: 842419
A30: 金門縣 | B30: 4348489 | C30: 157714 | D30: 196739 | E30: 2435061 | F30: 23895 | G30: 12053 | H30: 23504 | I30: 39415 | J30: 0 | K30: 50000 | L30: 1410108
A31: 連江縣 | B31: 2066244 | C31: 3055 | D31: 34185 | E31: 1110328 | F31: 372 | G31: 556926 | H31: 3657 | I31: 6142 | J31: 0 | K31: 0 | L31: 351579

Sheet 人事費-員額
F1: 各直轄市及縣 | G1: (市) 總預算
F2: 歲 出 人 事 | G2: 費 彙 計 表
F3: 中 華 民 國 | G3: =簡明總!E3 -> 111 年 度 | L3: 單位：人
B4: 預 算 | H4: 員 | J4: 額 | L4: 退休人員
A5: 市縣別 | B5: 民意代表 | C5: 職 | F5: 員 | H5: 技工 | I5: 駕 駛 | J5: 工友 | K5: 合 計
C6: 正 式 員 額 | F6: 臨時 編制 | G6: 約聘(僱) 人員
C7: 職員 | D7: 警察人員 | E7: 消防人員
A8: 總 計 | B8: 908 | C8: 72943 | D8: 57711 | E8: 16297 | F8: 4 | G8: 14198 | H8: 27123 | I8: 4442 | J8: 4463 | K8: 198089 | L8: 70124
A9: 直轄市合計 | B9: 378 | C9: 52867 | D9: 38172 | E9: 10340 | F9: 4 | G9: 9378 | H9: 24523 | I9: 3741 | J9: 2804 | K9: 142207 | L9: 43934
A10: 新北市 | B10: 66 | C10: 9846 | D10: 7632 | E10: 2456 | F10: 0 | G10: 2028 | H10: 5789 | I10: 24 | J10: 343 | K10: 28184 | L10: 5242
A11: 臺北市 | B11: 61 | C11: 13068 | D11: 7800 | E11: 1757 | F11: 4 | G11: 1999 | H11: 6917 | I11: 1436 | J11: 766 | K11: 33808 | L11: 11025
A12: 桃園市 | B12: 64 | C12: 6709 | D12: 4841 | E12: 1710 | F12: 0 | G12: 1560 | H12: 1797 | I12: 1218 | J12: 165 | K12: 18064 | L12: 3888
A13: 臺中市 | B13: 65 | C13: 7755 | D13: 6559 | E13: 1746 | F13: 0 | G13: 1228 | H13: 3146 | I13: 56 | J13: 357 | K13: 20912 | L13: 6090
A14: 臺南市 | B14: 57 | C14: 6260 | D14: 4242 | E14: 1137 | F14: 0 | G14: 1151 | H14: 2424 | I14: 53 | J14: 396 | K14: 15720 | L14: 6200
A15: 高雄市 | B15: 65 | C15: 9229 | D15: 7098 | E15: 1534 | F15: 0 | G15: 1412 | H15: 4450 | I15: 954 | J15: 777 | K15: 25519 | L15: 11489
A16: 縣市合計 | B16: 530 | C16: 20076 | D16: 19539 | E16: 5957 | F16: 0 | G16: 4820 | H16: 2600 | I16: 701 | J16: 1659 | K16: 55882 | L16: 26190
A17: 宜蘭縣 | B17: 34 | C17: 1271 | D17: 1334 | E17: 338 | F17: 0 | G17: 372 | H17: 102 | I17: 34 | J17: 119 | K17: 3604 | L17: 1653
A18: 新竹縣 | B18: 36 | C18: 1243 | D18: 1127 | E18: 402 | F18: 0 | G18: 386 | H18: 135 | I18: 27 | J18: 143 | K18: 3499 | L18: 1043
A19: 苗栗縣 | B19: 38 | C19: 1472 | D19: 1288 | E19: 600 | F19: 0 | G19: 198 | H19: 191 | I19: 25 | J19: 162 | K19: 3974 | L19: 1957
A20: 彰化縣 | B20: 53 | C20: 2167 | D20: 2891 | E20: 758 | F20: 0 | G20: 453 | H20: 200 | I20: 23 | J20: 145 | K20: 6690 | L20: 2986
A21: 南投縣 | B21: 37 | C21: 1398 | D21: 1450 | E21: 439 | F21: 0 | G21: 320 | H21: 114 | I21: 26 | J21: 80 | K21: 3864 | L21: 1898
A22: 雲林縣 | B22: 43 | C22: 1684 | D22: 1590 | E22: 477 | F22: 0 | G22: 337 | H22: 163 | I22: 32 | J22: 153 | K22: 4479 | L22: 2389
A23: 嘉義縣 | B23: 37 | C23: 1513 | D23: 1348 | E23: 414 | F23: 0 | G23: 235 | H23: 112 | I23: 14 | J23: 107 | K23: 3780 | L23: 2221
A24: 屏東縣 | B24: 55 | C24: 2089 | D24: 1986 | E24: 601 | F24: 0 | G24: 608 | H24: 128 | I24: 23 | J24: 178 | K24: 5668 | L24: 3125
A25: 臺東縣 | B25: 30 | C25: 1108 | D25: 1059 | E25: 353 | F25: 0 | G25: 236 | H25: 90 | I25: 25 | J25: 88 | K25: 2989 | L25: 1861
A26: 花蓮縣 | B26: 33 | C26: 1237 | D26: 1295 | E26: 373 | F26: 0 | G26: 235 | H26: 91 | I26: 11 | J26: 81 | K26: 3356 | L26: 1591
A27: 澎湖縣 | B27: 19 | C27: 654 | D27: 751 | E27: 184 | F27: 0 | G27: 108 | H27: 31 | I27: 14 | J27: 49 | K27: 1810 | L27: 672
A28: 基隆市 | B28: 31 | C28: 1341 | D28: 1185 | E28: 266 | F28: 0 | G28: 440 | H28: 560 | I28: 87 | J28: 109 | K28: 4019 | L28: 1810
A29: 新竹市 | B29: 34 | C29: 1144 | D29: 996 | E29: 282 | F29: 0 | G29: 293 | H29: 449 | I29: 73 | J29: 79 | K29: 3350 | L29: 1327
A30: 嘉義市 | B30: 23 | C30: 981 | D30: 808 | E30: 273 | F30: 0 | G30: 221 | H30: 71 | I30: 277 | J30: 96 | K30: 2750 | L30: 1149
A31: 金門縣 | B31: 18 | C31: 552 | D31: 344 | E31: 148 | F31: 0 | G31: 297 | H31: 143 | I31: 10 | J31: 57 | K31: 1569 | L31: 391
A32: 連江縣 | B32: 9 | C32: 222 | D32: 87 | E32: 49 | F32: 0 | G32: 81 | H32: 20 | I32: 0 | J32: 13 | K32: 481 | L32: 117

Sheet 人事費彙計
G1: 各直轄市及縣 | H1: (市) 總預算
G2: 歲 出 人 事 | H2: 費 彙 計 表 | N2: （續一）
G3: 中 華 民 國 | H3: =簡明總!E3 -> 111 年 度 | N3: 單位：元
C4: 全 | D4: 年 | F4: 度 | I4: 人 | K4: 事
A5: 市縣別 | B5: 民意代表 待遇 | C5: 政務人員 待遇 | D5: 法定編制人員 待遇 | E5: 約聘僱人員 待遇 | F5: 技工及工友 待遇 | G5: 獎金 | H5: 其他給與 | I5: 加班值班費 | J5: 退休退職給付 | K5: 退休離職儲金 | L5: 保險 | M5: 調待 準備 | N5: 合 計
A7: 總 計 | B7: 2867082264 | C7: 431506070 | D7: 112952424747 | E7: 6968000706 | F7: 14101767132 | G7: 31182082807 | H7: 6443610837 | I7: 19031123707 | J7: 22875217189 | K7: 12512499914 | L7: 13252545134 | M7: 0 | N7: 242617860507
A8: 直轄市合計 | B8: 1781915222 | C8: 286139407 | D8: 77053520865 | E8: 4591484371 | F8: 12036224436 | G8: 22227475934 | H8: 4490321068 | I8: 13305701622 | J8: 14272701899 | K8: 8986828861 | L8: 9392420315 | M8: 0 | N8: 168424734000
A9: 新北市 | B9: 296468400 | C9: 46666404 | D9: 14488576196 | E9: 945630760 | F9: 2276088626 | G9: 4175502898 | H9: 710892534 | I9: 2593735433 | J9: 1745797000 | K9: 2305698703 | L9: 1824785046 | M9: 0 | N9: 31409842000
A10: 臺北市 | B10: 308365824 | C10: 47293434 | D10: 16371691025 | E10: 883138554 | F10: 3642290230 | G10: 5237001703 | H10: 1458475544 | I10: 3230592023 | J10: 4173467899 | K10: 1849604608 | L10: 2186941156 | M10: 0 | N10: 39388862000
A11: 桃園市 | B11: 267020360 | C11: 52253476 | D11: 9803359075 | E11: 961570261 | F11: 1295294326 | G11: 2898214765 | H11: 480722214 | I11: 1686586988 | J11: 1033382000 | K11: 1099396185 | L11: 1172075350 | M11: 0 | N11: 20749875000
A12: 臺中市 | B12: 329703600 | C12: 47743996 | D12: 12876322661 | E12: 585959736 | F12: 1446462515 | G12: 3430595344 | H12: 691147311 | I12: 2135702148 | J12: 2229583000 | K12: 1190598927 | L12: 1379443762 | M12: 0 | N12: 26343263000
A13: 臺南市 | B13: 288277586 | C13: 41558369 | D13: 9582686531 | E13: 540243143 | F13: 1171409551 | G13: 2366160643 | H13: 437533200 | I13: 1449814210 | J13: 1885000000 | K13: 937386138 | L13: 1120849629 | M13: 0 | N13: 19820919000
A14: 高雄市 | B14: 292079452 | C14: 50623728 | D14: 13930885377 | E14: 674941917 | F14: 2204679188 | G14: 4120000581 | H14: 711550265 | I14: 2209270820 | J14: 3205472000 | K14: 1604144300 | L14: 1708325372 | M14: 0 | N14: 30711973000
A15: 縣市合計 | B15: 1085167042 | C15: 145366663 | D15: 35898903882 | E15: 2376516335 | F15: 2065542696 | G15: 8954606873 | H15: 1953289769 | I15: 5725422085 | J15: 8602515290 | K15: 3525671053 | L15: 3860124819 | M15: 0 | N15: 74193126507
A16: 宜蘭縣 | B16: 69897419 | C16: 7979280 | D16: 2184188072 | E16: 183149263 | F16: 100734596 | G16: 583454875 | H16: 107039294 | I16: 382292052 | J16: 389591000 | K16: 240334213 | L16: 242793936 | M16: 0 | N16: 4491454000
A17: 新竹縣 | B17: 75943000 | C17: 4831800 | D17: 1995650660 | E17: 185835260 | F17: 121400966 | G17: 542754945 | H17: 120047904 | I17: 365863787 | J17: 378615000 | K17: 191233728 | L17: 210753950 | M17: 0 | N17: 4192931000
A18: 苗栗縣 | B18: 79479072 | C18: 7558000 | D18: 2436242029 | E18: 91250149 | F18: 150526247 | G18: 597408135 | H18: 134839350 | I18: 453534084 | J18: 553238000 | K18: 243931597 | L18: 255541337 | M18: 0 | N18: 5003548000
A19: 彰化縣 | B19: 117110283 | C19: 5778000 | D19: 4459598000 | E19: 236919592 | F19: 147278000 | G19: 1036750707 | H19: 259815000 | I19: 744158400 | J19: 1206938000 | K19: 400304488 | L19: 407570530 | M19: 0 | N19: 9022221000
A20: 南投縣 | B20: 77055280 | C20: 6549000 | D20: 2637741810 | E20: 154093242 | F20: 88068061 | G20: 677373780 | H20: 155496743 | I20: 448725768 | J20: 597654000 | K20: 269081371 | L20: 264364945 | M20: 0 | N20: 5376204000
A21: 雲林縣 | B21: 81902220 | C21: 10598280 | D21: 3089588964 | E21: 173552580 | F21: 139762200 | G21: 456703664 | H21: 105422992 | I21: 303212044 | J21: 711206290 | K21: 335574322 | L21: 347320444 | M21: 0 | N21: 5754844000
A22: 嘉義縣 | B22: 77690112 | C22: 6515040 | D22: 2865758280 | E22: 119773162 | F22: 96637860 | G22: 655068420 | H22: 148147732 | I22: 411207609 | J22: 660209000 | K22: 229217767 | L22: 261889018 | M22: 0 | N22: 5532114000
A23: 屏東縣 | B23: 104261820 | C23: 18321000 | D23: 3658062289 | E23: 276552184 | F23: 134534085 | G23: 976371258 | H23: 212798901 | I23: 581462466 | J23: 1200317000 | K23: 379563214 | L23: 390806783 | M23: 0 | N23: 7933051000
A24: 臺東縣 | B24: 57679320 | C24: 9187000 | D24: 2090960000 | E24: 114826012 | F24: 97788000 | G24: 477987358 | H24: 139490728 | I24: 287601770 | J24: 633914000 | K24: 193527552 | L24: 188758260 | M24: 0 | N24: 4291720000
A25: 花蓮縣 | B25: 69112620 | C25: 11006160 | D25: 2101048872 | E25: 125689783 | F25: 86214008 | G25: 519964950 | H25: 103031905 | I25: 313052576 | J25: 555191000 | K25: 187893334 | L25: 216780792 | M25: 0 | N25: 4288986000
A26: 澎湖縣 | B26: 37183020 | C26: 8732940 | D26: 1533464562 | E26: 63090132 | F26: 48682074 | G26: 388810930 | H26: 59088000 | I26: 221806696 | J26: 212538000 | K26: 109505368 | L26: 154803278 | M26: 0 | N26: 2837705000
A27: 基隆市 | B27: 64850316 | C27: 6410520 | D27: 2073018094 | E27: 181383636 | F27: 297028664 | G27: 630193589 | H27: 117538400 | I27: 386443222 | J27: 517776000 | K27: 236308673 | L27: 302015886 | M27: 0 | N27: 4812967000
A28: 新竹市 | B28: 69280218 | C28: 9480000 | D28: 1810626000 | E28: 144703460 | F28: 239418500 | G28: 554010118 | H28: 115996550 | I28: 333692800 | J28: 442216000 | K28: 205800264 | L28: 236780090 | M28: 0 | N28: 4162004000
A29: 嘉義市 | B29: 48596220 | C29: 15391243 | D29: 1592111004 | E29: 110874816 | F29: 178244258 | G29: 480504499 | H29: 103063400 | I29: 298730106 | J29: 326560000 | K29: 172656051 | L29: 208807403 | M29: 0 | N29: 3535539000
A30: 金門縣 | B30: 36223122 | C30: 9943400 | D30: 1008164246 | E30: 171184064 | F30: 120145177 | G30: 278705645 | H30: 57505870 | I30: 147976705 | J30: 177500000 | K30: 95697111 | L30: 129595167 | M30: 0 | N30: 2232640507
A31: 連江縣 | B31: 18903000 | C31: 7085000 | D31: 362681000 | E31: 43639000 | F31: 19080000 | G31: 98544000 | H31: 13967000 | I31: 45662000 | J31: 39052000 | K31: 35042000 | L31: 41543000 | M31: 0 | N31: 725198000

Sheet 上簡明 (hidden)
B1: 104年度各直轄市及縣(市)總預算 | O1: 104年度各直轄市及縣(市)總預算
B2: 歲入來源別總表 | O2: 歲出政事別總表
A3: 資料來源：取自104總預算彙編及修改臺北市科目調整數 | G3: 單位 : 新臺幣 千元 | T3: 單位 : 新臺幣 千元 | AC3: 配合103年度歲入來源別預算科目修正特別稅課(原歸屬自治稅捐收入)等改歸屬稅課收入
A4: 經資併計 | N4: 經資併計 | AA4: 原系統轉出數 | AB4: 原系統轉出數 | AC4: 103重歸類調整後稅課收入數額
A5: 科 目 | B5: 合 計 | C5: 稅課收入 | D5: 工程受益費收入 | E5: 罰款及賠償收入 | F5: 規費收入 | G5: 信託管理收入 | H5: 財產收入 | I5: 營業盈餘及事業收入 | J5: 補助及協助收入 | K5: 捐獻及贈與收入 | L5: 自治稅捐收入 | M5: 其他收入 | N5: 科 目 | O5: 合 計 | P5: 一般政務支出 | Q5: 教育科學文化支出 | R5: 經濟發展支出 | S5: 社會福利支出 | T5: 社區發展及環境保護支出 | U5: 退休撫卹支出 | V5: 警政支出 | W5: 債務支出 | X5: 協助及補助支出 | Y5: 其他支出 | AA5: 稅課收入 | AB5: 自治稅捐收入
A6: 款 | C6: 1 | D6: 2 | E6: 3 | F6: 4 | G6: 5 | H6: 6 | I6: 7 | J6: 8 | K6: 9 | L6: 10 | M6: 11 | N6: 款 | P6: 1 | Q6: 2 | R6: 3 | S6: 4 | T6: 5 | U6: 6 | V6: 7 | W6: 8 | X6: 9 | Y6: 10 | AA6: 1 | AB6: 10
A7: 項 | N7: 項
A8: 目
A9: 總 計 | B9: =SUM(B10:B31) -> 963323706 | C9: =SUM(C10:C31) -> 529469324 | D9: =SUM(D10:D31) -> 2 | E9: 15660811 | F9: 29068175 | G9: 352 | H9: 40111738 | I9: 25383130 | J9: 291585814 | K9: 8965607 | L9: 0 | M9: 23078753 | N9: 總 計 | O9: =SUM(O10:O31) -> 1033174266 | P9: =SUM(P10:P31) -> 110323353 | Q9: =SUM(Q10:Q31) -> 354932130 | R9: 156592572 | S9: 144929422 | T9: 59518431 | U9: 81713129 | V9: 88561303 | W9: 12079919 | X9: 1048479 | Y9: 23475528 | AA9: 482728535 | AB9: 575670 | AC9: =AA9+AB9 -> 483304205
A10: 新北市 | B10: =SUM(C10:M10) -> 140382724 | C10: 86394520 | E10: 3175423 | F10: 2784246 | H10: 10259893 | I10: 635774 | J10: 31118814 | K10: 1210936 | M10: 4803118 | N10: 新北市 | O10: =SUM(P10:Y10) -> 158371155 | P10: 19360210 | Q10: 47266133 | R10: 27118791 | S10: 22183814 | T10: 13040763 | U10: 12702815 | V10: 12037342 | W10: 964248 | Y10: 3697039 | AA10: 76782761 | AB10: 0 | AC10: =AA10+AB10 -> 76782761
A11: 臺北市 | B11: =SUM(C11:M11) -> 159058812 | C11: 106954024 | E11: 2294400 | F11: =10064670+1208080 -> 11272750 | H11: 13980446 | I11: 6493139 | J11: 17123722 | K11: 69025 | M11: =2079386-1208080 -> 871306 | N11: 臺北市 | O11: =SUM(P11:Y11) -> 158544077 | P11: =13559447-650 -> 13558797 | Q11: =66144887+650 -> 66145537 | R11: 18804264 | S11: 24292413 | T11: 12140077 | U11: 5225116 | V11: 13619735 | W11: 2082229 | Y11: 2675909 | AA11: 100319702 | AB11: 0 | AC11: =AA11+AB11 -> 100319702
A12: 桃園市 | B12: 80518000 | C12: 52254682 | E12: 1229457 | F12: 1512437 | H12: 330965 | I12: 6023216 | J12: 15210799 | K12: 241364 | M12: 3715080 | N12: 桃園市 | O12: 91781295 | P12: 10175110 | Q12: 32091705 | R12: 15455486 | S12: 13125994 | T12: 6115466 | U12: 5920174 | V12: 6327351 | W12: 304329 | X12: 421000 | Y12: 1844680 | AA12: 34821424 | AB12: 33200 | AC12: =AA12+AB12 -> 34854624
A13: 臺中市 | B13: 94601136 | C13: 60421815 | E13: 1884120 | F13: 2308804 | H13: 919894 | I13: 6221 | J13: 24884942 | K13: 396488 | M13: 3778852 | N13: 臺中市 | O13: 113555985 | P13: 12363171 | Q13: 33703720 | R13: 22591988 | S13: 14119889 | T13: 6855543 | U13: 9895246 | V13: 10707001 | W13: 760000 | Y13: 2559427 | AA13: 59323250 | AB13: 0 | AC13: =AA13+AB13 -> 59323250
A14: 臺南市 | B14: 70813044 | C14: 40609783 | E14: 855143 | F14: 1031501 | H14: 3157020 | I14: 1019050 | J14: 22855818 | K14: 147672 | M14: 1137057 | N14: 臺南市 | O14: 76588044 | P14: 9096446 | Q14: 27991464 | R14: 13032373 | S14: 9607988 | T14: 3193771 | U14: 4383954 | V14: 6535158 | W14: 1165000 | Y14: 1581890 | AA14: 40787942 | AB14: 0 | AC14: 40787942
A15: 高雄市 | B15: 111969145 | C15: 64667361 | E15: 2078234 | F15: 5501367 | H15: 5174322 | I15: 2681132 | J15: 27873851 | K15: 923310 | M15: 3069568 | N15: 高雄市 | O15: 123425220 | P15: 12213200 | Q15: 44531573 | R15: 14793499 | S15: 22273838 | T15: 9018582 | U15: 5744293 | V15: 9845326 | W15: 2277444 | Y15: 2727465 | AA15: 61832146 | AB15: 0 | AC15: 61832146
A16: 宜蘭縣 | B16: 19418129 | C16: 7904693 | D16: 0 | E16: 297529 | F16: 400591 | G16: 0 | H16: 43093 | I16: 882994 | J16: 9131937 | K16: 0 | L16: 0 | M16: 757292 | N16: 宜蘭縣 | O16: 19641386 | P16: 1861612 | Q16: 6924339 | R16: 2403286 | S16: 2236207 | T16: 1355257 | U16: 2194584 | V16: 1812650 | W16: 284329 | X16: 12250 | Y16: 556872 | AA16: 6990221 | AB16: 44325 | AC16: 7034546
A17: 新竹縣 | B17: 25673359 | C17: 9314809 | D17: 0 | E17: 399125 | F17: 356860 | G17: 1 | H17: 3607329 | I17: 2644367 | J17: 8209804 | K17: 2 | L17: 0 | M17: 1141062 | N17: 新竹縣 | O17: 25673359 | P17: 2123996 | Q17: 8307969 | R17: 5941113 | S17: 3082357 | T17: 752098 | U17: 2508764 | V17: 1647004 | W17: 515123 | X17: 0 | Y17: 794935 | AA17: 8966682 | AB17: 0 | AC17: 8966682
A18: 苗栗縣 | B18: 23975692 | C18: 8682616 | D18: 0 | E18: 246313 | F18: 286184 | G18: 0 | H18: 13041 | I18: 200005 | J18: 13599009 | K18: 10000 | L18: 0 | M18: 938524 | N18: 苗栗縣 | O18: 23975692 | P18: 2932367 | Q18: 8403478 | R18: 2519302 | S18: 2651355 | T18: 1090170 | U18: 2856431 | V18: 2292582 | W18: 650000 | X18: 53250 | Y18: 526757 | AA18: 7842381 | AB18: 3145 | AC18: 7845526
A19: 彰化縣 | B19: 36496298 | C19: 16787465 | E19: 527036 | F19: 325966 | G19: 200 | H19: 76591 | I19: 2413670 | J19: 16307216 | K19: 4830 | M19: 53324 | N19: 彰化縣 | O19: 38068721 | P19: 3391861 | Q19: 15326555 | R19: 4273348 | S19: 4165721 | T19: 240181 | U19: 4812000 | V19: 4179121 | W19: 533772 | X19: 57862 | Y19: 1088300 | AA19: 15545227 | AB19: 0 | AC19: 15545227
A20: 南投縣 | B20: 20670440 | C20: 8170384 | D20: 0 | E20: 266254 | F20: 170000 | G20: 0 | H20: 38701 | I20: 1592118 | J20: 10347680 | K20: 52 | L20: 0 | M20: 85251 | N20: 南投縣 | O20: 20549550 | P20: 2137995 | Q20: 7457146 | R20: 1932947 | S20: 2770998 | T20: 174444 | U20: 2865700 | V20: 2256316 | W20: 346650 | X20: 58988 | Y20: 548366 | AA20: 7030030 | AB20: 320000 | AC20: 7350030
A21: 雲林縣 | B21: 27115586 | C21: 10509525 | D21: 0 | E21: 300176 | F21: 274966 | G21: 0 | H21: 32867 | I21: 3500 | J21: 15176767 | K21: 279380 | L21: 0 | M21: 538405 | N21: 雲林縣 | O21: 26765586 | P21: 2169666 | Q21: 9287174 | R21: 3457598 | S21: 4042933 | T21: 214078 | U21: 3701608 | V21: 2378078 | W21: 690357 | X21: 76500 | Y21: 747594 | AA21: 10253418 | AB21: 0 | AC21: 10253418
A22: 嘉義縣 | B22: 22450000 | C22: 6880387 | D22: 0 | E22: 164969 | F22: 152749 | G22: 150 | H22: 91476 | I22: 4935 | J22: 15122786 | K22: 1289 | L22: 0 | M22: 31259 | N22: 嘉義縣 | O22: 22800000 | P22: 2164968 | Q22: 7235863 | R22: 3748702 | S22: 3286528 | T22: 181899 | U22: 3046267 | V22: 1999021 | W22: 488000 | X22: 120752 | Y22: 528000 | AA22: 6495443 | AB22: 0 | AC22: 6495443
A23: 屏東縣 | B23: 29960000 | C23: 12212484 | D23: 0 | E23: 714404 | F23: 452390 | G23: 0 | H23: 237453 | I23: 0 | J23: 16031441 | K23: 0 | L23: 0 | M23: 311828 | N23: 屏東縣 | O23: 29960000 | P23: 3069116 | Q23: 10993483 | R23: 2655498 | S23: 4217166 | T23: 378369 | U23: 4654757 | V23: 3092819 | W23: 250000 | X23: 94500 | Y23: 554292 | AA23: 11079770 | AB23: 0 | AC23: 11079770
A24: 臺東縣 | B24: 12665885 | C24: 4231081 | D24: 0 | E24: 146445 | F24: 202090 | G24: 0 | H24: 290241 | I24: 5000 | J24: 7742647 | K24: 21016 | L24: 0 | M24: 27365 | N24: 臺東縣 | O24: 14340106 | P24: 2319220 | Q24: 4297201 | R24: 1476098 | S24: 1980854 | T24: 180519 | U24: 2002473 | V24: 1596702 | W24: 130000 | X24: 1000 | Y24: 356039 | AA24: 4116029 | AB24: 0 | AC24: 4116029
A25: 花蓮縣 | B25: 17145683 | C25: 5867584 | D25: 0 | E25: 255811 | F25: 172110 | G25: 0 | H25: 69016 | I25: 66626 | J25: 10670773 | K25: 1450 | L25: 0 | M25: 42313 | N25: 花蓮縣 | O25: 17145683 | P25: 2108563 | Q25: 5635845 | R25: 2708278 | S25: 2031840 | T25: 257983 | U25: 2125504 | V25: 1747870 | W25: 189800 | X25: 0 | Y25: 340000 | AA25: 5110916 | AB25: 175000 | AC25: 5285916
A26: 澎湖縣 | B26: 8186783 | C26: 1994720 | E26: 16835 | F26: 152258 | H26: 105672 | I26: 5000 | J26: 5727982 | K26: 16292 | M26: 168024 | N26: 澎湖縣 | O26: 9120574 | P26: 968557 | Q26: 2370780 | R26: 1870177 | S26: 1181380 | T26: 300759 | U26: 924592 | V26: 1211049 | W26: 30670 | X26: 34500 | Y26: 228110 | AA26: 1747155 | AB26: 0 | AC26: 1747155
A27: 基隆市 | B27: 16949927 | C27: 7559580 | D27: 0 | E27: 294133 | F27: 330667 | G27: 0 | H27: 836772 | I27: 33330 | J27: 7331734 | K27: 133580 | M27: 430131 | N27: 基隆市 | O27: 16303232 | P27: 2383457 | Q27: 4212134 | R27: 2272246 | S27: 2172065 | T27: 882330 | U27: 2043409 | V27: 1811591 | W27: 197000 | Y27: 329000 | AA27: 6626731 | AB27: 0 | AC27: 6626731
A28: 新竹市 | B28: 18095663 | C28: 10251324 | D28: 1 | E28: 347412 | F28: 471181 | H28: 586783 | J28: 5376580 | K28: 131020 | M28: 931362 | N28: 新竹市 | O28: 18497663 | P28: 2150807 | Q28: 5837260 | R28: 2030015 | S28: 2132917 | T28: 1326149 | U28: 2110240 | V28: 1471375 | W28: 189000 | Y28: 1249900 | AA28: 9371537 | AB28: 0 | AC28: 9371537
A29: 嘉義市 | B29: 10841907 | C29: 5053093 | D29: 1 | E29: 73570 | F29: 229401 | G29: 1 | H29: 77575 | I29: 2069 | J29: 5251016 | K29: 6401 | L29: 0 | M29: 148780 | N29: 嘉義市 | O29: 11105585 | P29: 1563496 | Q29: 3720547 | R29: 942455 | S29: 1331474 | T29: 530409 | U29: 1460800 | V29: 1229036 | W29: 31368 | X29: 0 | Y29: 296000 | AA29: 5076789 | AB29: 0 | AC29: 5076789
A30: 金門縣 | B30: 13668751 | C30: 2317722 | D30: 0 | E30: 88972 | F30: 650012 | G30: 0 | H30: 175102 | I30: 649984 | J30: 4491300 | K30: 5200000 | L30: 0 | M30: 95659 | N30: 金門縣 | O30: 14085772 | P30: 1691894 | Q30: 2451886 | R30: 5610521 | S30: 1810927 | T30: 1137998 | U30: 490714 | V30: 607902 | W30: 0 | X30: 89513 | Y30: 194417 | AA30: 2211612 | AB30: 0 | AC30: 2211612
A31: 連江縣 | B31: 2666742 | C31: 429672 | D31: 0 | E31: 5050 | F31: 29645 | G31: 0 | H31: 7486 | I31: 21000 | J31: 1999196 | K31: 171500 | L31: 0 | M31: 3193 | N31: 連江縣 | O31: 2875581 | P31: 518844 | Q31: 740338 | R31: 954587 | S31: 230764 | T31: 151586 | U31: 43688 | V31: 156274 | W31: 600 | X31: 28364 | Y31: 50536 | AA31: 397369 | AB31: 0 | AC31: 397369

Sheet 前簡明 (hidden)
B1: 103年度各縣(市)總決算審定 | O1: 103年度各縣(市)總決算審定
B2: 歲入來源別總表 | O2: 歲出政事別總表
A3: 列印日期:104年10月6日 | B3: 資料來源：取自資料庫系統及配合科目移列做同基礎調整 | G3: 單位 : 新臺幣 元 | N3: 列印日期:104年10月6日 | T3: 單位 : 新臺幣 元
A4: 經資併計 | N4: 經資併計
A5: 科 目 | B5: 合 計 | C5: 稅課收入 | D5: 工程受益費收入 | E5: 罰款及賠償收入 | F5: 規費收入 | G5: 信託管理收入 | H5: 財產收入 | I5: 營業盈餘及事業收入 | J5: 補助及協助收入 | K5: 捐獻及贈與收入 | L5: 自治稅捐收入 | M5: 其他收入 | N5: 科 目 | O5: 合 計 | P5: 一般政務支出 | Q5: 教育科學文化支出 | R5: 經濟發展支出 | S5: 社會福利支出 | T5: 社區發展及環境保護支出 | U5: 退休撫卹支出 | V5: 警政支出 | W5: 債務支出 | X5: 協助及補助支出 | Y5: 其他支出
A6: 款 | C6: 1 | D6: 2 | E6: 3 | F6: 4 | G6: 5 | H6: 6 | I6: 7 | J6: 8 | K6: 9 | L6: 10 | M6: 11 | N6: 款 | P6: 1 | Q6: 2 | R6: 3 | S6: 4 | T6: 5 | U6: 6 | V6: 7 | W6: 8 | X6: 9 | Y6: 10
A7: 項 | N7: 項
A8: 目
A9: 總 計 | B9: 981755104208 | C9: 526538151476 | D9: 3708092 | E9: 19473873811 | F9: 35857055384 | G9: 119574523 | H9: 47778162528 | I9: 31274520637 | J9: 288689341626 | K9: 9886964689 | L9: 0 | M9: 22133751442 | N9: 總 計 | O9: 999547302200 | P9: 106041560880 | Q9: 349577516423 | R9: 156735107521 | S9: 155949213877 | T9: 52964222520 | U9: 74981543138 | V9: 81880550738 | W9: 10055507268 | X9: 677844745 | Y9: 10684235090
A10: 新北市 | B10: 142571741482 | C10: 88221727393 | D10: 3708092 | E10: =4302270628-1150000 -> 4301120628 | F10: =3625953999-563246000 -> 3062707999 | G10: 0 | H10: 10885669309 | I10: 58927379 | J10: 29196902356 | K10: 1324346883 | L10: 0 | M10: =4952235443+1150000+563246000 -> 5516631443 | N10: 新北市 | O10: 154473463926 | P10: 19772228431 | Q10: 47544136417 | R10: 28489978071 | S10: 21273403865 | T10: 12274935557 | U10: 12100170315 | V10: 10584939285 | W10: 750140730 | X10: 0 | Y10: 1683531255
A11: 臺北市 | B11: 188724222223 | C11: 112407759690 | D11: 0 | E11: 2952673015 | F11: =12203981961-471485000 -> 11732496961 | G11: 0 | H11: =21896721502+1680000 -> 21898401502 | I11: 13556608027 | J11: 23732022058 | K11: 127794961 | L11: 0 | M11: =1846661009+471485000-1680000 -> 2316466009 | N11: 臺北市 | O11: 167504327527 | P11: 13131672216 | Q11: 63780303467 | R11: 18280227817 | S11: 39418872913 | T11: 11444086459 | U11: 4908230685 | V11: 12383778728 | W11: 3290050932 | X11: 0 | Y11: 867104310
A12: 桃園縣 | B12: 56716718078 | C12: 38782611747 | D12: 0 | E12: 1568997860 | F12: 1771648529 | G12: 0 | H12: 226362106 | I12: 211206539 | J12: 13458760604 | K12: 11163162 | L12: 0 | M12: 685967531 | N12: 桃園縣 | O12: 62760371005 | P12: 5709330669 | Q12: 28136596598 | R12: 8362932099 | S12: 7254062162 | T12: 1798591987 | U12: 4905401878 | V12: 5622592896 | W12: 252996310 | X12: 0 | Y12: 717866406
A13: 臺中市 | B13: 99916972141 | C13: 64477196168 | D13: 0 | E13: 2338924667 | F13: =3298279924-1066971000 -> 2231308924 | G13: 0 | H13: 1071885811 | I13: 3815038460 | J13: 21726599364 | K13: 456126243 | L13: 0 | M13: =2732921504+1066971000 -> 3799892504 | N13: 臺中市 | O13: 104869032822 | P13: 11339544002 | Q13: 33192674497 | R13: 21414063230 | S13: 13320367516 | T13: 6191130460 | U13: 8621136713 | V13: 9425811371 | W13: 453408165 | X13: 0 | Y13: 910896868
A14: 臺南市 | B14: 71582555003 | C14: 40382767923 | D14: 0 | E14: =1012902362-8854000 -> 1004048362 | F14: =2349207876-641538000 -> 1707669876 | G14: 0 | H14: 2645760288 | I14: 417072329 | J14: 23434285737 | K14: 252846662 | L14: 0 | M14: =1087711826+8854000+641538000 -> 1738103826 | N14: 臺南市 | O14: 73521376929 | P14: 8890406220 | Q14: 27820755529 | R14: 13347686425 | S14: 9465348458 | T14: 2907965966 | U14: 3684694176 | V14: 6112258780 | W14: 677564130 | X14: 0 | Y14: 614697245
A15: 高雄市 | B15: 116362372410 | C15: 62080575356 | D15: 0 | E15: 2627600269 | F15: =6782774637-1135785000 -> 5646989637 | G15: 119188875 | H15: 5919795568 | I15: 5769828867 | J15: 27855014707 | K15: 891321595 | L15: 0 | M15: =4316272536+1135785000 -> 5452057536 | N15: 高雄市 | O15: 126265671271 | P15: =13087415025-772037000 -> 12315378025 | Q15: 45244508079 | R15: =13105518003+772037000 -> 13877555003 | S15: 26548986441 | T15: 9230545231 | U15: 5484591083 | V15: 9826266202 | W15: 1765673889 | X15: 0 | Y15: 1972167318
A16: 宜蘭縣 | B16: 19458448633 | C16: 7674964736 | D16: 0 | E16: =327069783-3552000 -> 323517783 | F16: =685757635-269844000 -> 415913635 | G16: 0 | H16: 104962591 | I16: 784459000 | J16: 9329624723 | K16: 275000 | L16: 0 | M16: =551335165+3552000+269844000 -> 824731165 | N16: 宜蘭縣 | O16: 19771999215 | P16: 1799068163 | Q16: 8005019835 | R16: 1945534484 | S16: 2296163221 | T16: 1347434846 | U16: 2074609588 | V16: 1744596125 | W16: 272958902 | X16: 12401169 | Y16: 274212882
A17: 新竹縣 | B17: 22078297051 | C17: 9709255844 | D17: 0 | E17: =417799467-99000 -> 417700467 | F17: =456108641-104372000 -> 351736641 | G17: 0 | H17: 1254301337 | I17: 1717373859 | J17: 8286752980 | K17: 0 | L17: 0 | M17: =236704923+99000+104372000 -> 341175923 | N17: 新竹縣 | O17: 23149637216 | P17: 1962474523 | Q17: 8623141706 | R17: 5090567901 | S17: 2678833101 | T17: 538960639 | U17: 2294567964 | V17: 1590643630 | W17: 257187039 | X17: 0 | Y17: 113260713
A18: 苗栗縣 | B18: 22394373463 | C18: 8700012528 | D18: 0 | E18: =322031678-2640000 -> 319391678 | F18: 345165524 | G18: 0 | H18: 1153036342 | I18: 300237461 | J18: 10938776698 | K18: 215605997 | L18: 0 | M18: =419507235+2640000 -> 422147235 | N18: 苗栗縣 | O18: 26455582212 | P18: 3184633492 | Q18: 8519159836 | R18: 4935608733 | S18: 2750491451 | T18: 1394399723 | U18: 2776478579 | V18: 1984179837 | W18: 629831640 | X18: 53250000 | Y18: 227548921
A19: 彰化縣 | B19: 39906506523 | C19: 16298765417 | D19: 0 | E19: 660871556 | F19: 394132829 | G19: 203949 | H19: 157358477 | I19: 3256672619 | J19: 17626204513 | K19: 28148440 | L19: 0 | M19: 1484148723 | N19: 彰化縣 | O19: 41204936654 | P19: 3055559358 | Q19: 16454056872 | R19: 6317188882 | S19: 5400958466 | T19: 307433142 | U19: 4713353459 | V19: 4185909523 | W19: 252010982 | X19: 59264199 | Y19: 459201771
A20: 南投縣 | B20: 23820221960 | C20: 9926037434 | D20: 0 | E20: 373183473 | F20: 198592183 | G20: 0 | H20: 98872823 | I20: 675705106 | J20: 12327953053 | K20: 1060000 | L20: 0 | M20: 218817888 | N20: 南投縣 | O20: 21691581149 | P20: 2243846120 | Q20: 7288370096 | R20: 4192974237 | S20: 2572868100 | T20: 254595322 | U20: 2552867918 | V20: 2148595198 | W20: 200005654 | X20: 46500000 | Y20: 190958504
A21: 雲林縣 | B21: 26040899406 | C21: 11184190313 | D21: 0 | E21: =435509629-3873000 -> 431636629 | F21: 244789587 | G21: 0 | H21: 270416836 | I21: 6300000 | J21: 12954203815 | K21: 518478000 | L21: 0 | M21: =427011226+3873000 -> 430884226 | N21: 雲林縣 | O21: 26632107533 | P21: 2163483576 | Q21: 8659782409 | R21: 5386823182 | S21: 3810753501 | T21: 148609708 | U21: 3045869955 | V21: 2273583445 | W21: 252445163 | X21: 76500000 | Y21: 814256594
A22: 嘉義縣 | B22: 21511119912 | C22: 7963522328 | D22: 0 | E22: =282876671-110000 -> 282766671 | F22: 153316667 | G22: 181699 | H22: 92705980 | I22: 8072000 | J22: 12460250756 | K22: 1289000 | L22: 0 | M22: =548904811+110000 -> 549014811 | N22: 嘉義縣 | O22: 21910332578 | P22: 2580484377 | Q22: 6459008961 | R22: 3687423718 | S22: 3077410680 | T22: 197716088 | U22: 3319252612 | V22: 1857835209 | W22: 234508595 | X22: 125756000 | Y22: 370936338
A23: 屏東縣 | B23: 31848994364 | C23: 11824537643 | D23: 0 | E23: =583507671-7008000 -> 576499671 | F23: =673362206-261844000 -> 411518206 | G23: 0 | H23: 549073158 | I23: 0 | J23: 18065170735 | K23: 101234216 | L23: 0 | M23: =52108735+7008000+261844000 -> 320960735 | N23: 屏東縣 | O23: 31058236625 | P23: 3427623156 | Q23: 10990728151 | R23: 4141012097 | S23: 3957873100 | T23: 417334133 | U23: 4433429320 | V23: 2794252828 | W23: 300000000 | X23: 100418697 | Y23: 495565143
A24: 臺東縣 | B24: 13773880309 | C24: 4231025996 | D24: 0 | E24: 169264382 | F24: 197183495 | G24: 0 | H24: 260484497 | I24: 5000000 | J24: 8705007494 | K24: 27382168 | L24: 0 | M24: 178532277 | N24: 臺東縣 | O24: 14213130063 | P24: 2607504369 | Q24: 4080122629 | R24: 1781566287 | S24: 1896576813 | T24: 198109576 | U24: 1833374844 | V24: 1461578224 | W24: 64792138 | X24: 460324 | Y24: 289044859
A25: 花蓮縣 | B25: 16951271853 | C25: 6284156492 | D25: 0 | E25: =297695521-3804000 -> 293891521 | F25: =176152362-35000 -> 176117362 | G25: 0 | H25: 207146102 | I25: 246480177 | J25: 9588030653 | K25: 1365000 | L25: 0 | M25: =150245546+3804000+35000 -> 154084546 | N25: 花蓮縣 | O25: 17090671006 | P25: 2065664917 | Q25: 5352153545 | R25: 3267016384 | S25: 2005200582 | T25: 282789659 | U25: 1927460455 | V25: 1798127147 | W25: 122339528 | X25: 0 | Y25: 269918789
A26: 澎湖縣 | B26: 7957563088 | C26: 2109152485 | D26: 0 | E26: =29631620-21000 -> 29610620 | F26: =161066944-7040000 -> 154026944 | G26: 0 | H26: 79534561 | I26: 12270181 | J26: 5391587469 | K26: 18448882 | L26: 0 | M26: =155870946+21000+7040000 -> 162931946 | N26: 澎湖縣 | O26: 8376027540 | P26: 960393398 | Q26: 1955599799 | R26: 2097878535 | S26: 1087602534 | T26: 219255426 | U26: 732486118 | V26: 1158434792 | W26: 24855220 | X26: 83330693 | Y26: 56191025
A27: 基隆市 | B27: 16673709167 | C27: 6729728160 | D27: 0 | E27: =207166930-2929000 -> 204237930 | F27: =431930669-111776000 -> 320154669 | G27: 0 | H27: 378989303 | I27: 30200000 | J27: 7676196084 | K27: 148995514 | L27: 0 | M27: =1070502507+2929000+111776000 -> 1185207507 | N27: 基隆市 | O27: 16665888704 | P27: 2336674511 | Q27: 4755188888 | R27: 2967338601 | S27: 2134882558 | T27: 863164214 | U27: 1705005129 | V27: 1656230426 | W27: 110349652 | X27: 0 | Y27: 137054725
A28: 新竹市 | B28: 16912958513 | C28: 9850281903 | D28: 0 | E28: =391359958-19791100 -> 371568858 | F28: =736868062-331732000 -> 405136062 | G28: 0 | H28: 208695839 | I28: 0 | J28: 5022322158 | K28: 69832750 | L28: 0 | M28: =633597843+19792000+331732000 -> 985121843 | N28: 新竹市 | O28: 16848050369 | P28: 2005119463 | Q28: 5848406789 | R28: 1959158619 | S28: 2068051088 | T28: 1352723368 | U28: 2019104523 | V28: 1353507509 | W28: 131774974 | X28: 0 | Y28: 110204036
A29: 嘉義市 | B29: 11128588589 | C29: 4909097972 | D29: 0 | E29: =124592557-7163000 -> 117429557 | F29: =324469354-81441000 -> 243028354 | G29: 0 | H29: 132560136 | I29: 2068633 | J29: 5421236612 | K29: 22272460 | L29: 0 | M29: =192290865+7163000+81441000 -> 280894865 | N29: 嘉義市 | O29: 10641077247 | P29: 1530351905 | Q29: 3584623481 | R29: 1159393948 | S29: 1195395565 | T29: 514237353 | U29: 1364182226 | V29: 1196220347 | W29: 12613625 | X29: 0 | Y29: 84058797
A30: 金門縣 | B30: 12370209118 | C30: 2381583062 | D30: 0 | E30: 42317582 | F30: =622926195-8079000 -> 614847195 | G30: 0 | H30: 175612996 | I30: 400000000 | J30: 3030392662 | K30: 5550000000 | L30: 0 | M30: =167376621+8079000 -> 175455621 | N30: 金門縣 | O30: 11412347868 | P30: 1744652891 | Q30: 2568774781 | R30: 3466831697 | S30: 1516006694 | T30: 978763589 | U30: 451905548 | V30: 579690623 | W30: 0 | X30: 89822000 | Y30: 15900045
A31: 連江縣 | B31: 3053480922 | C31: 409200886 | D31: 0 | E31: 5626532 | F31: 23386105 | G31: 0 | H31: 8216966 | I31: 1000000 | J31: 2462046395 | K31: 118977756 | L31: 0 | M31: 25026282 | N31: 連江縣 | O31: 3031452741 | P31: 443430098 | Q31: 714404058 | R31: 1338384571 | S31: 219105068 | T31: 101440074 | U31: 33370050 | V31: 141518613 | W31: 0 | X31: 30141663 | Y31: 9658546
N33: 備註:1.臺北市:社會救助支出項下災害準備金128,735,146元(經常門26,946,070元，資本門101,789,076元)。已調整至災害準備金

Sheet 上收支 (hidden)
A1: 資料來源：取自104總預算彙編
A2: 歲入歲出性質及餘絀簡明比較分析表
A3: 104年度總預算 | G3: 單位 : 新臺幣 千元
A4: 縣 市 | C4: 一.經 常 門 | M4: 二.資 本 門 | V4: 三.歲入歲出餘絀
C5: (一)經常門歲入 | D5: 1.直接稅收入 | E5: 2.間接稅收入 | F5: 3.賦稅外收入 | G5: (二)經常門歲出 | H5: 1.一般經常性支出 | I5: 2.債務利息及事務支出 | J5: 3.預備金-經 | K5: (三)經常門餘絀 | M5: (一)資本門歲入 | N5: 1.減少資產 | O5: 2.收回投資 | P5: (二)資本門歲出 | Q5: 1.增置或擴充改良資產 | R5: 2.增加投資 | S5: 3.預備金-資 | T5: (三)資本門餘絀
A6: 總 計 | B6: 金 額 | C6: =SUM(C8:C29) -> 941257562 | D6: =SUM(D8:D29) -> 296780144 | E6: 232689180 | F6: 411788238 | G6: 838755751 | H6: 820975304 | I6: 12079919 | J6: 5700528 | K6: 102501811 | M6: =SUM(M8:M29) -> 22066144 | N6: 19786636 | O6: 2279508 | P6: 194418515 | Q6: 165180502 | R6: 19464279 | S6: 9773734 | T6: -172352371 | V6: -69850560
B7: 百分比
A8: 新北市 | C8: 131165608 | D8: 57999372 | E8: 28395148 | F8: 44771088 | G8: 122494968 | H8: 120754236 | I8: 964248 | J8: 776484 | K8: 8670640 | M8: 9217116 | N8: 9217116 | P8: 35876187 | Q8: 21556351 | R8: 12919836 | S8: 1400000 | T8: -26659071 | V8: -17988431
A9: 臺北市 | C9: 158760891 | D9: 59813000 | E9: 47141024 | F9: 51806867 | G9: 132182343 | H9: 129022582 | I9: 2082229 | J9: 1077532 | K9: 26578548 | M9: 297921 | N9: 297921 | P9: 26361734 | Q9: 24526560 | R9: 1097674 | S9: 737500 | T9: -26063813 | V9: 514735
A10: 桃園市 | C10: 80391212 | D10: 33283243 | E10: 18971439 | F10: 28136530 | G10: 70428097 | H10: 69913068 | I10: 304329 | J10: 210700 | K10: 9963115 | M10: 126788 | N10: 126788 | P10: 21353198 | Q10: 18432198 | R10: 2000000 | S10: 921000 | T10: -21226410 | V10: -11263295
A11: 臺中市 | C11: 94120496 | D11: 37313191 | E11: 23108624 | F11: 33698681 | G11: 89429722 | H11: 88176572 | I11: 760000 | J11: 493150 | K11: 4690774 | M11: 480640 | N11: 400000 | O11: 80640 | P11: 24126263 | Q11: 22855263 | R11: 31000 | S11: 1240000 | T11: -23645623 | V11: -18954849
A12: 臺南市 | C12: 68658812 | D12: 23090597 | E12: 17519186 | F12: 28049029 | G12: 62959896 | H12: 61254306 | I12: 1165000 | J12: 540590 | K12: 5698916 | M12: 2154232 | N12: 1940000 | O12: 214232 | P12: 13628148 | Q12: 12902916 | R12: 15232 | S12: 710000 | T12: -11473916 | V12: -5775000
A13: 高雄市 | C13: 107515975 | D13: 29075000 | E13: 35592361 | F13: 42848614 | G13: 105054801 | H13: 102467555 | I13: 2277444 | J13: 309802 | K13: 2461174 | M13: 4453170 | N13: 4453170 | P13: 18370419 | Q13: 16378570 | R13: 545215 | S13: 1446634 | T13: -13917249 | V13: -11456075
A14: 宜蘭縣 | C14: 19406788 | D14: 4489690 | E14: 3415003 | F14: 11502095 | G14: 16258871 | H14: 15913042 | I14: 284329 | J14: 61500 | K14: 3147917 | M14: 11341 | N14: 11341 | O14: 0 | P14: 3382515 | Q14: 3186067 | R14: 0 | S14: 196448 | T14: -3371174 | V14: -223257
A15: 新竹縣 | C15: 22119780 | D15: 5226766 | E15: 4088043 | F15: 12804971 | G15: 17957752 | H15: 16969405 | I15: 515123 | J15: 473224 | K15: 4162028 | M15: 3553579 | N15: 1600011 | O15: 1953568 | P15: 7715607 | Q15: 5505039 | R15: 1953568 | S15: 257000 | T15: -4162028 | V15: 0
A16: 苗栗縣 | C16: 23975692 | D16: 3962000 | E16: 4720616 | F16: 15293076 | G16: 19374433 | H16: 18524433 | I16: 650000 | J16: 200000 | K16: 4601259 | M16: 0 | P16: 4601259 | Q16: 4361502 | R16: 0 | S16: 239757 | T16: -4601259 | V16: 0
A17: 彰化縣 | C17: 36480298 | D17: 7584047 | E17: 9203418 | F17: 19692833 | G17: 33272676 | H17: 32608904 | I17: 533772 | J17: 130000 | K17: 3207622 | M17: 16000 | N17: 16000 | P17: 4796045 | Q17: 4296045 | R17: 110000 | S17: 390000 | T17: -4780045 | V17: -1572423
A18: 南投縣 | C18: 20668440 | D18: 3156649 | E18: 5013735 | F18: 12498056 | G18: 18511049 | H18: 18051399 | I18: 346650 | J18: 113000 | K18: 2157391 | M18: 2000 | N18: 2000 | O18: 0 | P18: 2038501 | Q18: 1833001 | R18: 0 | S18: 205500 | T18: -2036501 | V18: 120890
A19: 雲林縣 | C19: 27088664 | D19: 4418117 | E19: 6091408 | F19: 16579139 | G19: 22964126 | H19: 22262810 | I19: 690357 | J19: 10959 | K19: 4124538 | M19: 26922 | N19: 26922 | O19: 0 | P19: 3801460 | Q19: 3453769 | R19: 0 | S19: 347691 | T19: -3774538 | V19: 350000
A20: 嘉義縣 | C20: 22400000 | D20: 2696235 | E20: 4184152 | F20: 15519613 | G20: 18663641 | H20: 18166838 | I20: 488000 | J20: 8803 | K20: 3736359 | M20: 50000 | N20: 50000 | P20: 4136359 | Q20: 3808839 | R20: 19520 | S20: 308000 | T20: -4086359 | V20: -350000
A21: 屏東縣 | C21: 29764291 | D21: 5032939 | E21: 7179545 | F21: 17551807 | G21: 26798865 | H21: 26518865 | I21: 250000 | J21: 30000 | K21: 2965426 | M21: 195709 | N21: 195709 | P21: 3161135 | Q21: 2855704 | S21: 305431 | T21: -2965426 | V21: 0
A22: 臺東縣 | C22: 12405885 | D22: 1677402 | E22: 2553679 | F22: 8174804 | G22: 12269224 | H22: 12099224 | I22: 130000 | J22: 40000 | K22: 136661 | M22: 260000 | N22: 260000 | P22: 2070882 | Q22: 1866882 | R22: 0 | S22: 204000 | T22: -1810882 | V22: -1674221
A23: 花蓮縣 | C23: 17135583 | D23: 2468181 | E23: 3399403 | F23: 11267999 | G23: 14356519 | H23: 14097519 | I23: 189800 | J23: 69200 | K23: 2779064 | M23: 10100 | N23: 10100 | O23: 0 | P23: 2789164 | Q23: 2629164 | R23: 0 | S23: 160000 | T23: -2779064 | V23: 0
A24: 澎湖縣 | C24: 8105715 | D24: 885394 | E24: 1109326 | F24: 6110995 | G24: 6919620 | H24: 6825950 | I24: 30670 | J24: 63000 | K24: 1186095 | M24: 81068 | N24: 50000 | O24: 31068 | P24: 2200954 | Q24: 2036720 | R24: 72234 | S24: 92000 | T24: -2119886 | V24: -933791
A25: 基隆市 | C25: 16330571 | D25: 4392726 | E25: 3166854 | F25: 8770991 | G25: 13685721 | H25: 13458221 | I25: 197000 | J25: 30500 | K25: 2644850 | M25: 619356 | N25: 619356 | P25: 2617511 | Q25: 2448511 | S25: 169000 | T25: -1998155 | V25: 646695
A26: 新竹市 | C26: 17615661 | D26: 6585154 | E26: 3666170 | F26: 7364337 | G26: 15352577 | H26: 14245037 | I26: 189000 | J26: 918540 | K26: 2263084 | M26: 480002 | N26: 480002 | P26: 3145086 | Q26: 2959086 | S26: 186000 | T26: -2665084 | V26: -402000
A27: 嘉義市 | C27: 10811907 | D27: 2825889 | E27: 2227204 | F27: 5758814 | G27: 9931669 | H27: 9837901 | I27: 31368 | J27: 62400 | K27: 880238 | M27: 30000 | N27: 30000 | O27: 0 | P27: 1173916 | Q27: 1086316 | R27: 0 | S27: 87600 | T27: -1143916 | V27: -263678
A28: 金門縣 | C28: 13668551 | D28: 668336 | E28: 1649386 | F28: 11350829 | G28: 8082458 | H28: 8016808 | I28: 0 | J28: 65650 | K28: 5586093 | M28: 200 | N28: 200 | O28: 0 | P28: 6003314 | Q28: 5166897 | R28: 700000 | S28: 136417 | T28: -6003114 | V28: -417021
A29: 連江縣 | C29: 2666742 | D29: 136216 | E29: 293456 | F29: 2237070 | G29: 1806723 | H29: 1790629 | I29: 600 | J29: 15494 | K29: 860019 | M29: 0 | N29: 0 | O29: 0 | P29: 1068858 | Q29: 1035102 | R29: 0 | S29: 33756 | T29: -1068858 | V29: -208839

Sheet 前收支 (hidden)
A2: 歲入歲出性質及餘絀簡明比較分析表
A3: 103年度總決算審定 | G3: 單位 : 新臺幣 元
A4: 縣 市 | C4: 一.經 常 門 | M4: 二.資 本 門 | V4: 三.歲入歲出餘絀
C5: (一)經常門歲入 | D5: 1.直接稅收入 | E5: 2.間接稅收入 | F5: 3.賦稅外收入 | G5: (二)經常門歲出 | H5: 1.一般經常性支出 | I5: 2.債務利息及事務支出 | J5: 3.預備金-經 | K5: (三)經常門餘絀 | M5: (一)資本門歲入 | N5: 1.減少資產 | O5: 2.收回投資 | P5: (二)資本門歲出 | Q5: 1.增置或擴充改良資產 | R5: 2.增加投資 | S5: 3.預備金-資 | T5: (三)資本門餘絀
A6: 總 計 | B6: 金 額 | C6: 957063551304 | D6: 299234895608 | E6: 227289890479 | F6: 430538765217 | G6: 803500591434 | H6: 793256636107 | I6: 10055507268 | J6: 188448059 | K6: 153562959870 | M6: 24691552904 | N6: 23895584259 | O6: 795968645 | P6: 196046710766 | Q6: 174670038848 | R6: 18285830473 | S6: 3090841445 | T6: -171355157862 | V6: -17792197992
B7: 百分比 | C7: 100 | D7: 31.2659379 | E7: 23.74867272 | F7: 44.98538939 | G7: 100 | H7: 98.72508428 | I7: 1.251462336 | J7: 0.02345338149 | M7: 100 | N7: 96.77635243 | O7: 3.223647569 | P7: 100 | Q7: 89.09613335 | R7: 9.327282463 | S7: 1.576584189
A8: 新北市 | C8: 132677635487 | D8: 59499889717 | E8: 28721837676 | F8: 44455908094 | G8: 115257961278 | H8: 114480954178 | I8: 750140730 | J8: 26866370 | K8: 17419674209 | M8: 9894105995 | N8: 9894105995 | O8: 0 | P8: 39215502648 | Q8: 23516160406 | R8: 14735334522 | S8: 964007720 | T8: -29321396653 | V8: -11901722444
A9: 臺北市 | C9: 185899305928 | D9: 62980778698 | E9: 49426980992 | F9: 73491546238 | G9: 146734353817 | H9: 143417356815 | I9: 3290050932 | J9: 26946070 | K9: 39164952111 | M9: 2824916295 | N9: 2824916295 | O9: 0 | P9: 20769973710 | Q9: 19535842185 | R9: 1132342449 | S9: 101789076 | T9: -17945057415 | V9: 21219894696
A10: 桃園縣 | C10: 56620947035 | D10: 22428064528 | E10: 16354547219 | F10: 17838335288 | G10: 49635961407 | H10: 49382965097 | I10: 252996310 | J10: 0 | K10: 6984985628 | M10: 95771043 | N10: 95771043 | O10: 0 | P10: 13124409598 | Q10: 12624409598 | R10: 500000000 | S10: 0 | T10: -13028638555 | V10: -6043652927
A11: 臺中市 | C11: 99405314175 | D11: 39706349669 | E11: 24770846499 | F11: 34928118007 | G11: 82594034762 | H11: 82140626597 | I11: 453408165 | J11: 0 | K11: 16811279413 | M11: 511657966 | N11: 510657966 | O11: 1000000 | P11: 22274998060 | Q11: 22192884703 | R11: 82113357 | S11: 0 | T11: -21763340094 | V11: -4952060681
A12: 臺南市 | C12: 69376012849 | D12: 22791953427 | E12: 17590814496 | F12: 28993244926 | G12: 59103897827 | H12: 58415166362 | I12: 677564130 | J12: 11167335 | K12: 10272115022 | M12: 2206542154 | N12: 1513311213 | O12: 693230941 | P12: 14417479102 | Q12: 14084425886 | R12: 1000000 | S12: 332053216 | T12: -12210936948 | V12: -1938821926
A13: 高雄市 | C13: 111057296283 | D13: 27576047107 | E13: 34504528249 | F13: 48976720927 | G13: 106509782269 | H13: 104628540505 | I13: 1765673889 | J13: 115567875 | K13: 4547514014 | M13: 5305076127 | N13: 5304275340 | O13: 800787 | P13: 19755889002 | Q13: 17591556325 | R13: 1043714440 | S13: 1120618237 | T13: -14450812875 | V13: -9903298861
A14: 宜蘭縣 | C14: 19388116267 | D14: 4356830953 | E14: 3318133783 | F14: 11713151531 | G14: 15384234181 | H14: 15111275279 | I14: 272958902 | J14: 0 | K14: 4003882086 | M14: 70332366 | N14: 70332366 | O14: 0 | P14: 4387765034 | Q14: 4387765034 | R14: 0 | S14: 0 | T14: -4317432668 | V14: -313550582
A15: 新竹縣 | C15: 20881130160 | D15: 5548267853 | E15: 4160987991 | F15: 11171874316 | G15: 16785876689 | H15: 16528689650 | I15: 257187039 | J15: 0 | K15: 4095253471 | M15: 1197166891 | N15: 1197166891 | O15: 0 | P15: 6363760527 | Q15: 6363760527 | R15: 0 | S15: 0 | T15: -5166593636 | V15: -1071340165
A16: 苗栗縣 | C16: 21259200703 | D16: 4796706627 | E16: 3903305901 | F16: 12559188175 | G16: 18324842549 | H16: 17695010909 | I16: 629831640 | J16: 0 | K16: 2934358154 | M16: 1135172760 | N16: 1135172760 | O16: 0 | P16: 8130739663 | Q16: 8130739663 | R16: 0 | S16: 0 | T16: -6995566903 | V16: -4061208749
A17: 彰化縣 | C17: 39891674962 | D17: 8413428341 | E17: 7885337076 | F17: 23592909545 | G17: 33351348049 | H17: 33098032540 | I17: 252010982 | J17: 1304527 | K17: 6540326913 | M17: 14831561 | N17: 14831561 | O17: 0 | P17: 7853588605 | Q17: 7711130153 | R17: 16229055 | S17: 126229397 | T17: -7838757044 | V17: -1298430131
A18: 南投縣 | C18: 23801844588 | D18: 4913935413 | E18: 5012102021 | F18: 13875807154 | G18: 17460226271 | H18: 17260220617 | I18: 200005654 | J18: 0 | K18: 6341618317 | M18: 18377372 | N18: 18377372 | O18: 0 | P18: 4231354878 | Q18: 4231354878 | R18: 0 | S18: 0 | T18: -4212977506 | V18: 2128640811
A19: 雲林縣 | C19: 25783105406 | D19: 5759589216 | E19: 5424601097 | F19: 14598915093 | G19: 20752757097 | H19: 20500311934 | I19: 252445163 | J19: 0 | K19: 5030348309 | M19: 257794000 | N19: 257794000 | O19: 0 | P19: 5879350436 | Q19: 5879350436 | R19: 0 | S19: 0 | T19: -5621556436 | V19: -591208127
A20: 嘉義縣 | C20: 21460857524 | D20: 3991998934 | E20: 3971523394 | F20: 13497335196 | G20: 17837374317 | H20: 17602865722 | I20: 234508595 | J20: 0 | K20: 3623483207 | M20: 50262388 | N20: 50262388 | O20: 0 | P20: 4072958261 | Q20: 4045918261 | R20: 27040000 | S20: 0 | T20: -4022695873 | V20: -399212666
A21: 屏東縣 | C21: 31382274686 | D21: 5903623474 | E21: 5920914169 | F21: 19557737043 | G21: 25378049130 | H21: 25071453248 | I21: 300000000 | J21: 6595882 | K21: 6004225556 | M21: 466719678 | N21: 465264031 | O21: 1455647 | P21: 5680187495 | Q21: 5414567099 | R21: 0 | S21: 265620396 | T21: -5213467817 | V21: 790757739
A22: 臺東縣 | C22: 13651004748 | D22: 1787086299 | E22: 2443939697 | F22: 9419978752 | G22: 11942095321 | H22: 11877303183 | I22: 64792138 | J22: 0 | K22: 1708909427 | M22: 122875561 | N22: 122875561 | O22: 0 | P22: 2271034742 | Q22: 2124574742 | R22: 160000 | S22: 146300000 | T22: -2148159181 | V22: -439249754
A23: 花蓮縣 | C23: 16815226073 | D23: 3318309117 | E23: 2965847375 | F23: 10531069581 | G23: 13571275219 | H23: 13448935691 | I23: 122339528 | J23: 0 | K23: 3243950854 | M23: 136045780 | N23: 136045780 | O23: 0 | P23: 3519395787 | Q23: 3519395787 | R23: 0 | S23: 0 | T23: -3383350007 | V23: -139399153
A24: 澎湖縣 | C24: 7903364168 | D24: 1217827660 | E24: 891324825 | F24: 5794211683 | G24: 6445129737 | H24: 6420274517 | I24: 24855220 | J24: 0 | K24: 1458234431 | M24: 54198920 | N24: 53130920 | O24: 1068000 | P24: 1930897803 | Q24: 1680518235 | R24: 247896650 | S24: 2482918 | T24: -1876698883 | V24: -418464452
A25: 基隆市 | C25: 16529938898 | D25: 3607678546 | E25: =3108684225+13365389 -> 3122049614 | F25: =9813576127-13365389 -> 9800210738 | G25: 13339738166 | H25: 13229388514 | I25: 110349652 | J25: 0 | K25: 3190200732 | M25: 143770269 | N25: 45356999 | O25: 98413270 | P25: 3326150538 | Q25: 3298495382 | R25: 0 | S25: 27655156 | T25: -3182380269 | V25: 7820463
A26: 新竹市 | C26: 16799894361 | D26: 6728488433 | E26: 3121793470 | F26: 6949612458 | G26: 13792179305 | H26: 13660404331 | I26: 131774974 | J26: 0 | K26: 3007715056 | M26: 113064152 | N26: 113064152 | O26: 0 | P26: 3055871064 | Q26: 3055871064 | R26: 0 | S26: 0 | T26: -2942806912 | V26: 64908144
A27: 嘉義市 | C27: 11058355963 | D27: 2942139038 | E27: 1966958934 | F27: 6149257991 | G27: 9340529789 | H27: 9327916164 | I27: 12613625 | J27: 0 | K27: 1717826174 | M27: 70232626 | N27: 70232626 | O27: 0 | P27: 1300547458 | Q27: 1300547458 | R27: 0 | S27: 0 | T27: -1230314832 | V27: 487511342
A28: 金門縣 | C28: 12367570118 | D28: 792061131 | E28: 1589521931 | F28: 9985987056 | G28: 8099382708 | H28: 8099382708 | I28: 0 | J28: 0 | K28: 4268187410 | M28: 2639000 | N28: 2639000 | O28: 0 | P28: 3312965160 | Q28: 2812965160 | R28: 500000000 | S28: 0 | T28: -3310326160 | V28: 957861250
A29: 連江縣 | C29: 3053480922 | D29: 173841427 | E29: 235359459 | F29: 2644280036 | G29: 1859561546 | H29: 1859561546 | I29: 0 | J29: 0 | K29: 1193919376 | M29: 0 | N29: 0 | O29: 0 | P29: 1171891195 | Q29: 1167805866 | R29: 0 | S29: 4085329 | T29: -1171891195 | V29: 22028181

Sheet 上融資 (hidden)
A1: 資料來源：取自104總預算彙編
A2: 收支簡明比較分析表
A3: 104年度總預算 | E3: 單位 : 新臺幣 千元
A4: 縣 市 | B4: 一.收入合計 | C4: (一)歲入 | D4: (二)債務之舉借 | E4: (三)預計移用以前年度歲計賸餘調節因應數 | F4: 二.支出合計 | G4: (一)歲出 | H4: (二)債務之償還
A5: 總 計 | B5: =SUM(B6:B27) -> 1297912459 | C5: 963323706 | D5: 328077628 | E5: 6511125 | F5: 1297912459 | G5: 1033174266 | H5: 264738193
A6: 新北市 | B6: 215257555 | C6: 140382724 | D6: 74874831 | F6: 215257555 | G6: 158371155 | H6: 56886400
A7: 臺北市 | B7: 165144077 | C7: 159058812 | D7: 0 | E7: 6085265 | F7: 165144077 | G7: 158544077 | H7: 6600000
A8: 桃園市 | B8: 108381295 | C8: 80518000 | D8: 27863295 | F8: 108381295 | G8: 91781295 | H8: 16600000
A9: 臺中市 | B9: 161751487 | C9: 94601136 | D9: 67150351 | F9: 161751487 | G9: 113555985 | H9: 48195502
A10: 臺南市 | B10: 104128044 | C10: 70813044 | D10: 33315000 | F10: 104128044 | G10: 76588044 | H10: 27540000
A11: 高雄市 | B11: 126925220 | C11: 111969145 | D11: 14956075 | F11: 126925220 | G11: 123425220 | H11: 3500000
A12: 宜蘭縣 | B12: 34657747 | C12: 19418129 | D12: 15239618 | E12: 0 | F12: 34657747 | G12: 19641386 | H12: 15016361
A13: 新竹縣 | B13: 39283359 | C13: 25673359 | D13: 13610000 | E13: 0 | F13: 39283359 | G13: 25673359 | H13: 13610000
A14: 苗栗縣 | B14: 33462719 | C14: 23975692 | D14: 9487027 | F14: 33462719 | G14: 23975692 | H14: 9487027
A15: 彰化縣 | B15: 45020388 | C15: 36496298 | D15: 8524090 | F15: 45020388 | G15: 38068721 | H15: 6951667
A16: 南投縣 | B16: 25219990 | C16: 20670440 | D16: 4549550 | E16: 0 | F16: 25219990 | G16: 20549550 | H16: 4670440
A17: 雲林縣 | B17: 41363001 | C17: 27115586 | D17: 14247415 | E17: 0 | F17: 41363001 | G17: 26765586 | H17: 14597415
A18: 嘉義縣 | B18: 32100000 | C18: 22450000 | D18: 9650000 | F18: 32100000 | G18: 22800000 | H18: 9300000
A19: 屏東縣 | B19: 38608940 | C19: 29960000 | D19: 8648940 | E19: 0 | F19: 38608940 | G19: 29960000 | H19: 8648940
A20: 臺東縣 | B20: 19550106 | C20: 12665885 | D20: 6884221 | F20: 19550106 | G20: 14340106 | H20: 5210000
A21: 花蓮縣 | B21: 21145683 | C21: 17145683 | D21: 4000000 | E21: 0 | F21: 21145683 | G21: 17145683 | H21: 4000000
A22: 澎湖縣 | B22: 10120574 | C22: 8186783 | D22: 1933791 | F22: 10120574 | G22: 9120574 | H22: 1000000
A23: 基隆市 | B23: 19577232 | C23: 16949927 | D23: 2627305 | F23: 19577232 | G23: 16303232 | H23: 3274000
A24: 新竹市 | B24: 27597663 | C24: 18095663 | D24: 9502000 | F24: 27597663 | G24: 18497663 | H24: 9100000
A25: 嘉義市 | B25: 11656026 | C25: 10841907 | D25: 814119 | E25: 0 | F25: 11656026 | G25: 11105585 | H25: 550441
A26: 金門縣 | B26: 14085772 | C26: 13668751 | D26: 0 | E26: 417021 | F26: 14085772 | G26: 14085772 | H26: 0
A27: 連江縣 | B27: 2875581 | C27: 2666742 | D27: 200000 | E27: 8839 | F27: 2875581 | G27: 2875581 | H27: 0

Sheet 前融資 (hidden)
A2: 收支簡明比較分析表
A3: 103年度總決算審定 | E3: 單位 : 新臺幣 元
A4: 縣 市 | B4: 一.收入合計 | C4: (一)歲入 | D4: (二)債務之舉借 | E4: (三)預計移用以前年度歲計賸餘調節因應數 | F4: 二.支出合計 | G4: (一)歲出 | H4: (二)債務之償還
A5: 總 計 | B5: 1223874165514 | C5: 981755104208 | D5: 242119061306 | E5: 0 | F5: 1212025627865 | G5: 999547302200 | H5: 212478325665
A6: 新北市 | B6: 201007267482 | C6: 142571741482 | D6: 58435526000 | E6: 0 | F6: 193473463926 | G6: 154473463926 | H6: 39000000000
A7: 臺北市 | B7: 188724222223 | C7: 188724222223 | D7: 0 | E7: 0 | F7: 184704327527 | G7: 167504327527 | H7: 17200000000
A8: 桃園縣 | B8: 64716718078 | C8: 56716718078 | D8: 8000000000 | E8: 0 | F8: 70435371005 | G8: 62760371005 | H8: 7675000000
A9: 臺中市 | B9: 138782952522 | C9: 99916972141 | D9: 38865980381 | E9: 0 | F9: 138782952522 | G9: 104869032822 | H9: 33913919700
A10: 臺南市 | B10: 97687355003 | C10: 71582555003 | D10: 26104800000 | E10: 0 | F10: 94666567383 | G10: 73521376929 | H10: 21145190454
A11: 高雄市 | B11: 130101424410 | C11: 116362372410 | D11: 13739052000 | E11: 0 | F11: 129407665661 | G11: 126265671271 | H11: 3141994390
A12: 宜蘭縣 | B12: 34125350401 | C12: 19458448633 | D12: 14666901768 | E12: 0 | F12: 33222805959 | G12: 19771999215 | H12: 13450806744
A13: 新竹縣 | B13: 37048297051 | C13: 22078297051 | D13: 14970000000 | E13: 0 | F13: 36519637216 | G13: 23149637216 | H13: 13370000000
A14: 苗栗縣 | B14: 31866373463 | C14: 22394373463 | D14: 9472000000 | E14: 0 | F14: 36248438212 | G14: 26455582212 | H14: 9792856000
A15: 彰化縣 | B15: 46906506523 | C15: 39906506523 | D15: 7000000000 | E15: 0 | F15: 45804936724 | G15: 41204936654 | H15: 4600000070
A16: 南投縣 | B16: 28220221960 | C16: 23820221960 | D16: 4400000000 | E16: 0 | F16: 26256021149 | G16: 21691581149 | H16: 4564440000
A17: 雲林縣 | B17: 39759746406 | C17: 26040899406 | D17: 13718847000 | E17: 0 | F17: 39029954533 | G17: 26632107533 | H17: 12397847000
A18: 嘉義縣 | B18: 30667369912 | C18: 21511119912 | D18: 9156250000 | E18: 0 | F18: 30855082578 | G18: 21910332578 | H18: 8944750000
A19: 屏東縣 | B19: 37554426030 | C19: 31848994364 | D19: 5705431666 | E19: 0 | F19: 36834019286 | G19: 31058236625 | H19: 5775782661
A20: 臺東縣 | B20: 17173880309 | C20: 13773880309 | D20: 3400000000 | E20: 0 | F20: 17269061727 | G20: 14213130063 | H20: 3055931664
A21: 花蓮縣 | B21: 21831271853 | C21: 16951271853 | D21: 4880000000 | E21: 0 | F21: 21990671006 | G21: 17090671006 | H21: 4900000000
A22: 澎湖縣 | B22: 9357563088 | C22: 7957563088 | D22: 1400000000 | E22: 0 | F22: 9776027540 | G22: 8376027540 | H22: 1400000000
A23: 基隆市 | B23: 20845924952 | C23: 16673709167 | D23: 4172215785 | E23: 0 | F23: 20042486173 | G23: 16665888704 | H23: 3376597469
A24: 新竹市 | B24: 20912958513 | C24: 16912958513 | D24: 4000000000 | E24: 0 | F24: 21093721435 | G24: 16848050369 | H24: 4245671066
A25: 嘉義市 | B25: 11160645295 | C25: 11128588589 | D25: 32056706 | E25: 0 | F25: 11168615694 | G25: 10641077247 | H25: 527538447
A26: 金門縣 | B26: 12370209118 | C26: 12370209118 | D26: 0 | E26: 0 | F26: 11412347868 | G26: 11412347868 | H26: 0
A27: 連江縣 | B27: 3053480922 | C27: 3053480922 | D27: 0 | E27: 0 | F27: 3031452741 | G27: 3031452741 | H27: 0
